Workbook

Sheet Quick Guide
C3: EWI Merit Order Tool 2021
C5: Quick Guide | E5: =Imprint!F5 -> Version 2021.4_en
D8: To be able to use all functions of the EWI Merit Order Tool 2021, macros must be activated.
D10: Merit Order
D11: A merit order is the order in which power plants operate on the electricity market. This is determined based on the marginal costs of the power plants, which are sorted in ascending order. As such, the merit order is an approximation of the actual supply curves, e.g., the day-ahead auction on the electricity exchange. The annual average merit order of the German power plant fleet gives a good indication of the relationships between the marginal costs of different power plants, relative to current conditions. The merit order is primarily influenced by the types of power plants in the fleet as well as the underlying fuel and emission certificate prices.
D13: The EWI Merit Order Tool 2021
D14: The EWI Merit Order Tool 2021 allows the calculation and graphical representation of the annual average merit order based on the conventional power plant fleet in Germany in the year 2020. Users can vary the assumptions underlying the merit order to investigate the effects of changing fuel prices or other assumptions on the merit order. In addition, power plants can be removed or added to the merit order. Users can also analyze and visualise the impact of power plant decommissioning or additional installations on the merit order. By default, only the merit order of conventional power plants is displayed. In order to adjust the merit order to account for specific feed-in situations of renewable energy sources (RES), an assumption can also be made regarding the available RES capacity.
D16: How to Use:
D18: Start:
D19: In the Start worksheet, the assumptions underlying the merit order can be adjusted. The standard assumptions depict the merit order of conventional power plants in the year 2020. As altering the assumptions may affect the marginal costs of the power plants, a distribution is displayed using a boxplot diagram. In addition, assumptions can be made regarding the amount of renewable energy generation capacities.
D21: Use the Reset Assumptions button to reset the assumptions to the default values.
D23: When the Update Merit Order button is clicked, the merit order in the Merit Order worksheet is updated based on the chosen assumptions.
D25: Merit Order:
D26: In the Merit Order worksheet, the merit order is visualized. The merit order is displayed as a list of the generation units sorted by marginal costs. The respective power plant types are marked by different colors. The merit order is recalculated when the button Update Merit Order is activated.
D28: Power Plant List:
D29: In the Power Plant List worksheet, all generation units and the corresponding assumptions are shown. Individual assumptions can be changed. Additionally, power plants can be removed or added from the merit order.
D31: A detailed documentation is available on our website (only in German):
D32: https://www.ewi.uni-koeln.de/en/publikationen/#misc-publications

Sheet Start
C3: EWI Merit Order Tool 2021
C5: Start | P5: =Imprint!F5 -> Version 2021.4_en
C7: Fuel Prices | H7: Overview Over the Marginal Costs of Power Plants
C8: Fuel Type | D8: Price | E8: Unit | F8: Source | H8: The boxplot diagram gives a first overview of the marginal cost distribution of power plants. In the illustration to the right of this text box, the individual elements of the diagram are explained. Changes in assumptions are reflected in the diagram immediately. In order to transfer the assumptions to the merit order in the Merit Order sheet, the button Update Merit Order must be clicked.
C9: Nuclear | D9: 5.5 | E9: EUR/MWhth | F9: refer to documentation
C10: Lignite | D10: 3.1 | E10: EUR/MWhth | F10: EWI (2019)
C11: Coal | D11: 6.25 | E11: EUR/MWhth | F11: VDKi (2020)
C12: Gas | D12: 10.17 | E12: EUR/MWhth | F12: Spot TTF
C13: Oil | D13: 22.9 | E13: EUR/MWhth | F13: SDKW (2019)
C14: Waste | D14: 0 | E14: EUR/MWhth | F14: refer to documentation
C15: Other | D15: 22.9 | E15: EUR/MWhth | F15: refer to documentation
C17: Emission Certificate Price
D18: Price | E18: Unit | F18: Source
C19: Emission certificate price | D19: 24.76 | E19: EUR/tCO2 | F19: Sandbag (2020)
C21: Transport Costs
C22: Power Plant Type | D22: Price | E22: Unit | F22: Source
C23: Nuclear | D23: 0 | E23: EUR/MWhth | F23: refer to documentation
C24: Lignite | D24: 0 | E24: EUR/MWhth | F24: refer to documentation
C25: Coal | D25: 1.25 | E25: EUR/MWhth | F25: R2B (2019)
C26: Gas | D26: 0.5 | E26: EUR/MWhth | F26: R2B (2019)
C27: Oil | D27: 0.3 | E27: EUR/MWhth | F27: R2B (2019)
C28: Waste | D28: 0 | E28: EUR/MWhth | F28: refer to documentation
C29: Other | D29: 0 | E29: EUR/MWhth | F29: refer to documentation | H29: Available RES generation capacity | I29: 0 | J29: MW
C31: Other Variable Costs | H31: Outages | M31: Emission Levels
C32: Power Plant Type | D32: Price | E32: Unit | F32: Source | H32: Power Plant Type | J32: Unit | K32: Source | M32: Fuel Type | O32: Unit | P32: Source
C33: Nuclear | D33: 1.2 | E33: EUR/Mwhel | F33: refer to documentation | H33: Nuclear | I33: 7 | J33: % | K33: ENTSO-E (2020) | M33: Nuclear | N33: 0 | O33: tCO2/MWhth | P33: refer to documentation
C34: Lignite | D34: 1.7 | E34: EUR/Mwhel | F34: R2B (2019) | H34: Lignite | I34: 13 | J34: % | K34: ENTSO-E (2020) | M34: Lignite | N34: 0.404 | O34: tCO2/MWhth | P34: ÜNB (2019)
C35: Coal | D35: 1.3 | E35: EUR/Mwhel | F35: R2B (2019) | H35: Coal | I35: 25 | J35: % | K35: ENTSO-E (2020) | M35: Coal | N35: 0.337 | O35: tCO2/MWhth | P35: ÜNB (2019)
C36: CCGT | D36: 1.5 | E36: EUR/Mwhel | F36: R2B (2019) | H36: CCGT | I36: 13 | J36: % | K36: ENTSO-E (2020) | M36: Gas | N36: 0.201 | O36: tCO2/MWhth | P36: ÜNB (2019)
C37: OCGT | D37: 1 | E37: EUR/Mwhel | F37: R2B (2019) | H37: OCGT | I37: 13 | J37: % | K37: ENTSO-E (2020) | M37: Oil | N37: 0.28 | O37: tCO2/MWhth | P37: ÜNB (2019)
C38: Oil | D38: 1 | E38: EUR/Mwhel | F38: refer to documentation | H38: Oil | I38: 15 | J38: % | K38: refer to documentation | M38: Waste | N38: 0 | O38: tCO2/MWhth | P38: refer to documentation
C39: Waste | D39: 1 | E39: EUR/Mwhel | F39: refer to documentation | H39: Waste | I39: 15 | J39: % | K39: refer to documentation | M39: Other | N39: 0.214 | O39: tCO2/MWhth | P39: ÜNB (2019)
C40: Other | D40: 1 | E40: EUR/Mwhel | F40: refer to documentation | H40: Other | I40: 15 | J40: % | K40: refer to documentation

Sheet Merit Order
C3: EWI Merit Order Tool 2021
C5: Merit Order | K5: =Imprint!F5 -> Version 2021.4_en
C7: Visualization of the Merit Order
C10: Merit Order in Tabular Form
C11: Power Plant Identification Number of the Bundesnetzagentur | D11: Company | E11: Name of the Power Plant | F11: Name of the Unit | G11: Begin of Commercial Electricity Generation | H11: Power Plant Type | I11: Mean Available Net Nominal Capacity [MW] | J11: Cumulated Available Net Nominal Capacity [MW] | K11: Marginal Costs [EUR/MWhel]
C12: BNA0084 | D12: Vattenfall Wärme Berlin AG | E12: Reuter | F12: Reuter M | G12: 30.10.1998 | H12: Waste | I12: 30.6 | J12: 30.6 | K12: 1
C13: BNA0088b | D13: Solvay Chemicals GmbH | E13: Dampfturbinenanlage der EBS-Kessel | G13: 16.10.2009 | H13: Waste | I13: 29.75 | J13: 60.35 | K13: 1
C14: BNA0097 | D14: MVA Bielefeld-Herford GmbH | E14: MVA Bielefeld | F14: Linien 1 - 3 | G14: 01.07.1981 | H14: Waste | I14: 28.9 | J14: 89.25 | K14: 1
C15: BNA0117a | D15: Energie- und Wasserversorgung Bonn/Rhein-Sieg GmbH | E15: Heizkraftwerk Karlstraße | F15: Heizkraftwerk Karlstraße | G15: 01.07.1990 | H15: Waste | I15: 10.2 | J15: 99.45 | K15: 1
C16: BNA0139 | D16: swb Entsorgung GmbH & Co. KG | E16: KW Hafen | F16: MKK | G16: 1905-07-01 | H16: Waste | I16: 28.05 | J16: 127.5 | K16: 1
C17: BNA0223b | D17: Stadtwerke Düsseldorf AG | E17: DT | F17: Flingern T1 | G17: 17.04.2000 | H17: Waste | I17: 45.645 | J17: 173.145 | K17: 1
C18: BNA0237 | D18: Progroup Power 1 GmbH | E18: EBS-Heizkraftwerk | G18: 10.02.2011 | H18: Waste | I18: 19.975 | J18: 193.12 | K18: 1
C19: BNA0287a | D19: Mainova AG | E19: MHKW Frankfurt | F19: T 3 (nur alleiniger Betrieb, kein gemeinsamer Betrieb mit T 7 möglich) | G19: 01.01.1969 | H19: Waste | I19: 22.1 | J19: 215.22 | K19: 1
C20: BNA0287b | D20: Mainova AG | E20: MHKW Frankfurt | F20: T 7 (nur alleiniger Betrieb, kein gemeinsamer Betrieb mit T 3 möglich) | G20: 01.01.2006 | H20: Waste | I20: 39.525 | J20: 254.745 | K20: 1
C21: BNA0380 | D21: EEW Energy from Waste Großräschen GmbH | E21: EEW Großräschen | G21: 01.12.2007 | H21: Waste | I21: 19.805 | J21: 274.55 | K21: 1
C22: BNA0398 | D22: MVR Müllverwertung Rugenberger Damm GmbH & Co. KG | E22: MVR Müllverwertung Rugenberger Damm GmbH & Co. KG | G22: 12.08.1999 | H22: Waste | I22: 20.4 | J22: 294.95 | K22: 1
C23: BNA0407 | D23: Enertec Hameln GmbH | E23: Enertec Hameln | F23: Linien 1,3,4 | G23: 07.10.1913 | H23: Waste | I23: 11.22 | J23: 306.17 | K23: 1
C24: BNA0417 | D24: EEW Energy from Waste Hannover GmbH | E24: EEW Energy from Waste Hannover GmbH | F24: Hannover | G24: 01.06.2005 | H24: Waste | I24: 19.125 | J24: 325.295 | K24: 1
C25: BNA0438 | D25: EEW Energy from Waste Helmstedt GmbH | E25: TRV Buschhaus | F25: Linie 1-3 | G25: 31.03.1999 | H25: Waste | I25: 31.875 | J25: 357.17 | K25: 1
C26: BNA0519 | D26: RWE Generation SE | E26: Karnap | F26: B | G26: 16.03.1987 | H26: Waste | I26: 32.3 | J26: 389.47 | K26: 1
C27: BNA0590 | D27: MVV Energie AG | E27: TREA Leuna | F27: Linie 1 | G27: 26.08.2005 | H27: Waste | I27: 13.8125 | J27: 403.2825 | K27: 1
C28: BNA0591 | D28: MVV Energie AG | E28: TREA Leuna | F28: Linie 2 | G28: 19.06.2007 | H28: Waste | I28: 13.8125 | J28: 417.095 | K28: 1
C29: BNA0599 | D29: AVEA Entsorgungsbetriebe GmbH & Co. KG | F29: entfällt | G29: 03.05.2011 | H29: Waste | I29: 9.86 | J29: 426.955 | K29: 1
C30: BNA0622 | D30: Müllheizkraftwerk Rothensee GmbH | E30: MHKW Rothensee | F30: Block 1 | G30: 17.07.2005 | H30: Waste | I30: 24.82 | J30: 451.775 | K30: 1
C31: BNA0623 | D31: Müllheizkraftwerk Rothensee GmbH | E31: MHKW Rothensee | F31: Block 2 | G31: 08.09.2006 | H31: Waste | I31: 24.82 | J31: 476.595 | K31: 1
C32: BNA0640 | D32: MVV Energie AG | E32: HKW Mannheim | F32: Turbine 3 | G32: 13.10.2006 | H32: Waste | I32: 7.3525 | J32: 483.9475 | K32: 1
C33: BNA0641a | D33: MVV Energie AG | E33: HKW Mannheim | F33: Turbine 60 | G33: 07.01.2010 | H33: Waste | I33: 18.785 | J33: 502.7325 | K33: 1
C34: BNA0641b | D34: MVV Energie AG | E34: HKW Mannheim | F34: Turbine D.0 | G34: 13.08.2012 | H34: Waste | I34: 4.5645 | J34: 507.297 | K34: 1
C35: BNA0641c | D35: MVV Energie AG | E35: HKW Mannheim | F35: Turbine E.0 | G35: 14.06.2012 | H35: Waste | I35: 3.298 | J35: 510.595 | K35: 1
C36: BNA0693 | D36: SWN Stadtwerke Neumünster GmbH | E36: Heizkraftwerk NMS | G36: 03.05.1974 | H36: Waste | I36: 45.56 | J36: 556.155 | K36: 1
C37: BNA0746 | D37: N-ERGIE AG | E37: HKW Sandreuth | G37: 01.09.1996 | H37: Waste | I37: 15.3 | J37: 571.455 | K37: 1
C38: BNA0750 | D38: GMVA Gemeinschafts-Müll-Verbrennungsanlage Niederrhein GmbH | E38: GMVA Niederrhein | F38: Ausspeisung 10/110kV (Turbine 2) | G38: 17.10.1991 | H38: Waste | I38: 34.34 | J38: 605.795 | K38: 1
C39: BNA0751 | D39: GMVA Gemeinschafts-Müll-Verbrennungsanlage Niederrhein GmbH | E39: GMVA Niederrhein | F39: Ausspeisung 10/25kV (Turbine 1) | G39: 06.04.2006 | H39: Waste | I39: 17.935 | J39: 623.73 | K39: 1
C40: BNA0845 | D40: Stadtwerke Rosenheim GmbH & Co. KG | E40: MHKW, WKW | F40: T1a/b, T2 | G40: 01.01.1988 | H40: Waste | I40: 7.65 | J40: 631.38 | K40: 1
C41: BNA0855 | D41: Steag GmbH | E41: IKW Rüdersdorf | G41: 15.12.2009 | H41: Waste | I41: 25.5 | J41: 656.88 | K41: 1
C42: BNA0895 | D42: GKS Gemeinschaftskraftwerk Schweinfurt GmbH | E42: GKS | F42: entfällt | G42: 01.06.1990 | H42: Waste | I42: 20.74 | J42: 677.62 | K42: 1
C43: BNA0939a | D43: EnBW Energie Baden-Württemberg AG | E43: Restmüll-Heizkraftwerk Stuttgart-Münster | F43: MÜN DT19 neu | G43: 01.01.2009 | H43: Waste | I43: 16.575 | J43: 694.195 | K43: 1
C44: BNA0969a | D44: SWM Services GmbH | E44: Nord 1 | F44: 1 | G44: 15.09.1991 | H44: Waste | I44: 15.3 | J44: 709.495 | K44: 1
C45: BNA0969c | D45: SWM Services GmbH | E45: Nord 3 | F45: 3 | G45: 17.05.1984 | H45: Waste | I45: 18.7 | J45: 728.195 | K45: 1
C46: BNA1020 | D46: RWE Power AG | E46: MVA Weisweiler | F46: MVA | G46: 22.10.1996 | H46: Waste | I46: 22.95 | J46: 751.145 | K46: 1
C47: BNA1108 | D47: PD energy GmbH | E47: PD energy GmbH | G47: 01.01.2010 | H47: Waste | I47: 8.415 | J47: 759.56 | K47: 1
C48: BNA1110 | D48: Zweckverband Restmüllheizkraftwerk Böblingen | E48: Restmüllheizkraftwerk Böblingen | F48: Müllverbrennung | G48: 03.05.1999 | H48: Waste | I48: 8.075 | J48: 767.635 | K48: 1
C49: BNA1114 | D49: swb Entsorgung GmbH & Co. KG | E49: MHKW | F49: MHKW | G49: 1969 / 2012 | H49: Waste | I49: 37.4 | J49: 805.035 | K49: 1
C50: BNA1116 | D50: Bremerhavener Entsorgungsgesellschaft mbH | E50: BEG | G50: 18.03.1977 | H50: Waste | I50: 11.9 | J50: 816.935 | K50: 1
C51: BNA1119 | D51: Zweckverband Abfallverwertung Südostbayern | E51: MHKW Burgkirchen | G51: 15.01.1994 | H51: Waste | I51: 10.625 | J51: 827.56 | K51: 1
C52: BNA1139 | D52: EEW Energy from Waste Saarbrücken GmbH | E52: TREA Breisgau | G52: 15.07.2005 | H52: Waste | I52: 11.56 | J52: 839.12 | K52: 1
C53: BNA1144 | D53: EEW Energy from Waste Göppingen GmbH | E53: EEW Göppingen | F53: Turb. Neu | G53: 01.07.1975 | H53: Waste | I53: 9.35 | J53: 848.47 | K53: 1
C54: BNA1148 | D54: MHB Hamm Betriebsführungsgesellschaft mbH | E54: MVA Hamm | G54: 13.02.1986 | H54: Waste | I54: 12.393 | J54: 860.863 | K54: 1
C55: BNA1154 | D55: AGR Abfallentsorgungsgesellschaft Ruhrgebiet mbH | E55: RZR Herten I | F55: RZR I | G55: 06.01.1982 | H55: Waste | I55: 13.175 | J55: 874.038 | K55: 1
C56: BNA1155 | D56: AGR Abfallentsorgungsgesellschaft Ruhrgebiet mbH | E56: RZR Herten II | F56: RZR II | G56: 07.01.2009 | H56: Waste | I56: 9.945 | J56: 883.983 | K56: 1
C57: BNA1161 | D57: Zweckverband Müllverwertungsanlage Ingolstadt (MVA Ingolstadt) | E57: MVA Ingolstadt | F57: Müllheizkraftwerk (MHKW) | G57: 26.10.1984 | H57: Waste | I57: 21.675 | J57: 905.658 | K57: 1
C58: BNA1167 | D58: Kreis Weseler Abfallgesellschaft mbH & Co. KG (KWA) | E58: Abfallentsorgungszentrum Asdonkshof | F58: MVA | G58: 01.04.1997 | H58: Waste | I58: 13.6 | J58: 919.258 | K58: 1
C59: BNA1168 | D59: Müllheizkraftwerk Kassel GmbH | E59: Müllheizkraftwerk | G59: 17.12.1985 | H59: Waste | I59: 12.495 | J59: 931.753 | K59: 1
C60: BNA1184 | D60: AVG Köln mbH | E60: RMVA Köln | F60: RMVA Köln | G60: 01.02.1998 | H60: Waste | I60: 38.335 | J60: 970.088 | K60: 1
C61: BNA1186b | D61: EGK Entsorgungsgesellschaft Krefeld GmbH & Co.KG | E61: MKVA Krefeld | F61: Turbine 4 | G61: 01.01.2002 | H61: Waste | I61: 11.73 | J61: 981.818 | K61: 1
C62: BNA1186c | D62: EGK Entsorgungsgesellschaft Krefeld GmbH & Co.KG | E62: MKVA Krefeld | F62: Turbine 2 | G62: 01.01.1976 | H62: Waste | I62: 1.275 | J62: 983.093 | K62: 1
C63: BNA1186d | D63: EGK Entsorgungsgesellschaft Krefeld GmbH & Co.KG | E63: MKVA Krefeld | F63: Turbine 5 | G63: 01.01.1997 | H63: Waste | I63: 2.38 | J63: 985.473 | K63: 1
C64: BNA1186e | D64: EGK Entsorgungsgesellschaft Krefeld GmbH & Co.KG | E64: MKVA Krefeld | F64: Turbine 1 | G64: 01.01.1976 | H64: Waste | I64: 1.275 | J64: 986.748 | K64: 1
C65: BNA1190 | D65: Steag GmbH | E65: Thermische Abfallbehandlung Lauta GmbH & Co. oHG | G65: 21.07.2004 | H65: Waste | I65: 13.345 | J65: 1000.093 | K65: 1
C66: BNA1197 | D66: Technische Werke Ludwigshafen AG | E66: FHKW Ludwigshafen | F66: FHKW | G66: 01.08.1967 | H66: Waste | I66: 23.8 | J66: 1023.893 | K66: 1
C67: BNA1198 | D67: SUEZ Energie und Verwertung GmbH | E67: SITA Abfallverwertung GmbH | G67: 22.06.2005 | H67: Waste | I67: 19.55 | J67: 1043.443 | K67: 1
C68: BNA1199 | D68: Entsorgungsgesellschaft Mainz mbH | E68: MHKW Mainz | G68: 01.12.2009 | H68: Waste | I68: 13.26 | J68: 1056.703 | K68: 1
C69: BNA1222 | D69: Energieversorgung Offenbach AG | E69: Müllheizkraftwerk Offenbach | G69: 01.01.1972 | H69: Waste | I69: 12.325 | J69: 1069.028 | K69: 1
C70: BNA1229 | D70: EEW Energy from Waste Saarbrücken GmbH | E70: MHKW Pirmasens | G70: 01.01.1999 | H70: Waste | I70: 12.75 | J70: 1081.778 | K70: 1
C71: BNA1232 | D71: EEW Energy from Waste Premnitz GmbH | E71: ZWSF | F71: ZWSF | G71: 08.01.2004 | H71: Waste | I71: 2.125 | J71: 1083.903 | K71: 1
C72: BNA1233 | D72: EEW Energy from Waste Premnitz GmbH | E72: EVE | F72: EVE | G72: 09.06.2009 | H72: Waste | I72: 12.325 | J72: 1096.228 | K72: 1
C73: BNA1243 | D73: Vattenfall Europe New Energy Ecopower GmbH | E73: EBS-HKW Rostock | G73: 1905-07-01 | H73: Waste | I73: 14.45 | J73: 1110.678 | K73: 1
C74: BNA1244 | D74: AVA Velsen GmbH | E74: AVA Velsen | G74: 07.08.1997 | H74: Waste | I74: 13.6 | J74: 1124.278 | K74: 1
C75: BNA1254 | D75: Zweckverband Müllverwertung Schwandorf | E75: Müllkraftwerk Schwandorf | G75: 31.08.1982 | H75: Waste | I75: 45.9 | J75: 1170.178 | K75: 1
C76: BNA1255 | D76: Kraftwerk Schwedt GmbH & Co. KG | E76: Kraftwerk Schwedt GmbH & Co.KG | G76: 01.04.2011 | H76: Waste | I76: 24.565 | J76: 1194.743 | K76: 1
C77: BNA1261 | D77: EEW Energy from Waste Stapelfeld GmbH | G77: 01.10.1979 | H77: Waste | I77: 13.94 | J77: 1208.683 | K77: 1
C78: BNA1262 | D78: REMONDIS Thermische Abfallverwertung GmbH | E78: REMONDIS Thermische Abfallverwertung GmbH | G78: 21.04.2008 | H78: Waste | I78: 20.4 | J78: 1229.083 | K78: 1
C79: BNA1286 | D79: Zweckverband für Abfallwirtschaft Südwestthüringen (ZASt) | E79: Restabfallbehandlungsanlage | F79: 1 | G79: 13.11.2007 | H79: Waste | I79: 10.285 | J79: 1239.368 | K79: 1
C80: BNA1289 | D80: AMK - Abfallentsorgungsgesellschaft des Märkischen Kreises mbH | E80: AMK - Abfallentsorgungsgesellschaft des Märkischen Kreises mbH | G80: 01.04.1981 | H80: Waste | I80: 10.7185 | J80: 1250.0865 | K80: 1
C81: BNA1291 | D81: IHKW Industrieheizkraftwerk Andernach GmbH | E81: IHKW Andernach | G81: 14.01.2008 | H81: Waste | I81: 10.625 | J81: 1260.7115 | K81: 1
C82: BNA1295 | D82: AVA Abfallverwertung Augsburg GmbH | E82: AVA GmbH | F82: AHKW | G82: 16.09.1994 | H82: Waste | I82: 8.5 | J82: 1269.2115 | K82: 1
C83: BNA1316 | D83: EKOCity GmbH | E83: Müllheizkraftwerk | G83: 01.01.1976 | H83: Waste | I83: 25.5 | J83: 1294.7115 | K83: 1
C84: BNA1330 | D84: Steinbeis Energie GmbH | E84: Steinbeis Energie | G84: 27.09.2010 | H84: Waste | I84: 14.45 | J84: 1309.1615 | K84: 1
C85: BNA1447a | D85: Evonik Röhm GmbH | F85: G2 | G85: 20.11.1990 | H85: Waste | I85: 10.115 | J85: 1319.2765 | K85: 1
C86: BNA1447b | D86: Evonik Röhm GmbH | F86: G3/Kontu | G86: 12.03.2012 | H86: Waste | I86: 5.865 | J86: 1325.1415 | K86: 1
C87: BNA1448 | D87: EEW Energy from Waste Saarbrücken GmbH | E87: AHKW Neunkirchen | F87: Linie 3 + 4 | G87: 02.06.1977 | H87: Waste | I87: 9.86 | J87: 1335.0015 | K87: 1
C88: BNA1449a | D88: Zweckverband Abfallwirtschaft Raum Würzburg | E88: Turbosatz 1 | G88: 04.06.1984 | H88: Waste | I88: 7.395 | J88: 1342.3965 | K88: 1
C89: BNA1449b | D89: Zweckverband Abfallwirtschaft Raum Würzburg | E89: Turbosatz 2 | G89: 09.11.1998 | H89: Waste | I89: 10.2 | J89: 1352.5965 | K89: 1
C90: BNA1465a | D90: B+T Energie GmbH | E90: EBS-Kraftwerk Witzenhausen | G90: 24.06.2009 | H90: Waste | I90: 23.8 | J90: 1376.3965 | K90: 1
C91: BNA1490 | D91: EBS - Kraftwerk GmbH | E91: EBKW Knapsack | G91: 01.01.2009 | H91: Waste | I91: 28.39 | J91: 1404.7865 | K91: 1
C92: BNA1510 | D92: Spreestromerzeugungs GmbH | E92: Hamburger Rieger | G92: 01.01.2013 | H92: Waste | I92: 15.895 | J92: 1420.6815 | K92: 1
C93: BNA1520 | D93: ESWE BioEnergie GmbH | E93: Biomasseheizkraftwerk Wiesbaden | G93: 01.01.2014 | H93: Waste | I93: 8.925 | J93: 1429.6065 | K93: 1
C94: BNA1864 | D94: KÄMMERER Energie GmbH | E94: Turbine 4 | G94: 1905-05-15 | H94: Waste | I94: 8.075 | J94: 1437.6815 | K94: 1
C95: BNA1865 | D95: KÄMMERER Energie GmbH | E95: Turbine 5 | G95: 1905-05-25 | H95: Waste | I95: 8.33 | J95: 1446.0115 | K95: 1
C96: BNA1867 | D96: AVG Köln mbH | E96: AVG Köln | F96: Turbosatz 2 | G96: 01.05.2017 | H96: Waste | I96: 15.3 | J96: 1461.3115 | K96: 1
D97: Nicht-EEG-Anlagen < 10 MW | H97: Waste | I97: 120.224425 | J97: 1581.535925 | K97: 1
C98: BNA0157 | D98: Preussen Elektra GmbH | E98: Brokdorf | F98: KBR | G98: 22.12.1986 | H98: Nuclear | I98: 1311.3 | J98: 2892.835925 | K98: 17.86666667
C99: BNA0251 | D99: Preussen Elektra GmbH | E99: Grohnde | F99: KWG | G99: 01.02.1985 | H99: Nuclear | I99: 1264.8 | J99: 4157.635925 | K99: 17.86666667
C100: BNA0263 | D100: Preussen Elektra GmbH | E100: Isar 2 | F100: KKI 2 | G100: 09.04.1988 | H100: Nuclear | I100: 1311.3 | J100: 5468.935925 | K100: 17.86666667
C101: BNA0382 | D101: RWE Power AG | E101: Kernkraft Gundremmingen | F101: C | G101: 02.11.1984 | H101: Nuclear | I101: 1197.84 | J101: 6666.775925 | K101: 17.86666667
C102: BNA0607 | D102: RWE Power AG | E102: Kernkraftwerk Emsland | F102: KKE | G102: 19.04.1988 | H102: Nuclear | I102: 1242.48 | J102: 7909.255925 | K102: 17.86666667
C103: BNA0686 | D103: EnBW Energie Baden-Württemberg AG | E103: Gemeinschaftskernkraftwerk Neckarwestheim II | F103: GKN II | G103: 15.04.1989 | H103: Nuclear | I103: 1218.3 | J103: 9127.555925 | K103: 17.86666667
C104: BNA1817 | D104: Stadtwerke Düsseldorf AG | E104: GuD | F104: GuD F | G104: 22.01.2016 | H104: CCGT | I104: 517.65 | J104: 9645.205925 | K104: 27.06660131
C105: BNA1819 | D105: Stadtwerke Flensburg GmbH | E105: Heizkraftwerk FL | F105: Block 12 | G105: 01.10.2016 | H105: CCGT | I105: 67.86 | J105: 9713.065925 | K105: 27.06660131
C106: BNA1820 | D106: Gemeinschaftskraftwerk Bremen GmbH und Co. KG | E106: KW Mittelsbüren | F106: GuD MiBÜ | G106: 01.10.2016 | H106: CCGT | I106: 386.715 | J106: 10099.78093 | K106: 27.06660131
C107: BNA0918b | D107: Dow Deutschland Anlagengesellschaft mbH | E107: Dow Stade | F107: Cogen Dow Stade | G107: 01.01.2015 | H107: CCGT | I107: 136.59 | J107: 10236.37093 | K107: 27.25598354
C108: BNA0922 | D108: CIECH Energy Deutschland GmbH | E108: GuD-Ikw Staßfurt | G108: 01.10.2015 | H108: CCGT | I108: 87 | J108: 10323.37093 | K108: 27.25598354
C109: BNA0256b | D109: SWE Energie GmbH | E109: HKW Erfurt-Ost | F109: GT2 | G109: 2014 | H109: CCGT | I109: 28.362 | J109: 10351.73293 | K109: 27.44819237
C110: BNA0261c | D110: Erlanger Stadtwerke AG | E110: HKW Erlangen | F110: GuD 2 | G110: 10.02.2014 | H110: CCGT | I110: 5.829 | J110: 10357.56192 | K110: 27.44819237
C111: BNA0392b | D111: Heizkraftwerk Halle-Trotha GmbH | E111: HKW Halle Trotha | F111: GuD | G111: 30.01.2013 | H111: CCGT | I111: 48.8418 | J111: 10406.40373 | K111: 27.64329156
C112: BNA0418 | D112: enercity AG | E112: GKL | F112: GKL | G112: 05.11.1998 | H112: CCGT | I112: 200.1 | J112: 10606.50373 | K112: 27.64329156
C113: BNA0548b | D113: Statkraft Markets GmbH | E113: Knapsack Gas II | G113: 01.07.2013 | H113: CCGT | I113: 374.1 | J113: 10980.60373 | K113: 27.64329156
C114: BNA1337e | D114: DS Smith Paper Deutschland GmbH | E114: GuD-Anlage | F114: GuD-Anlage | G114: 28.01.2013 | H114: CCGT | I114: 40.89 | J114: 11021.49373 | K114: 27.64329156
C115: BNA1523b | D115: Moritz J. Weig GmbH & Co KG | E115: Gemeinschaftskraftwerk Weig | F115: Block 2 (Kessel 6, GT 2, DT 3) | G115: 01.01.2013 | H115: CCGT | I115: 23.838 | J115: 11045.33173 | K115: 27.64329156
C116: BNA0059b | D116: Volkswagen AG | E116: GuD Baunatal, VW Werksgelände | G116: 29.12.2011 | H116: CCGT | I116: 67.86 | J116: 11113.19173 | K116: 28.04242578
C117: BNA0136 | D117: Braunschweiger Versorgungs-AG & Co. KG | E117: HKW-Mitte | F117: GuD | G117: 30.12.2010 | H117: CCGT | I117: 64.38 | J117: 11177.57172 | K117: 28.24659829
C118: BNA0588 | D118: Stadtwerke Leipzig GmbH | E118: Heizkraftwerk Leipzig-Nord | G118: 15.02.1996 | H118: CCGT | I118: 145.29 | J118: 11322.86173 | K118: 28.24659829
C119: BNA0598b | D119: InfraLeuna GmbH | E119: ILK-GuD | F119: KT1 | G119: 30.04.2010 | H119: CCGT | I119: 17.4 | J119: 11340.26173 | K119: 28.24659829
C120: BNA0606 | D120: RWE Generation SE | E120: Emsland | F120: D | G120: 07.09.2010 | H120: CCGT | I120: 771.69 | J120: 12111.95173 | K120: 28.24659829
C121: BNA0805 | D121: Kraftwerk Platting GmbH | E121: Kraftwerk Plattling | G121: 20.04.2010 | H121: CCGT | I121: 103.095 | J121: 12215.04673 | K121: 28.24659829
C122: BNA0400 | D122: Wärme Hamburg GmbH | E122: GuD Tiefstack | F122: GuD Tiefstack | G122: 02.11.2009 | H122: CCGT | I122: 110.49 | J122: 12325.53672 | K122: 28.45393626
C123: BNA0444 | D123: K+S AG | E123: Wintershall | F123: Wintershall | G123: 20.05.2009 | H123: CCGT | I123: 60.03 | J123: 12385.56673 | K123: 28.45393626
C124: BNA1087 | D124: Heizkraftwerk Würzburg GmbH | E124: Heizkraftwerke an der Friedensbrücke | F124: GTII | G124: 01.01.2009 | H124: CCGT | I124: 25.665 | J124: 12411.23173 | K124: 28.45393626
C125: BNA0410 | D125: Trianel Gaskraftwerk Hamm GmbH & Co. KG | E125: Trianel Gaskraftwerk | F125: Block 10 | G125: 01.03.2008 | H125: CCGT | I125: 354.09 | J125: 12765.32173 | K125: 28.66451389
C126: BNA0411 | D126: Trianel Gaskraftwerk Hamm GmbH & Co. KG | E126: Trianel Gaskraftwerk | F126: Block 20 | G126: 01.03.2008 | H126: CCGT | I126: 356.7 | J126: 13122.02173 | K126: 28.66451389
C127: BNA0545 | D127: RheinEnergie AG | E127: HKW Niehl 2 | F127: GuD | G127: 26.03.2005 | H127: CCGT | I127: 359.31 | J127: 13481.33173 | K127: 28.66451389
C128: BNA0442 | D128: Mark-E AG / Statkraft Markets | E128: Cuno Heizkraftwerk Herdecke | F128: H6 | G128: 01.01.2007 | H128: CCGT | I128: 362.79 | J128: 13844.12173 | K128: 28.8784077
C129: BNA0548a | D129: Knapsack Power GmbH & Co. KG | E129: Knapsack Gas I | G129: 01.01.2006 | H129: CCGT | I129: 696 | J129: 14540.12173 | K129: 29.09569665
C130: BNA0100 | D130: Stadtwerke Bielefeld GmbH | E130: GuD Kraftwerk Hillegossen | F130: GuD | G130: 02.01.2005 | H130: CCGT | I130: 32.5815 | J130: 14572.70323 | K130: 29.31646222
C131: BNA0214 | D131: Stadtwerke Duisburg AG | E131: HKW III/B | F131: HKW III/B | G131: 24.10.2005 | H131: CCGT | I131: 203.58 | J131: 14776.28323 | K131: 29.31646222
C132: BNA0261a | D132: Erlanger Stadtwerke AG | E132: HKW Erlangen | F132: GuD I | G132: 14.09.2005 | H132: CCGT | I132: 18.792 | J132: 14795.07523 | K132: 29.31646222
C133: BNA0614b | D133: BASF SE | E133: Kraftwerk Mitte | F133: GUD A 800 GT 11, GT 12, DT 10 | G133: 12.05.2005 | H133: CCGT | I133: 432.825 | J133: 15227.90023 | K133: 29.31646222
C134: BNA0685 | D134: Stadtwerke Münster GmbH | E134: Heizkraftwerk Hafen | F134: GuD | G134: 14.12.2005 | H134: CCGT | I134: 90.6018 | J134: 15318.50203 | K134: 29.31646222
C135: BNA0742 | D135: N-ERGIE AG | E135: HKW Sandreuth | F135: GuD 1 | G135: 05.01.2005 | H135: CCGT | I135: 65.25 | J135: 15383.75203 | K135: 29.31646222
C136: BNA0743 | D136: N-ERGIE AG | E136: HKW Sandreuth | F136: GuD 2 | G136: 05.01.2005 | H136: CCGT | I136: 65.25 | J136: 15449.00203 | K136: 29.31646222
C137: BNA0861a | D137: Energie SaarLorLux AG | E137: HKW Römerbrücke | F137: GuD-Anlage | G137: 01.06.2005 | H137: CCGT | I137: 65.25 | J137: 15514.25203 | K137: 29.31646222
C138: BNA1082 | D138: WSW Energie & Wasser AG | E138: HKW Barmen | F138: Block 1 | G138: 2005-12-30 | H138: CCGT | I138: 76.57653 | J138: 15590.82856 | K138: 29.31646222
C139: BNA1088 | D139: Heizkraftwerk Würzburg GmbH | E139: Heizkraftwerke an der Friedensbrücke | F139: GTI | G139: 01.01.2005 | H139: CCGT | I139: 38.715 | J139: 15629.54356 | K139: 29.31646222
C140: BNA0546 | D140: RheinEnergie AG | E140: HKW Merkenich | F140: GuD | G140: 27.01.2004 | H140: CCGT | I140: 93.96 | J140: 15723.50356 | K140: 29.54078853
C141: BNA0684a | D141: SWM Services GmbH | E141: Süd GT 61 | F141: 2 | G141: 30.09.2004 | H141: CCGT | I141: 108.663 | J141: 15832.16656 | K141: 29.54078853
C142: BNA0684b | D142: SWM Services GmbH | E142: Süd GT 62 | F142: 2 | G142: 30.09.2004 | H142: CCGT | I142: 107.793 | J142: 15939.95956 | K142: 29.54078853
C143: BNA0684c | D143: SWM Services GmbH | E143: Süd DT60 | F143: 2 | G143: 30.09.2004 | H143: CCGT | I143: 111.012 | J143: 16050.97156 | K143: 29.54078853
C144: BNA0499 | D144: Infraserv GmbH & Co. Höchst KG | E144: Heizkraftwerk | F144: Block A | G144: 26.11.2003 | H144: CCGT | I144: 74.82 | J144: 16125.79156 | K144: 29.76876242
C145: BNA0658 | D145: Evonik Degussa GmbH | E145: Kraftwerk III | F145: Block 311 | G145: 22.11.1973 | H145: CCGT | I145: 53.1831 | J145: 16178.97466 | K145: 29.76876242
C146: BNA1196b | D146: MVV Energie AG | E146: Industriekraftwerk Ludwigshafen | F146: GuD | G146: 01.03.2003 | H146: CCGT | I146: 10.4052 | J146: 16189.37986 | K146: 29.76876242
C147: BNA1334 | D147: CR3-Kaffeeveredelung M. Hermsen GmbH | E147: KWK-Anlage | F147: GT 1-3, DT | G147: 1993 und 2002 | H147: CCGT | I147: 12.876 | J147: 16202.25586 | K147: 30.00047359
C148: BNA0172a | D148: Wacker Chemie AG | E148: Burghausen 01 - GT | G148: 27.07.2001 | H148: CCGT | I148: 104.4 | J148: 16306.65586 | K148: 30.23601469
C149: BNA1183 | D149: RheinEnergie AG | E149: HKW Merheim | F149: GuD | G149: 08.03.2001 | H149: CCGT | I149: 13.746 | J149: 16320.40186 | K149: 30.23601469
C150: BNA0105 | D150: envia THERM GmbH | E150: GuD Bitterfeld | G150: 04.08.2000 | H150: CCGT | I150: 92.22 | J150: 16412.62186 | K150: 30.47548148
C151: BNA0199 | D151: RWE Generation SE | E151: Dormagen | F151: GuD | G151: 01.07.2000 | H151: CCGT | I151: 509.82 | J151: 16922.44186 | K151: 30.47548148
C152: BNA0220 | D152: Stadtwerke Düsseldorf AG | E152: GuD | F152: AGuD | G152: 28.07.2000 | H152: CCGT | I152: 87 | J152: 17009.44186 | K152: 30.47548148
C153: BNA0397 | D153: ThyssenKrupp Steel Europe AG | E153: Duisburg Hamborn 5 | F153: Block 5 | G153: 01.01.2003 | H153: CCGT | I153: 195.75 | J153: 17205.19186 | K153: 30.47548148
C154: BNA0626 | D154: Kraftwerke Mainz-Wiesbaden AG | E154: Kraftwerk Mainz | F154: KW3 | G154: 23.05.2000 | H154: CCGT | I154: 377.754 | J154: 17582.94586 | K154: 30.47548148
C155: BNA1450 | D155: DREWSEN SPEZIALPAPIERE GmbH & Co. KG | E155: GUD-Anlage DREWSEN | G155: 01.09.2000 | H155: CCGT | I155: 11.31 | J155: 17594.25586 | K155: 30.47548148
C156: BNA0256a | D156: SWE Energie GmbH | E156: HKW Erfurt-Ost | F156: GT1 | G156: 17.12.1999 | H156: CCGT | I156: 66.555 | J156: 17660.81086 | K156: 30.71897292
C157: BNA0857 | D157: Opel Automobile GmbH | E157: GuD-Anlage Rüsselsheim | F157: M120 | G157: 10.09.1999 | H157: CCGT | I157: 97.527 | J157: 17758.33786 | K157: 30.71897292
C158: BNA0592 | D158: InfraLeuna GmbH | E158: GuD Leuna | G158: 01.10.1998 | H158: CCGT | I158: 33.93 | J158: 17792.26786 | K158: 30.96659134
C159: BNA0615 | D159: BASF SE | E159: Kraftwerk Süd | F159: GUD C 200 GT 1, GT 2, DT 1 | G159: 14.07.1997 | H159: CCGT | I159: 356.7 | J159: 18148.96786 | K159: 31.21844255
C160: BNA0688 | D160: Neubrandenburger Stadtwerke GmbH | E160: GuD-HKW Neubrandenburg | G160: 16.05.1997 | H160: CCGT | I160: 65.25 | J160: 18214.21786 | K160: 31.21844255
C161: BNA0073 | D161: Vattenfall Wärme Berlin AG | E161: Mitte | F161: GuD Mitte | G161: 30.12.1996 | H161: CCGT | I161: 386.28 | J161: 18600.49786 | K161: 31.47463602
C162: BNA0504 | D162: TEAG Thüringer Energie AG | E162: HKW Jena | F162: HKW Jena | G162: 26.09.1996 | H162: CCGT | I162: 158.34 | J162: 18758.83786 | K162: 31.47463602
C163: BNA0848 | D163: Stadtwerke Rostock AG | E163: GuD Marienehe | G163: 13.06.1996 | H163: CCGT | I163: 93.96 | J163: 18852.79786 | K163: 31.47463602
C164: BNA1279 | D164: Basell Polyolefine GmbH | E164: Gasturbine | F164: D290 | G164: 03.07.1996 | H164: CCGT | I164: 45.153 | J164: 18897.95085 | K164: 31.47463602
C165: BNA0207 | D165: DREWAG Stadtwerke Dresden GmbH | E165: HKW Dresden-Nossener Brücke | F165: HKW Dresden-Nossener Brücke (3 GT + 1 DT, Sammelschiene) | G165: 28.09.1995 | H165: CCGT | I165: 226.2 | J165: 19124.15085 | K165: 31.73528502
C166: BNA0755b | D166: Kraftwerk Obernburg GmbH | E166: Obernburg | F166: 1 | G166: 01.01.1995 | H166: CCGT | I166: 52.2 | J166: 19176.35086 | K166: 31.73528502
C167: BNA1185 | D167: Pfeifer & Langen GmbH & Co. KG | E167: P&L Werk Könnern | F167: Kessel 1 und 2 | G167: 31.03.2014 | H167: Lignite | I167: 17.661 | J167: 19194.01186 | K167: 31.91918819
C168: BNA0088a | D168: Solvay Chemicals GmbH | E168: Industriekraftwerk Bernburg (IKB) | G168: 30.12.1994 | H168: CCGT | I168: 122.235 | J168: 19316.24686 | K168: 32.00050682
C169: BNA0130 | D169: Uniper Kraftwerke GmbH | E169: Kirchmöser | G169: 01.01.1994 | H169: CCGT | I169: 139.2 | J169: 19455.44686 | K169: 32.00050682
C170: BNA0593 | D170: InfraLeuna GmbH | E170: ILK-GuD | F170: GT1 | G170: 01.07.1994 | H170: CCGT | I170: 30.45 | J170: 19485.89686 | K170: 32.00050682
C171: BNA0594 | D171: TOTAL Raffinerie Mitteldeutschland GmbH | E171: ILK-GuD | F171: GT2 | G171: 01.07.1994 | H171: CCGT | I171: 30.45 | J171: 19516.34686 | K171: 32.00050682
C172: BNA0595 | D172: InfraLeuna GmbH | E172: ILK-GuD | F172: GT3 | G172: 01.07.1994 | H172: CCGT | I172: 32.19 | J172: 19548.53686 | K172: 32.00050682
C173: BNA0893 | D173: BASF Schwarzheide GmbH | E173: GuD Schwarzheide | G173: 01.10.1994 | H173: CCGT | I173: 106.14 | J173: 19654.67686 | K173: 32.00050682
C174: BNA1164 | D174: Pfeifer & Langen GmbH & Co. KG | E174: P&L Werk Jülich | F174: Kessel 5 | G174: 15.09.2013 | H174: Lignite | I174: 20.2014 | J174: 19674.87826 | K174: 32.08738404
C175: BNA1401a | D175: RWE Power AG | E175: BoA 2 | F175: Neurath F | G175: 08.07.2012 | H175: Lignite | I175: 922.2 | J175: 20597.07826 | K175: 32.25746269
C176: BNA1401b | D176: RWE Power AG | E176: BoA 3 | F176: Neurath G | G176: 03.08.2012 | H176: Lignite | I176: 922.2 | J176: 21519.27826 | K176: 32.25746269
C177: BNA1404 | D177: Lausitz Energie Kraftwerke AG | E177: Boxberg | F177: R | G177: 06.11.2012 | H177: Lignite | I177: 556.8 | J177: 22076.07826 | K177: 32.25746269
C178: BNA1086 | D178: Heizkraftwerk Würzburg GmbH | E178: Heizkraftwerke an der Friedensbrücke | F178: TSII | G178: 01.01.1993 | H178: CCGT | I178: 21.75 | J178: 22097.82826 | K178: 32.27042281
C179: BNA1329 | D179: Kübler & Niethammer Papierfabrik Kriebstein AG | E179: K&N PFK AG EV | F179: GT / GDT | G179: 02.04.1993 | H179: CCGT | I179: 11.4057 | J179: 22109.23396 | K179: 32.27042281
C180: BNA1523a | D180: Moritz J. Weig GmbH & Co KG | E180: Gemeinschaftskraftwerk Weig | F180: Block 1 (Kessel2, GT 1, DT 2) | G180: 01.01.1992 | H180: CCGT | I180: 9.918 | J180: 22119.15196 | K180: 32.54515873
C181: BNA0179 | D181: eins - energie in sachsen GmbH & Co. KG | E181: HKW Chemnitz Nord II | F181: Block C | G181: 15.06.1990 | H181: Lignite | I181: 78.996 | J181: 22198.14796 | K181: 32.60339623
C182: BNA0543 | D182: RheinEnergie AG | E182: HKW Merkenich | F182: Block 6 | G182: 16.12.2010 | H182: Lignite | I182: 65.511 | J182: 22263.65896 | K182: 32.60339623
C183: BNA0270 | D183: Stadtwerke Flensburg GmbH | E183: Heizkraftwerk FL | F183: Block 11 | G183: 02.06.1992 | H183: Coal | I183: 23.25 | J183: 22286.90896 | K183: 32.73674603
C184: BNA0707 | D184: RWE Power AG | E184: Niederaußem | F184: H | G184: 16.09.1974 | H184: Lignite | I184: 563.76 | J184: 22850.66896 | K184: 32.77931689
C185: BNA0708 | D185: RWE Power AG | E185: Niederaußem | F185: G | G185: 23.10.1974 | H185: Lignite | I185: 546.36 | J185: 23397.02896 | K185: 32.95725191
C186: BNA0597 | D186: InfraLeuna GmbH | E186: ILK-GuD | F186: DT1 | G186: 01.07.1994 | H186: CCGT | I186: 7.569 | J186: 23404.59796 | K186: 33.10961616
C187: BNA0271 | D187: Stadtwerke Flensburg GmbH | E187: Heizkraftwerk FL | F187: Block 10 | G187: 23.01.1989 | H187: Coal | I187: 24.75 | J187: 23429.34796 | K187: 33.60197757
C188: BNA0498 | D188: Infraserv GmbH & Co. Höchst KG | E188: Heizkraftwerk | F188: Block B | G188: 21.08.1989 | H188: Coal | I188: 49.5 | J188: 23478.84796 | K188: 33.60197757
C189: BNA0709 | D189: RWE Power AG | E189: Niederaußem | F189: K | G189: 30.08.2002 | H189: Lignite | I189: 821.28 | J189: 24300.12795 | K189: 34.06916996
C190: BNA0115 | D190: Lausitz Energie Kraftwerke AG | E190: Lippendorf | F190: R | G190: 20.06.2000 | H190: Lignite | I190: 761.25 | J190: 25061.37795 | K190: 34.4576
C191: BNA0124 | D191: Lausitz Energie Kraftwerke AG | E191: Boxberg | F191: Q | G191: 01.10.2000 | H191: Lignite | I191: 745.59 | J191: 25806.96796 | K191: 34.4576
C192: BNA1461 | D192: CropEnergies Bioethanol GmbH Zeitz | G192: 15.01.2005 | H192: Lignite | I192: 15.225 | J192: 25822.19295 | K192: 34.4576
C193: BNA0116 | D193: EnBW Energie Baden-Württemberg AG | E193: Braunkohlekraftwerk Lippendorf | F193: LIP S | G193: 01.12.1999 | H193: Lignite | I193: 761.25 | J193: 26583.44295 | K193: 34.65533199
C194: BNA0183 | D194: Stadtwerke Cottbus mbH | E194: HKW Cottbus | F194: 1 | G194: 16.12.1999 | H194: Lignite | I194: 64.38 | J194: 26647.82295 | K194: 34.65533199
C195: BNA0284 | D195: Stadtwerke Frankfurt (Oder) GmbH | E195: Heizkraftwerk FFO | F195: Block1-GuD-EK | G195: 30.09.1997 | H195: CCGT | I195: 41.76 | J195: 26689.58295 | K195: 34.79097872
C196: BNA0272 | D196: Stadtwerke Flensburg GmbH | E196: Heizkraftwerk FL | F196: Block 9 | G196: 01.10.1985 | H196: Coal | I196: 24.75 | J196: 26714.33295 | K196: 34.8325291
C197: BNA0915 | D197: Lausitz Energie Kraftwerke AG | E197: Schwarze Pumpe | F197: B | G197: 25.05.1998 | H197: Lignite | I197: 652.5 | J197: 27366.83295 | K197: 34.85546559
C198: BNA0914 | D198: Lausitz Energie Kraftwerke AG | E198: Schwarze Pumpe | F198: A | G198: 15.12.1997 | H198: Lignite | I198: 652.5 | J198: 28019.33295 | K198: 35.05804481
C199: BNA0138 | D199: Braunschweiger Versorgungs-AG & Co. KG | E199: HKW-Mitte | F199: Block 1 | G199: 10.07.1984 | H199: Coal | I199: 32.475 | J199: 28051.80795 | K199: 35.15495726
C200: BNA0785 | D200: Lausitz Energie Kraftwerke AG | E200: KW Jänschwalde | F200: A | G200: 01.10.1981 | H200: Lignite | I200: 404.55 | J200: 28456.35795 | K200: 35.26311475
C201: BNA0786 | D201: Lausitz Energie Kraftwerke AG | E201: KW Jänschwalde | F201: B | G201: 29.11.1982 | H201: Lignite | I201: 404.55 | J201: 28860.90795 | K201: 35.26311475
C202: BNA0787 | D202: Lausitz Energie Kraftwerke AG | E202: KW Jänschwalde | F202: C | G202: 01.02.1984 | H202: Lignite | I202: 404.55 | J202: 29265.45795 | K202: 35.26311475
C203: BNA0788 | D203: Lausitz Energie Kraftwerke AG | E203: KW Jänschwalde | F203: D | G203: 06.10.1985 | H203: Lignite | I203: 404.55 | J203: 29670.00795 | K203: 35.26311475
C204: BNA0878 | D204: Uniper Kraftwerke GmbH | E204: Schkopau | F204: A | G204: 01.01.1996 | H204: Lignite | I204: 391.5 | J204: 30061.50795 | K204: 35.26311475
C205: BNA0879 | D205: Uniper Kraftwerke GmbH | E205: Schkopau | F205: B | G205: 01.01.1996 | H205: Lignite | I205: 391.5 | J205: 30453.00795 | K205: 35.26311475
C206: BNA1293a | D206: Martinswerk GmbH | E206: Kraftwerk | F206: K1/TG1 | G206: 01.02.1995 | H206: Lignite | I206: 8.7 | J206: 30461.70795 | K206: 35.47072165
... 340 more rows

Sheet Power Plant List
C3: EWI Merit Order Tool 2021
C5: Power Plant List | W5: =Imprint!F5 -> Version 2021.4_en
C7: The power plant list is based on the power plant list of the Bundesnetzagentur (BNetzA, 2020). The list includes all conventional power plants that were in operation on 01.04.2020. The dark yellow columns are taken from BNetzA (2020) unaltered. The light yellow columns contain additional information based on own assumptions, calculations and other sources. For example, the assumptions on power plant efficiency are largely taken from OPSD (2018). The fields with white backgrounds can be adjusted by the users. For example, power plants can be removed from the merit order and up to 10 new power plants can be added.
C10: Included in the Merit Order? | D10: Power Plant Identification Number of the Federal Network Agency | E10: Company | F10: Name of the Power Plant | G10: Postal Code of the Plant's Location | H10: City of the Power Plant | I10: Street Name and Number of the Power Plant | J10: State | K10: Unit Name | L10: ='Merit Order'!G11 -> Begin of Commercial Electricity Generation | M10: Source of Energy (BNetzA, 2019) | N10: Assumed Primary Source of Energy | O10: Power Plant Type Assignment | P10: Power Plant Technology | Q10: Source Power Plant Technology | R10: Efficiency | S10: Source Efficiency | T10: Net Nominal Capacity (Active Electrical Power) [MW] | U10: ='Merit Order'!I11 -> Mean Available Net Nominal Capacity [MW] | V10: Fuel Price (incl. Transport) [EUR/MWhth] | W10: Marginal Costs [EUR/MWhel]
C11: No | D11: (optional) | E11: (optional) | F11: (optional) | G11: (optional) | H11: (optional) | I11: (optional) | J11: (optional) | K11: (optional) | L11: (optional) | M11: (optional) | N11: (required) | O11: (required) | P11: (optional) | Q11: (optional) | R11: (required) | S11: (optional) | T11: (required) | U11: =IF(ISNUMBER((1-VLOOKUP(O11,Start!$H$33:$I$40,2,FALSE)/100)*T11),(1-VLOOKUP(O11,Start!$H$33:$I$40,2,FALSE)/100)*T11,0) -> 0 | V11: =IF(ISNUMBER(VLOOKUP(N11,Start!$C$9:$D$15,2,FALSE)+VLOOKUP(N11,Start!$C$23:$D$29,2,FALSE)),VLOOKUP(N11,Start!$C$9:$D$15,2,FALSE)+VLOOKUP(N11,Start!$C$23:$D$29,2,FALSE),0) -> 0 | W11: =IF(ISNUMBER((V11/R11)+Start!$D$19*(VLOOKUP(N11,Start!$M$33:$N$39,2,FALSE)/R11)+VLOOKUP(O11,Start!$C$33:$D$40,2,FALSE)),(V11/R11)+Start!$D$19*(VLOOKUP(N11,Start!$M$33:$N$39,2,FALSE)/R11)+VLOOKUP(O11,Start!$C$33:$D$40,2,FALSE),0) -> 0
C12: No | D12: (optional) | E12: (optional) | F12: (optional) | G12: (optional) | H12: (optional) | I12: (optional) | J12: (optional) | K12: (optional) | L12: (optional) | M12: (optional) | N12: (required) | O12: (required) | P12: (optional) | Q12: (optional) | R12: (required) | S12: (optional) | T12: (required) | U12: =IF(ISNUMBER((1-VLOOKUP(O12,Start!$H$33:$I$40,2,FALSE)/100)*T12),(1-VLOOKUP(O12,Start!$H$33:$I$40,2,FALSE)/100)*T12,0) -> 0 | V12: =IF(ISNUMBER(VLOOKUP(N12,Start!$C$9:$D$15,2,FALSE)+VLOOKUP(N12,Start!$C$23:$D$29,2,FALSE)),VLOOKUP(N12,Start!$C$9:$D$15,2,FALSE)+VLOOKUP(N12,Start!$C$23:$D$29,2,FALSE),0) -> 0 | W12: =IF(ISNUMBER((V12/R12)+Start!$D$19*(VLOOKUP(N12,Start!$M$33:$N$39,2,FALSE)/R12)+VLOOKUP(O12,Start!$C$33:$D$40,2,FALSE)),(V12/R12)+Start!$D$19*(VLOOKUP(N12,Start!$M$33:$N$39,2,FALSE)/R12)+VLOOKUP(O12,Start!$C$33:$D$40,2,FALSE),0) -> 0
C13: No | D13: (optional) | E13: (optional) | F13: (optional) | G13: (optional) | H13: (optional) | I13: (optional) | J13: (optional) | K13: (optional) | L13: (optional) | M13: (optional) | N13: (required) | O13: (required) | P13: (optional) | Q13: (optional) | R13: (required) | S13: (optional) | T13: (required) | U13: =IF(ISNUMBER((1-VLOOKUP(O13,Start!$H$33:$I$40,2,FALSE)/100)*T13),(1-VLOOKUP(O13,Start!$H$33:$I$40,2,FALSE)/100)*T13,0) -> 0 | V13: =IF(ISNUMBER(VLOOKUP(N13,Start!$C$9:$D$15,2,FALSE)+VLOOKUP(N13,Start!$C$23:$D$29,2,FALSE)),VLOOKUP(N13,Start!$C$9:$D$15,2,FALSE)+VLOOKUP(N13,Start!$C$23:$D$29,2,FALSE),0) -> 0 | W13: =IF(ISNUMBER((V13/R13)+Start!$D$19*(VLOOKUP(N13,Start!$M$33:$N$39,2,FALSE)/R13)+VLOOKUP(O13,Start!$C$33:$D$40,2,FALSE)),(V13/R13)+Start!$D$19*(VLOOKUP(N13,Start!$M$33:$N$39,2,FALSE)/R13)+VLOOKUP(O13,Start!$C$33:$D$40,2,FALSE),0) -> 0
C14: No | D14: (optional) | E14: (optional) | F14: (optional) | G14: (optional) | H14: (optional) | I14: (optional) | J14: (optional) | K14: (optional) | L14: (optional) | M14: (optional) | N14: (required) | O14: (required) | P14: (optional) | Q14: (optional) | R14: (required) | S14: (optional) | T14: (required) | U14: =IF(ISNUMBER((1-VLOOKUP(O14,Start!$H$33:$I$40,2,FALSE)/100)*T14),(1-VLOOKUP(O14,Start!$H$33:$I$40,2,FALSE)/100)*T14,0) -> 0 | V14: =IF(ISNUMBER(VLOOKUP(N14,Start!$C$9:$D$15,2,FALSE)+VLOOKUP(N14,Start!$C$23:$D$29,2,FALSE)),VLOOKUP(N14,Start!$C$9:$D$15,2,FALSE)+VLOOKUP(N14,Start!$C$23:$D$29,2,FALSE),0) -> 0 | W14: =IF(ISNUMBER((V14/R14)+Start!$D$19*(VLOOKUP(N14,Start!$M$33:$N$39,2,FALSE)/R14)+VLOOKUP(O14,Start!$C$33:$D$40,2,FALSE)),(V14/R14)+Start!$D$19*(VLOOKUP(N14,Start!$M$33:$N$39,2,FALSE)/R14)+VLOOKUP(O14,Start!$C$33:$D$40,2,FALSE),0) -> 0
C15: No | D15: (optional) | E15: (optional) | F15: (optional) | G15: (optional) | H15: (optional) | I15: (optional) | J15: (optional) | K15: (optional) | L15: (optional) | M15: (optional) | N15: (required) | O15: (required) | P15: (optional) | Q15: (optional) | R15: (required) | S15: (optional) | T15: (required) | U15: =IF(ISNUMBER((1-VLOOKUP(O15,Start!$H$33:$I$40,2,FALSE)/100)*T15),(1-VLOOKUP(O15,Start!$H$33:$I$40,2,FALSE)/100)*T15,0) -> 0 | V15: =IF(ISNUMBER(VLOOKUP(N15,Start!$C$9:$D$15,2,FALSE)+VLOOKUP(N15,Start!$C$23:$D$29,2,FALSE)),VLOOKUP(N15,Start!$C$9:$D$15,2,FALSE)+VLOOKUP(N15,Start!$C$23:$D$29,2,FALSE),0) -> 0 | W15: =IF(ISNUMBER((V15/R15)+Start!$D$19*(VLOOKUP(N15,Start!$M$33:$N$39,2,FALSE)/R15)+VLOOKUP(O15,Start!$C$33:$D$40,2,FALSE)),(V15/R15)+Start!$D$19*(VLOOKUP(N15,Start!$M$33:$N$39,2,FALSE)/R15)+VLOOKUP(O15,Start!$C$33:$D$40,2,FALSE),0) -> 0
C16: No | D16: (optional) | E16: (optional) | F16: (optional) | G16: (optional) | H16: (optional) | I16: (optional) | J16: (optional) | K16: (optional) | L16: (optional) | M16: (optional) | N16: (required) | O16: (required) | P16: (optional) | Q16: (optional) | R16: (required) | S16: (optional) | T16: (required) | U16: =IF(ISNUMBER((1-VLOOKUP(O16,Start!$H$33:$I$40,2,FALSE)/100)*T16),(1-VLOOKUP(O16,Start!$H$33:$I$40,2,FALSE)/100)*T16,0) -> 0 | V16: =IF(ISNUMBER(VLOOKUP(N16,Start!$C$9:$D$15,2,FALSE)+VLOOKUP(N16,Start!$C$23:$D$29,2,FALSE)),VLOOKUP(N16,Start!$C$9:$D$15,2,FALSE)+VLOOKUP(N16,Start!$C$23:$D$29,2,FALSE),0) -> 0 | W16: =IF(ISNUMBER((V16/R16)+Start!$D$19*(VLOOKUP(N16,Start!$M$33:$N$39,2,FALSE)/R16)+VLOOKUP(O16,Start!$C$33:$D$40,2,FALSE)),(V16/R16)+Start!$D$19*(VLOOKUP(N16,Start!$M$33:$N$39,2,FALSE)/R16)+VLOOKUP(O16,Start!$C$33:$D$40,2,FALSE),0) -> 0
C17: No | D17: (optional) | E17: (optional) | F17: (optional) | G17: (optional) | H17: (optional) | I17: (optional) | J17: (optional) | K17: (optional) | L17: (optional) | M17: (optional) | N17: (required) | O17: (required) | P17: (optional) | Q17: (optional) | R17: (required) | S17: (optional) | T17: (required) | U17: =IF(ISNUMBER((1-VLOOKUP(O17,Start!$H$33:$I$40,2,FALSE)/100)*T17),(1-VLOOKUP(O17,Start!$H$33:$I$40,2,FALSE)/100)*T17,0) -> 0 | V17: =IF(ISNUMBER(VLOOKUP(N17,Start!$C$9:$D$15,2,FALSE)+VLOOKUP(N17,Start!$C$23:$D$29,2,FALSE)),VLOOKUP(N17,Start!$C$9:$D$15,2,FALSE)+VLOOKUP(N17,Start!$C$23:$D$29,2,FALSE),0) -> 0 | W17: =IF(ISNUMBER((V17/R17)+Start!$D$19*(VLOOKUP(N17,Start!$M$33:$N$39,2,FALSE)/R17)+VLOOKUP(O17,Start!$C$33:$D$40,2,FALSE)),(V17/R17)+Start!$D$19*(VLOOKUP(N17,Start!$M$33:$N$39,2,FALSE)/R17)+VLOOKUP(O17,Start!$C$33:$D$40,2,FALSE),0) -> 0
C18: No | D18: (optional) | E18: (optional) | F18: (optional) | G18: (optional) | H18: (optional) | I18: (optional) | J18: (optional) | K18: (optional) | L18: (optional) | M18: (optional) | N18: (required) | O18: (required) | Q18: (optional) | R18: (required) | S18: (optional) | T18: (required) | U18: =IF(ISNUMBER((1-VLOOKUP(O18,Start!$H$33:$I$40,2,FALSE)/100)*T18),(1-VLOOKUP(O18,Start!$H$33:$I$40,2,FALSE)/100)*T18,0) -> 0 | V18: =IF(ISNUMBER(VLOOKUP(N18,Start!$C$9:$D$15,2,FALSE)+VLOOKUP(N18,Start!$C$23:$D$29,2,FALSE)),VLOOKUP(N18,Start!$C$9:$D$15,2,FALSE)+VLOOKUP(N18,Start!$C$23:$D$29,2,FALSE),0) -> 0 | W18: =IF(ISNUMBER((V18/R18)+Start!$D$19*(VLOOKUP(N18,Start!$M$33:$N$39,2,FALSE)/R18)+VLOOKUP(O18,Start!$C$33:$D$40,2,FALSE)),(V18/R18)+Start!$D$19*(VLOOKUP(N18,Start!$M$33:$N$39,2,FALSE)/R18)+VLOOKUP(O18,Start!$C$33:$D$40,2,FALSE),0) -> 0
C19: No | D19: (optional) | E19: (optional) | F19: (optional) | G19: (optional) | H19: (optional) | I19: (optional) | J19: (optional) | K19: (optional) | L19: (optional) | M19: (optional) | N19: (required) | O19: (required) | P19: (optional) | Q19: (optional) | R19: (required) | S19: (optional) | T19: (required) | U19: =IF(ISNUMBER((1-VLOOKUP(O19,Start!$H$33:$I$40,2,FALSE)/100)*T19),(1-VLOOKUP(O19,Start!$H$33:$I$40,2,FALSE)/100)*T19,0) -> 0 | V19: =IF(ISNUMBER(VLOOKUP(N19,Start!$C$9:$D$15,2,FALSE)+VLOOKUP(N19,Start!$C$23:$D$29,2,FALSE)),VLOOKUP(N19,Start!$C$9:$D$15,2,FALSE)+VLOOKUP(N19,Start!$C$23:$D$29,2,FALSE),0) -> 0 | W19: =IF(ISNUMBER((V19/R19)+Start!$D$19*(VLOOKUP(N19,Start!$M$33:$N$39,2,FALSE)/R19)+VLOOKUP(O19,Start!$C$33:$D$40,2,FALSE)),(V19/R19)+Start!$D$19*(VLOOKUP(N19,Start!$M$33:$N$39,2,FALSE)/R19)+VLOOKUP(O19,Start!$C$33:$D$40,2,FALSE),0) -> 0
C20: No | D20: (optional) | E20: Uniper Kraftwerke GmbH | F20: Datteln | G20: 45711 | H20: Datteln | K20: Datteln 4 | L20: 2020 | M20: Coal | N20: Coal | O20: Coal | P20: Steam turbine | Q20: https://www.uniper.energy/de/datteln-4 | R20: 0.45 | S20: https://www.uniper.energy/de/datteln-4 | T20: 1052 | U20: =IF(ISNUMBER((1-VLOOKUP(O20,Start!$H$33:$I$40,2,FALSE)/100)*T20),(1-VLOOKUP(O20,Start!$H$33:$I$40,2,FALSE)/100)*T20,0) -> 789 | V20: =IF(ISNUMBER(VLOOKUP(N20,Start!$C$9:$D$15,2,FALSE)+VLOOKUP(N20,Start!$C$23:$D$29,2,FALSE)),VLOOKUP(N20,Start!$C$9:$D$15,2,FALSE)+VLOOKUP(N20,Start!$C$23:$D$29,2,FALSE),0) -> 7.5 | W20: =IF(ISNUMBER((V20/R20)+Start!$D$19*(VLOOKUP(N20,Start!$M$33:$N$39,2,FALSE)/R20)+VLOOKUP(O20,Start!$C$33:$D$40,2,FALSE)),(V20/R20)+Start!$D$19*(VLOOKUP(N20,Start!$M$33:$N$39,2,FALSE)/R20)+VLOOKUP(O20,Start!$C$33:$D$40,2,FALSE),0) -> 36.50915556
C21: Yes | D21: BNA0012b | E21: Sappi Alfeld GmbH | F21: Werkskraftwerk Sappi Alfeld | G21: 31061 | H21: Alfeld | I21: Mühlenmarsch 1 | J21: Niedersachsen | K21: Gaskraftwerk | L21: 1947 | M21: Gas | N21: Gas | O21: CCGT | P21: Steam turbine | Q21: OPSD (2018) | R21: 0.3267 | S21: OPSD (2018) | T21: 11 | U21: =(1-VLOOKUP(O21,Start!$H$33:$I$40,2,FALSE)/100)*T21 -> 9.57 | V21: =VLOOKUP(N21,Start!$C$9:$D$15,2,FALSE)+VLOOKUP(N21,Start!$C$23:$D$29,2,FALSE) -> 10.67 | W21: =(V21/R21)+Start!$D$19*(VLOOKUP(N21,Start!$M$33:$N$39,2,FALSE)/R21)+VLOOKUP(O21,Start!$C$33:$D$40,2,FALSE) -> 49.39335782
C22: Yes | D22: BNA0015 | E22: EnBW Energie Baden-Württemberg AG | F22: Heizkraftwerk Altbach/Deizisau | G22: 73776 | H22: Altbach | I22: Industriestraße 11 | J22: Baden-Württemberg | K22: ALT GT E (solo) | L22: 01.01.1997 | M22: Gas | N22: Gas | O22: OCGT | P22: Gas turbine | Q22: OPSD (2018) | R22: 0.3722 | S22: OPSD (2018) | T22: 65 | U22: =(1-VLOOKUP(O22,Start!$H$33:$I$40,2,FALSE)/100)*T22 -> 56.55 | V22: =VLOOKUP(N22,Start!$C$9:$D$15,2,FALSE)+VLOOKUP(N22,Start!$C$23:$D$29,2,FALSE) -> 10.67 | W22: =(V22/R22)+Start!$D$19*(VLOOKUP(N22,Start!$M$33:$N$39,2,FALSE)/R22)+VLOOKUP(O22,Start!$C$33:$D$40,2,FALSE) -> 43.03858141
C23: Yes | D23: BNA0016 | E23: EnBW Energie Baden-Württemberg AG | F23: Heizkraftwerk Altbach/Deizisau | G23: 73776 | H23: Altbach | I23: Industriestraße 11 | J23: Baden-Württemberg | K23: ALT GT A (Solo) | L23: 01.01.1971 | M23: Multiple | N23: Gas | O23: OCGT | P23: Gas turbine | Q23: OPSD (2018) | R23: 0.3046 | S23: OPSD (2018) | T23: 50 | U23: =(1-VLOOKUP(O23,Start!$H$33:$I$40,2,FALSE)/100)*T23 -> 43.5 | V23: =VLOOKUP(N23,Start!$C$9:$D$15,2,FALSE)+VLOOKUP(N23,Start!$C$23:$D$29,2,FALSE) -> 10.67 | W23: =(V23/R23)+Start!$D$19*(VLOOKUP(N23,Start!$M$33:$N$39,2,FALSE)/R23)+VLOOKUP(O23,Start!$C$33:$D$40,2,FALSE) -> 52.36822062
C24: Yes | D24: BNA0017 | E24: EnBW Energie Baden-Württemberg AG | F24: Heizkraftwerk Altbach/Deizisau | G24: 73776 | H24: Altbach | I24: Industriestraße 11 | J24: Baden-Württemberg | K24: ALT GT B | L24: 01.01.1973 | M24: Multiple | N24: Gas | O24: OCGT | P24: Gas turbine | Q24: OPSD (2018) | R24: 0.3098 | S24: OPSD (2018) | T24: 57 | U24: =(1-VLOOKUP(O24,Start!$H$33:$I$40,2,FALSE)/100)*T24 -> 49.59 | V24: =VLOOKUP(N24,Start!$C$9:$D$15,2,FALSE)+VLOOKUP(N24,Start!$C$23:$D$29,2,FALSE) -> 10.67 | W24: =(V24/R24)+Start!$D$19*(VLOOKUP(N24,Start!$M$33:$N$39,2,FALSE)/R24)+VLOOKUP(O24,Start!$C$33:$D$40,2,FALSE) -> 51.50600387
C25: Yes | D25: BNA0018 | E25: EnBW Energie Baden-Württemberg AG | F25: Heizkraftwerk Altbach/Deizisau | G25: 73776 | H25: Altbach | I25: Industriestraße 11 | J25: Baden-Württemberg | K25: ALT GT C | L25: 01.01.1975 | M25: Multiple | N25: Gas | O25: OCGT | P25: Gas turbine | Q25: OPSD (2018) | R25: 0.315 | S25: OPSD (2018) | T25: 81 | U25: =(1-VLOOKUP(O25,Start!$H$33:$I$40,2,FALSE)/100)*T25 -> 70.47 | V25: =VLOOKUP(N25,Start!$C$9:$D$15,2,FALSE)+VLOOKUP(N25,Start!$C$23:$D$29,2,FALSE) -> 10.67 | W25: =(V25/R25)+Start!$D$19*(VLOOKUP(N25,Start!$M$33:$N$39,2,FALSE)/R25)+VLOOKUP(O25,Start!$C$33:$D$40,2,FALSE) -> 50.67225397
C26: Yes | D26: BNA0019 | E26: EnBW Energie Baden-Württemberg AG | F26: Heizkraftwerk Altbach/Deizisau | G26: 73776 | H26: Altbach | I26: Industriestraße 11 | J26: Baden-Württemberg | K26: ALT HKW 2 (DT Solobetrieb) | L26: 01.01.1997 | M26: Coal | N26: Coal | O26: Coal | P26: Steam turbine | Q26: OPSD (2018) | R26: 0.44 | S26: OPSD (2018) | T26: 336 | U26: =(1-VLOOKUP(O26,Start!$H$33:$I$40,2,FALSE)/100)*T26 -> 252 | V26: =VLOOKUP(N26,Start!$C$9:$D$15,2,FALSE)+VLOOKUP(N26,Start!$C$23:$D$29,2,FALSE) -> 7.5 | W26: =(V26/R26)+Start!$D$19*(VLOOKUP(N26,Start!$M$33:$N$39,2,FALSE)/R26)+VLOOKUP(O26,Start!$C$33:$D$40,2,FALSE) -> 37.30936364
C27: Yes | D27: BNA0025 | E27: Suiker Unie GmbH & Co. KG | F27: Kesselhaus Zuckerfabrik | G27: 17389 | H27: Anklam | I27: Bluthsluster Str. 24 | J27: Mecklenburg-Vorpommern | L27: 26.09.1993 | M27: Multiple | N27: Gas | O27: CCGT | P27: Steam turbine | Q27: OPSD (2018) | R27: 0.3773 | S27: OPSD (2018) | T27: 15.1 | U27: =(1-VLOOKUP(O27,Start!$H$33:$I$40,2,FALSE)/100)*T27 -> 13.137 | V27: =VLOOKUP(N27,Start!$C$9:$D$15,2,FALSE)+VLOOKUP(N27,Start!$C$23:$D$29,2,FALSE) -> 10.67 | W27: =(V27/R27)+Start!$D$19*(VLOOKUP(N27,Start!$M$33:$N$39,2,FALSE)/R27)+VLOOKUP(O27,Start!$C$33:$D$40,2,FALSE) -> 42.9703419
C28: Yes | D28: BNA0033 | E28: Stadtwerke Augsburg Energie GmbH | F28: Gasturbine | G28: 86167 | H28: Augsburg | I28: Beim Grenzgraben 10 | J28: Bayern | K28: GT | L28: 15.01.2004 | M28: Gas | N28: Gas | O28: OCGT | P28: Gas turbine | Q28: OPSD (2018) | R28: 0.3904 | S28: OPSD (2018) | T28: 30.7 | U28: =(1-VLOOKUP(O28,Start!$H$33:$I$40,2,FALSE)/100)*T28 -> 26.709 | V28: =VLOOKUP(N28,Start!$C$9:$D$15,2,FALSE)+VLOOKUP(N28,Start!$C$23:$D$29,2,FALSE) -> 10.67 | W28: =(V28/R28)+Start!$D$19*(VLOOKUP(N28,Start!$M$33:$N$39,2,FALSE)/R28)+VLOOKUP(O28,Start!$C$33:$D$40,2,FALSE) -> 41.07879098
C29: Yes | D29: BNA0051 | E29: Cargill Deutschland GmbH | F29: KWK-Anlage Barby | G29: 39249 | H29: Barby | I29: Monplaisirstr. 22 | J29: Sachsen-Anhalt | K29: - | L29: 01.05.1994 | M29: Gas | N29: Gas | O29: CCGT | P29: Steam turbine | Q29: OPSD (2018) | R29: 0.3784 | S29: OPSD (2018) | T29: 17.8 | U29: =(1-VLOOKUP(O29,Start!$H$33:$I$40,2,FALSE)/100)*T29 -> 15.486 | V29: =VLOOKUP(N29,Start!$C$9:$D$15,2,FALSE)+VLOOKUP(N29,Start!$C$23:$D$29,2,FALSE) -> 10.67 | W29: =(V29/R29)+Start!$D$19*(VLOOKUP(N29,Start!$M$33:$N$39,2,FALSE)/R29)+VLOOKUP(O29,Start!$C$33:$D$40,2,FALSE) -> 42.84978858
C30: Yes | D30: BNA0059b | E30: Volkswagen AG | F30: GuD Baunatal, VW Werksgelände | G30: 34225 | H30: Baunatal | J30: Hessen | L30: 29.12.2011 | M30: Gas | N30: Gas | O30: CCGT | P30: Combined cycle | Q30: OPSD (2018) | R30: 0.5895 | S30: OPSD (2018) | T30: 78 | U30: =(1-VLOOKUP(O30,Start!$H$33:$I$40,2,FALSE)/100)*T30 -> 67.86 | V30: =VLOOKUP(N30,Start!$C$9:$D$15,2,FALSE)+VLOOKUP(N30,Start!$C$23:$D$29,2,FALSE) -> 10.67 | W30: =(V30/R30)+Start!$D$19*(VLOOKUP(N30,Start!$M$33:$N$39,2,FALSE)/R30)+VLOOKUP(O30,Start!$C$33:$D$40,2,FALSE) -> 28.04242578
C31: Yes | D31: BNA0067 | E31: STEAG GmbH | F31: Bergkamen | G31: 59192 | H31: Bergkamen | J31: Nordrhein-Westfalen | K31: A | L31: 02.07.1981 | M31: Coal | N31: Coal | O31: Coal | P31: Steam turbine | Q31: OPSD (2018) | R31: 0.3775 | S31: OPSD (2018) | T31: 717 | U31: =(1-VLOOKUP(O31,Start!$H$33:$I$40,2,FALSE)/100)*T31 -> 537.75 | V31: =VLOOKUP(N31,Start!$C$9:$D$15,2,FALSE)+VLOOKUP(N31,Start!$C$23:$D$29,2,FALSE) -> 7.5 | W31: =(V31/R31)+Start!$D$19*(VLOOKUP(N31,Start!$M$33:$N$39,2,FALSE)/R31)+VLOOKUP(O31,Start!$C$33:$D$40,2,FALSE) -> 43.27117881
C32: Yes | D32: BNA0073 | E32: Vattenfall Wärme Berlin AG | F32: Mitte | G32: 10179 | H32: Berlin | I32: Köpenicker Straße 60 | J32: Berlin | K32: GuD Mitte | L32: 30.12.1996 | M32: Gas | N32: Gas | O32: CCGT | P32: Combined cycle | Q32: OPSD (2018) | R32: 0.522 | S32: OPSD (2018) | T32: 444 | U32: =(1-VLOOKUP(O32,Start!$H$33:$I$40,2,FALSE)/100)*T32 -> 386.28 | V32: =VLOOKUP(N32,Start!$C$9:$D$15,2,FALSE)+VLOOKUP(N32,Start!$C$23:$D$29,2,FALSE) -> 10.67 | W32: =(V32/R32)+Start!$D$19*(VLOOKUP(N32,Start!$M$33:$N$39,2,FALSE)/R32)+VLOOKUP(O32,Start!$C$33:$D$40,2,FALSE) -> 31.47463602
C33: Yes | D33: BNA0074 | E33: Vattenfall Wärme Berlin AG | F33: Charlottenburg | G33: 10589 | H33: Berlin | I33: Am Spreebord 5 | J33: Berlin | K33: Charlottenburg | L33: 01.01.1975 | M33: Multiple | N33: Gas | O33: OCGT | P33: Gas turbine | Q33: OPSD (2018) | R33: 0.38 | S33: OPSD (2018) | T33: 144 | U33: =(1-VLOOKUP(O33,Start!$H$33:$I$40,2,FALSE)/100)*T33 -> 125.28 | V33: =VLOOKUP(N33,Start!$C$9:$D$15,2,FALSE)+VLOOKUP(N33,Start!$C$23:$D$29,2,FALSE) -> 10.67 | W33: =(V33/R33)+Start!$D$19*(VLOOKUP(N33,Start!$M$33:$N$39,2,FALSE)/R33)+VLOOKUP(O33,Start!$C$33:$D$40,2,FALSE) -> 42.17568421
C34: Yes | D34: BNA0081 | E34: Vattenfall Wärme Berlin AG | F34: Klingenberg | G34: 10317 | H34: Berlin | I34: Köpenicker Chaussee 42 - 45 | J34: Berlin | K34: Klingenberg | L34: 13.08.1981 | M34: Multiple | N34: Gas | O34: CCGT | P34: Steam turbine | Q34: OPSD (2018) | R34: 0.4037 | S34: OPSD (2018) | T34: 164 | U34: =(1-VLOOKUP(O34,Start!$H$33:$I$40,2,FALSE)/100)*T34 -> 142.68 | V34: =VLOOKUP(N34,Start!$C$9:$D$15,2,FALSE)+VLOOKUP(N34,Start!$C$23:$D$29,2,FALSE) -> 10.67 | W34: =(V34/R34)+Start!$D$19*(VLOOKUP(N34,Start!$M$33:$N$39,2,FALSE)/R34)+VLOOKUP(O34,Start!$C$33:$D$40,2,FALSE) -> 40.25838494
C35: Yes | D35: BNA0083 | E35: Vattenfall Wärme Berlin AG | F35: Wilmersdorf | G35: 14199 | H35: Berlin | I35: Forckenbeckstr. 3 - 6 | J35: Berlin | K35: Wilmersdorf GT2 und GT3 | L35: 01.01.1977 | M35: Petroleum | N35: Oil | O35: Oil | P35: Steam turbine | Q35: OPSD (2018) | R35: 0.3597 | S35: OPSD (2018) | T35: 184 | U35: =(1-VLOOKUP(O35,Start!$H$33:$I$40,2,FALSE)/100)*T35 -> 156.4 | V35: =VLOOKUP(N35,Start!$C$9:$D$15,2,FALSE)+VLOOKUP(N35,Start!$C$23:$D$29,2,FALSE) -> 23.2 | W35: =(V35/R35)+Start!$D$19*(VLOOKUP(N35,Start!$M$33:$N$39,2,FALSE)/R35)+VLOOKUP(O35,Start!$C$33:$D$40,2,FALSE) -> 84.77203225
C36: Yes | D36: BNA0084 | E36: Vattenfall Wärme Berlin AG | F36: Reuter | G36: 13599 | H36: Berlin | I36: Otternbuchtstr. 11 | J36: Berlin | K36: Reuter M | L36: 30.10.1998 | M36: Waste | N36: Waste | O36: Waste | P36: Steam turbine | Q36: OPSD (2018) | R36: 0.33 | S36: OPSD (2018) | T36: 36 | U36: =(1-VLOOKUP(O36,Start!$H$33:$I$40,2,FALSE)/100)*T36 -> 30.6 | V36: =VLOOKUP(N36,Start!$C$9:$D$15,2,FALSE)+VLOOKUP(N36,Start!$C$23:$D$29,2,FALSE) -> 0 | W36: =(V36/R36)+Start!$D$19*(VLOOKUP(N36,Start!$M$33:$N$39,2,FALSE)/R36)+VLOOKUP(O36,Start!$C$33:$D$40,2,FALSE) -> 1
C37: Yes | D37: BNA0085a | E37: Vattenfall Wärme Berlin AG | F37: Moabit | G37: 13353 | H37: Berlin | I37: Friedrich-Krause-Ufer 10- 15 | J37: Berlin | K37: Moabit A | L37: 24.11.1989 | M37: Multiple | N37: Coal | O37: Coal | P37: Steam turbine | Q37: OPSD (2018) | R37: 0.4 | S37: OPSD (2018) | T37: 89 | U37: =(1-VLOOKUP(O37,Start!$H$33:$I$40,2,FALSE)/100)*T37 -> 66.75 | V37: =VLOOKUP(N37,Start!$C$9:$D$15,2,FALSE)+VLOOKUP(N37,Start!$C$23:$D$29,2,FALSE) -> 7.5 | W37: =(V37/R37)+Start!$D$19*(VLOOKUP(N37,Start!$M$33:$N$39,2,FALSE)/R37)+VLOOKUP(O37,Start!$C$33:$D$40,2,FALSE) -> 40.9103
C38: Yes | D38: BNA0085b | E38: Vattenfall Wärme Berlin AG | F38: Moabit | G38: 13353 | H38: Berlin | I38: Friedrich-Krause-Ufer 10- 15 | J38: Berlin | K38: Moabit GT 7 | L38: 30.09.1971 | M38: Petroleum | N38: Oil | O38: Oil | P38: Gas turbine | Q38: OPSD (2018) | R38: 0.3046 | S38: OPSD (2018) | T38: 34 | U38: =(1-VLOOKUP(O38,Start!$H$33:$I$40,2,FALSE)/100)*T38 -> 28.9 | V38: =VLOOKUP(N38,Start!$C$9:$D$15,2,FALSE)+VLOOKUP(N38,Start!$C$23:$D$29,2,FALSE) -> 23.2 | W38: =(V38/R38)+Start!$D$19*(VLOOKUP(N38,Start!$M$33:$N$39,2,FALSE)/R38)+VLOOKUP(O38,Start!$C$33:$D$40,2,FALSE) -> 99.92580433
C39: Yes | D39: BNA0086 | E39: Vattenfall Wärme Berlin AG | F39: Reuter West | G39: 13599 | H39: Berlin | I39: Großer Spreering 5 | J39: Berlin | K39: Reuter West D | L39: 14.12.1987 | M39: Coal | N39: Coal | O39: Coal | P39: Steam turbine | Q39: OPSD (2018) | R39: 0.3925 | S39: OPSD (2018) | T39: 282 | U39: =(1-VLOOKUP(O39,Start!$H$33:$I$40,2,FALSE)/100)*T39 -> 211.5 | V39: =VLOOKUP(N39,Start!$C$9:$D$15,2,FALSE)+VLOOKUP(N39,Start!$C$23:$D$29,2,FALSE) -> 7.5 | W39: =(V39/R39)+Start!$D$19*(VLOOKUP(N39,Start!$M$33:$N$39,2,FALSE)/R39)+VLOOKUP(O39,Start!$C$33:$D$40,2,FALSE) -> 41.66718471
C40: Yes | D40: BNA0087 | E40: Vattenfall Wärme Berlin AG | F40: Reuter West | G40: 13599 | H40: Berlin | I40: Großer Spreering 5 | J40: Berlin | K40: Reuter West E | L40: 04.08.1988 | M40: Coal | N40: Coal | O40: Coal | P40: Steam turbine | Q40: OPSD (2018) | R40: 0.395 | S40: OPSD (2018) | T40: 282 | U40: =(1-VLOOKUP(O40,Start!$H$33:$I$40,2,FALSE)/100)*T40 -> 211.5 | V40: =VLOOKUP(N40,Start!$C$9:$D$15,2,FALSE)+VLOOKUP(N40,Start!$C$23:$D$29,2,FALSE) -> 7.5 | W40: =(V40/R40)+Start!$D$19*(VLOOKUP(N40,Start!$M$33:$N$39,2,FALSE)/R40)+VLOOKUP(O40,Start!$C$33:$D$40,2,FALSE) -> 41.4116962
C41: Yes | D41: BNA0088a | E41: Solvay Chemicals GmbH | F41: Industriekraftwerk Bernburg (IKB) | G41: 6406 | H41: Bernburg | J41: Sachsen-Anhalt | L41: 30.12.1994 | M41: Gas | N41: Gas | O41: CCGT | P41: Combined cycle | Q41: OPSD (2018) | R41: 0.513 | S41: OPSD (2018) | T41: 140.5 | U41: =(1-VLOOKUP(O41,Start!$H$33:$I$40,2,FALSE)/100)*T41 -> 122.235 | V41: =VLOOKUP(N41,Start!$C$9:$D$15,2,FALSE)+VLOOKUP(N41,Start!$C$23:$D$29,2,FALSE) -> 10.67 | W41: =(V41/R41)+Start!$D$19*(VLOOKUP(N41,Start!$M$33:$N$39,2,FALSE)/R41)+VLOOKUP(O41,Start!$C$33:$D$40,2,FALSE) -> 32.00050682
C42: Yes | D42: BNA0088b | E42: Solvay Chemicals GmbH | F42: Dampfturbinenanlage der EBS-Kessel | G42: 6406 | H42: Bernburg | J42: Sachsen-Anhalt | L42: 16.10.2009 | M42: Waste | N42: Waste | O42: Waste | P42: Combined cycle | Q42: OPSD (2018) | R42: 0.33 | S42: OPSD (2018) | T42: 35 | U42: =(1-VLOOKUP(O42,Start!$H$33:$I$40,2,FALSE)/100)*T42 -> 29.75 | V42: =VLOOKUP(N42,Start!$C$9:$D$15,2,FALSE)+VLOOKUP(N42,Start!$C$23:$D$29,2,FALSE) -> 0 | W42: =(V42/R42)+Start!$D$19*(VLOOKUP(N42,Start!$M$33:$N$39,2,FALSE)/R42)+VLOOKUP(O42,Start!$C$33:$D$40,2,FALSE) -> 1
C43: Yes | D43: BNA0097 | E43: MVA Bielefeld-Herford GmbH | F43: MVA Bielefeld | G43: 33609 | H43: Bielefeld | I43: Schelpmilser Weg 30 | J43: Nordrhein-Westfalen | K43: Linien 1 - 3 | L43: 01.07.1981 | M43: Waste | N43: Waste | O43: Waste | P43: Steam turbine | Q43: OPSD (2018) | R43: 0.33 | S43: OPSD (2018) | T43: 34 | U43: =(1-VLOOKUP(O43,Start!$H$33:$I$40,2,FALSE)/100)*T43 -> 28.9 | V43: =VLOOKUP(N43,Start!$C$9:$D$15,2,FALSE)+VLOOKUP(N43,Start!$C$23:$D$29,2,FALSE) -> 0 | W43: =(V43/R43)+Start!$D$19*(VLOOKUP(N43,Start!$M$33:$N$39,2,FALSE)/R43)+VLOOKUP(O43,Start!$C$33:$D$40,2,FALSE) -> 1
C44: Yes | D44: BNA0100 | E44: Stadtwerke Bielefeld GmbH | F44: GuD Kraftwerk Hillegossen | G44: 33697 | H44: Bielefeld | J44: Nordrhein-Westfalen | K44: GuD | L44: 02.01.2005 | M44: Gas | N44: Gas | O44: CCGT | P44: Combined cycle | Q44: OPSD (2018) | R44: 0.5625 | S44: OPSD (2018) | T44: 37.45 | U44: =(1-VLOOKUP(O44,Start!$H$33:$I$40,2,FALSE)/100)*T44 -> 32.5815 | V44: =VLOOKUP(N44,Start!$C$9:$D$15,2,FALSE)+VLOOKUP(N44,Start!$C$23:$D$29,2,FALSE) -> 10.67 | W44: =(V44/R44)+Start!$D$19*(VLOOKUP(N44,Start!$M$33:$N$39,2,FALSE)/R44)+VLOOKUP(O44,Start!$C$33:$D$40,2,FALSE) -> 29.31646222
C45: Yes | D45: BNA0105 | E45: envia THERM GmbH | F45: GuD Bitterfeld | G45: 6749 | H45: Bitterfeld | J45: Sachsen-Anhalt | L45: 04.08.2000 | M45: Gas | N45: Gas | O45: CCGT | P45: Combined cycle | Q45: OPSD (2018) | R45: 0.54 | S45: OPSD (2018) | T45: 106 | U45: =(1-VLOOKUP(O45,Start!$H$33:$I$40,2,FALSE)/100)*T45 -> 92.22 | V45: =VLOOKUP(N45,Start!$C$9:$D$15,2,FALSE)+VLOOKUP(N45,Start!$C$23:$D$29,2,FALSE) -> 10.67 | W45: =(V45/R45)+Start!$D$19*(VLOOKUP(N45,Start!$M$33:$N$39,2,FALSE)/R45)+VLOOKUP(O45,Start!$C$33:$D$40,2,FALSE) -> 30.47548148
C46: Yes | D46: BNA0111 | E46: Stadtwerke Bochum Holding GmbH | F46: HKW Hiltrop | G46: 44805 | H46: Bochum | J46: Nordrhein-Westfalen | L46: 01.12.2013 | M46: Gas | N46: Gas | O46: CCGT | P46: Steam turbine | Q46: OPSD (2018) | R46: 0.3993 | S46: OPSD (2018) | T46: 44 | U46: =(1-VLOOKUP(O46,Start!$H$33:$I$40,2,FALSE)/100)*T46 -> 38.28 | V46: =VLOOKUP(N46,Start!$C$9:$D$15,2,FALSE)+VLOOKUP(N46,Start!$C$23:$D$29,2,FALSE) -> 10.67 | W46: =(V46/R46)+Start!$D$19*(VLOOKUP(N46,Start!$M$33:$N$39,2,FALSE)/R46)+VLOOKUP(O46,Start!$C$33:$D$40,2,FALSE) -> 40.68547458
C47: Yes | D47: BNA0115 | E47: Lausitz Energie Kraftwerke AG | F47: Lippendorf | G47: 4007 | H47: Böhlen | I47: Werkstraße | J47: Sachsen | K47: R | L47: 20.06.2000 | M47: Lignite | N47: Lignite | O47: Lignite | P47: Steam turbine | Q47: OPSD (2018) | R47: 0.4 | S47: OPSD (2018) | T47: 875 | U47: =(1-VLOOKUP(O47,Start!$H$33:$I$40,2,FALSE)/100)*T47 -> 761.25 | V47: =VLOOKUP(N47,Start!$C$9:$D$15,2,FALSE)+VLOOKUP(N47,Start!$C$23:$D$29,2,FALSE) -> 3.1 | W47: =(V47/R47)+Start!$D$19*(VLOOKUP(N47,Start!$M$33:$N$39,2,FALSE)/R47)+VLOOKUP(O47,Start!$C$33:$D$40,2,FALSE) -> 34.4576
C48: Yes | D48: BNA0116 | E48: EnBW Energie Baden-Württemberg AG | F48: Braunkohlekraftwerk Lippendorf | G48: 4564 | H48: Böhlen | I48: Werkstraße | J48: Sachsen | K48: LIP S | L48: 01.12.1999 | M48: Lignite | N48: Lignite | O48: Lignite | P48: Steam turbine | Q48: OPSD (2018) | R48: 0.3976 | S48: OPSD (2018) | T48: 875 | U48: =(1-VLOOKUP(O48,Start!$H$33:$I$40,2,FALSE)/100)*T48 -> 761.25 | V48: =VLOOKUP(N48,Start!$C$9:$D$15,2,FALSE)+VLOOKUP(N48,Start!$C$23:$D$29,2,FALSE) -> 3.1 | W48: =(V48/R48)+Start!$D$19*(VLOOKUP(N48,Start!$M$33:$N$39,2,FALSE)/R48)+VLOOKUP(O48,Start!$C$33:$D$40,2,FALSE) -> 34.65533199
C49: Yes | D49: BNA0117a | E49: Energie- und Wasserversorgung Bonn/Rhein-Sieg GmbH | F49: Heizkraftwerk Karlstraße | G49: 53115 | H49: Bonn | J49: Nordrhein-Westfalen | K49: Heizkraftwerk Karlstraße | L49: 01.07.1990 | M49: Multiple | N49: Waste | O49: Waste | P49: Steam turbine | Q49: OPSD (2018) | R49: 0.33 | S49: OPSD (2018) | T49: 12 | U49: =(1-VLOOKUP(O49,Start!$H$33:$I$40,2,FALSE)/100)*T49 -> 10.2 | V49: =VLOOKUP(N49,Start!$C$9:$D$15,2,FALSE)+VLOOKUP(N49,Start!$C$23:$D$29,2,FALSE) -> 0 | W49: =(V49/R49)+Start!$D$19*(VLOOKUP(N49,Start!$M$33:$N$39,2,FALSE)/R49)+VLOOKUP(O49,Start!$C$33:$D$40,2,FALSE) -> 1
C50: Yes | D50: BNA0117b | E50: Energie- und Wasserversorgung Bonn/Rhein-Sieg GmbH | F50: Heizkraftwerk Karlstraße | G50: 53115 | H50: Bonn | J50: Nordrhein-Westfalen | K50: Heizkraftwerk Karlstraße | L50: 01.11.2013 | M50: Multiple | N50: Gas | O50: CCGT | P50: Steam turbine | Q50: OPSD (2018) | R50: 0.3993 | S50: OPSD (2018) | T50: 95 | U50: =(1-VLOOKUP(O50,Start!$H$33:$I$40,2,FALSE)/100)*T50 -> 82.65 | V50: =VLOOKUP(N50,Start!$C$9:$D$15,2,FALSE)+VLOOKUP(N50,Start!$C$23:$D$29,2,FALSE) -> 10.67 | W50: =(V50/R50)+Start!$D$19*(VLOOKUP(N50,Start!$M$33:$N$39,2,FALSE)/R50)+VLOOKUP(O50,Start!$C$33:$D$40,2,FALSE) -> 40.68547458
C51: Yes | D51: BNA0122 | E51: Lausitz Energie Kraftwerke AG | F51: Boxberg | G51: 2943 | H51: Boxberg | I51: Am Kraftwerk 1 | J51: Sachsen | K51: N | L51: 01.01.1979 | M51: Lignite | N51: Lignite | O51: Lignite | P51: Steam turbine | Q51: OPSD (2018) | R51: 0.3832 | S51: OPSD (2018) | T51: 465 | U51: =(1-VLOOKUP(O51,Start!$H$33:$I$40,2,FALSE)/100)*T51 -> 404.55 | V51: =VLOOKUP(N51,Start!$C$9:$D$15,2,FALSE)+VLOOKUP(N51,Start!$C$23:$D$29,2,FALSE) -> 3.1 | W51: =(V51/R51)+Start!$D$19*(VLOOKUP(N51,Start!$M$33:$N$39,2,FALSE)/R51)+VLOOKUP(O51,Start!$C$33:$D$40,2,FALSE) -> 35.89373695
C52: Yes | D52: BNA0123 | E52: Lausitz Energie Kraftwerke AG | F52: Boxberg | G52: 2943 | H52: Boxberg | I52: Am Kraftwerk 1 | J52: Sachsen | K52: P | L52: 01.07.1980 | M52: Lignite | N52: Lignite | O52: Lignite | P52: Steam turbine | Q52: OPSD (2018) | R52: 0.3856 | S52: OPSD (2018) | T52: 465 | U52: =(1-VLOOKUP(O52,Start!$H$33:$I$40,2,FALSE)/100)*T52 -> 404.55 | V52: =VLOOKUP(N52,Start!$C$9:$D$15,2,FALSE)+VLOOKUP(N52,Start!$C$23:$D$29,2,FALSE) -> 3.1 | W52: =(V52/R52)+Start!$D$19*(VLOOKUP(N52,Start!$M$33:$N$39,2,FALSE)/R52)+VLOOKUP(O52,Start!$C$33:$D$40,2,FALSE) -> 35.68091286
C53: Yes | D53: BNA0124 | E53: Lausitz Energie Kraftwerke AG | F53: Boxberg | G53: 2943 | H53: Boxberg | I53: Am Kraftwerk 1 | J53: Sachsen | K53: Q | L53: 01.10.2000 | M53: Lignite | N53: Lignite | O53: Lignite | P53: Steam turbine | Q53: OPSD (2018) | R53: 0.4 | S53: OPSD (2018) | T53: 857 | U53: =(1-VLOOKUP(O53,Start!$H$33:$I$40,2,FALSE)/100)*T53 -> 745.59 | V53: =VLOOKUP(N53,Start!$C$9:$D$15,2,FALSE)+VLOOKUP(N53,Start!$C$23:$D$29,2,FALSE) -> 3.1 | W53: =(V53/R53)+Start!$D$19*(VLOOKUP(N53,Start!$M$33:$N$39,2,FALSE)/R53)+VLOOKUP(O53,Start!$C$33:$D$40,2,FALSE) -> 34.4576
C54: Yes | D54: BNA0129 | E54: StWB Stadtwerke Brandenburg an der Havel GmbH & Co. KG | F54: HKW | G54: 14772 | H54: Brandenburg | J54: Brandenburg | L54: 1997 | M54: Gas | N54: Gas | O54: CCGT | P54: Steam turbine | Q54: OPSD (2018) | R54: 0.3817 | S54: OPSD (2018) | T54: 36 | U54: =(1-VLOOKUP(O54,Start!$H$33:$I$40,2,FALSE)/100)*T54 -> 31.32 | V54: =VLOOKUP(N54,Start!$C$9:$D$15,2,FALSE)+VLOOKUP(N54,Start!$C$23:$D$29,2,FALSE) -> 10.67 | W54: =(V54/R54)+Start!$D$19*(VLOOKUP(N54,Start!$M$33:$N$39,2,FALSE)/R54)+VLOOKUP(O54,Start!$C$33:$D$40,2,FALSE) -> 42.49229762
C55: Yes | D55: BNA0130 | E55: Uniper Kraftwerke GmbH | F55: Kirchmöser | G55: 14774 | H55: Brandenburg | J55: Brandenburg | L55: 01.01.1994 | M55: Gas | N55: Gas | O55: CCGT | P55: Combined cycle | Q55: OPSD (2018) | R55: 0.513 | S55: OPSD (2018) | T55: 160 | U55: =(1-VLOOKUP(O55,Start!$H$33:$I$40,2,FALSE)/100)*T55 -> 139.2 | V55: =VLOOKUP(N55,Start!$C$9:$D$15,2,FALSE)+VLOOKUP(N55,Start!$C$23:$D$29,2,FALSE) -> 10.67 | W55: =(V55/R55)+Start!$D$19*(VLOOKUP(N55,Start!$M$33:$N$39,2,FALSE)/R55)+VLOOKUP(O55,Start!$C$33:$D$40,2,FALSE) -> 32.00050682
C56: Yes | D56: BNA0135 | E56: Braunschweiger Versorgungs-AG & Co. KG | F56: HKW-Mitte | G56: 38106 | H56: Braunschweig | J56: Niedersachsen | K56: Block 12 | L56: 15.07.1971 | M56: Multiple | N56: Gas | O56: CCGT | P56: Combined cycle | Q56: OPSD (2018) | R56: 0.4095 | S56: OPSD (2018) | T56: 20 | U56: =(1-VLOOKUP(O56,Start!$H$33:$I$40,2,FALSE)/100)*T56 -> 17.4 | V56: =VLOOKUP(N56,Start!$C$9:$D$15,2,FALSE)+VLOOKUP(N56,Start!$C$23:$D$29,2,FALSE) -> 10.67 | W56: =(V56/R56)+Start!$D$19*(VLOOKUP(N56,Start!$M$33:$N$39,2,FALSE)/R56)+VLOOKUP(O56,Start!$C$33:$D$40,2,FALSE) -> 39.70942613
C57: Yes | D57: BNA0136 | E57: Braunschweiger Versorgungs-AG & Co. KG | F57: HKW-Mitte | G57: 38106 | H57: Braunschweig | J57: Niedersachsen | K57: GuD | L57: 30.12.2010 | M57: Multiple | N57: Gas | O57: CCGT | P57: Combined cycle | Q57: OPSD (2018) | R57: 0.585 | S57: OPSD (2018) | T57: 74 | U57: =(1-VLOOKUP(O57,Start!$H$33:$I$40,2,FALSE)/100)*T57 -> 64.38 | V57: =VLOOKUP(N57,Start!$C$9:$D$15,2,FALSE)+VLOOKUP(N57,Start!$C$23:$D$29,2,FALSE) -> 10.67 | W57: =(V57/R57)+Start!$D$19*(VLOOKUP(N57,Start!$M$33:$N$39,2,FALSE)/R57)+VLOOKUP(O57,Start!$C$33:$D$40,2,FALSE) -> 28.24659829
C58: Yes | D58: BNA0137 | E58: Braunschweiger Versorgungs-AG & Co. KG | F58: HKW-Nord | G58: 38112 | H58: Braunschweig | J58: Niedersachsen | K58: GT | L58: 10.05.1965 | M58: Multiple | N58: Gas | O58: OCGT | P58: Gas turbine | Q58: OPSD (2018) | R58: 0.289 | S58: OPSD (2018) | T58: 25 | U58: =(1-VLOOKUP(O58,Start!$H$33:$I$40,2,FALSE)/100)*T58 -> 21.75 | V58: =VLOOKUP(N58,Start!$C$9:$D$15,2,FALSE)+VLOOKUP(N58,Start!$C$23:$D$29,2,FALSE) -> 10.67 | W58: =(V58/R58)+Start!$D$19*(VLOOKUP(N58,Start!$M$33:$N$39,2,FALSE)/R58)+VLOOKUP(O58,Start!$C$33:$D$40,2,FALSE) -> 55.14103806
C59: Yes | D59: BNA0138 | E59: Braunschweiger Versorgungs-AG & Co. KG | F59: HKW-Mitte | G59: 38106 | H59: Braunschweig | J59: Niedersachsen | K59: Block 1 | L59: 10.07.1984 | M59: Multiple | N59: Coal | O59: Coal | P59: Combined cycle | Q59: OPSD (2018) | R59: 0.468 | S59: OPSD (2018) | T59: 43.3 | U59: =(1-VLOOKUP(O59,Start!$H$33:$I$40,2,FALSE)/100)*T59 -> 32.475 | V59: =VLOOKUP(N59,Start!$C$9:$D$15,2,FALSE)+VLOOKUP(N59,Start!$C$23:$D$29,2,FALSE) -> 7.5 | W59: =(V59/R59)+Start!$D$19*(VLOOKUP(N59,Start!$M$33:$N$39,2,FALSE)/R59)+VLOOKUP(O59,Start!$C$33:$D$40,2,FALSE) -> 35.15495726
C60: Yes | D60: BNA0139 | E60: swb Entsorgung GmbH & Co. KG | F60: KW Hafen | G60: 28237 | H60: Bremen | I60: Otavistr. 7-9 | J60: Bremen | K60: MKK | L60: 1905-07-01 | M60: Waste | N60: Waste | O60: Waste | P60: Steam turbine | Q60: OPSD (2018) | R60: 0.33 | S60: OPSD (2018) | T60: 33 | U60: =(1-VLOOKUP(O60,Start!$H$33:$I$40,2,FALSE)/100)*T60 -> 28.05 | V60: =VLOOKUP(N60,Start!$C$9:$D$15,2,FALSE)+VLOOKUP(N60,Start!$C$23:$D$29,2,FALSE) -> 0 | W60: =(V60/R60)+Start!$D$19*(VLOOKUP(N60,Start!$M$33:$N$39,2,FALSE)/R60)+VLOOKUP(O60,Start!$C$33:$D$40,2,FALSE) -> 1
C61: Yes | D61: BNA0141 | E61: swb Erzeugung AG & Co. KG | F61: KW Mittelsbüren | G61: 28237 | H61: Bremen | I61: Auf den Delben 35 | J61: Bremen | K61: GT 3 | L61: 01.01.1975 | M61: Petroleum | N61: Oil | O61: Oil | P61: Gas turbine | Q61: OPSD (2018) | R61: 0.315 | S61: OPSD (2018) | T61: 86 | U61: =(1-VLOOKUP(O61,Start!$H$33:$I$40,2,FALSE)/100)*T61 -> 73.1 | V61: =VLOOKUP(N61,Start!$C$9:$D$15,2,FALSE)+VLOOKUP(N61,Start!$C$23:$D$29,2,FALSE) -> 23.2 | W61: =(V61/R61)+Start!$D$19*(VLOOKUP(N61,Start!$M$33:$N$39,2,FALSE)/R61)+VLOOKUP(O61,Start!$C$33:$D$40,2,FALSE) -> 96.65968254
C62: Yes | D62: BNA0142 | E62: ArcelorMittal Bremen GmbH | F62: KW Mittelsbüren | G62: 28237 | H62: Bremen | I62: Auf den Delben 35 | J62: Bremen | K62: Block 4 | L62: 1975 | M62: other Gases | N62: Gas | O62: CCGT | P62: Steam turbine | Q62: OPSD (2018) | R62: 0.352 | S62: Assumption based on DIW (2014) | T62: 160 | U62: =(1-VLOOKUP(O62,Start!$H$33:$I$40,2,FALSE)/100)*T62 -> 139.2 | V62: =VLOOKUP(N62,Start!$C$9:$D$15,2,FALSE)+VLOOKUP(N62,Start!$C$23:$D$29,2,FALSE) -> 10.67 | W62: =(V62/R62)+Start!$D$19*(VLOOKUP(N62,Start!$M$33:$N$39,2,FALSE)/R62)+VLOOKUP(O62,Start!$C$33:$D$40,2,FALSE) -> 45.95102273
C63: Yes | D63: BNA0144 | E63: swb Erzeugung AG & Co. KG | F63: KW Hastedt | G63: 28207 | H63: Bremen | I63: Hastedter Osterdeich 255 | J63: Bremen | K63: Block 15 | L63: 01.03.2014 | M63: Coal | N63: Coal | O63: Coal | P63: Steam turbine | Q63: OPSD (2018) | R63: 0.46 | S63: OPSD (2018) | T63: 119 | U63: =(1-VLOOKUP(O63,Start!$H$33:$I$40,2,FALSE)/100)*T63 -> 89.25 | V63: =VLOOKUP(N63,Start!$C$9:$D$15,2,FALSE)+VLOOKUP(N63,Start!$C$23:$D$29,2,FALSE) -> 7.5 | W63: =(V63/R63)+Start!$D$19*(VLOOKUP(N63,Start!$M$33:$N$39,2,FALSE)/R63)+VLOOKUP(O63,Start!$C$33:$D$40,2,FALSE) -> 35.74373913
C64: Yes | D64: BNA0146 | E64: swb Erzeugung AG & Co. KG | F64: KW Hafen | G64: 28237 | H64: Bremen | I64: Otavistr. 7-9 | J64: Bremen | K64: Block 6 | L64: 01.12.1979 | M64: Coal | N64: Coal | O64: Coal | P64: Steam turbine | Q64: OPSD (2018) | R64: 0.3725 | S64: OPSD (2018) | T64: 303 | U64: =(1-VLOOKUP(O64,Start!$H$33:$I$40,2,FALSE)/100)*T64 -> 227.25 | V64: =VLOOKUP(N64,Start!$C$9:$D$15,2,FALSE)+VLOOKUP(N64,Start!$C$23:$D$29,2,FALSE) -> 7.5 | W64: =(V64/R64)+Start!$D$19*(VLOOKUP(N64,Start!$M$33:$N$39,2,FALSE)/R64)+VLOOKUP(O64,Start!$C$33:$D$40,2,FALSE) -> 43.83455034
C65: Yes | D65: BNA0147 | E65: ENGIE Deutschland AG | F65: Farge | G65: 28777 | H65: Bremen | I65: Wilhelmshavener Str. 6 | J65: Bremen | K65: Farge | L65: 01.01.1969 | M65: Multiple | N65: Coal | O65: Coal | P65: Steam turbine | Q65: OPSD (2018) | R65: 0.4425 | S65: OPSD (2018) | T65: 350 | U65: =(1-VLOOKUP(O65,Start!$H$33:$I$40,2,FALSE)/100)*T65 -> 262.5 | V65: =VLOOKUP(N65,Start!$C$9:$D$15,2,FALSE)+VLOOKUP(N65,Start!$C$23:$D$29,2,FALSE) -> 7.5 | W65: =(V65/R65)+Start!$D$19*(VLOOKUP(N65,Start!$M$33:$N$39,2,FALSE)/R65)+VLOOKUP(O65,Start!$C$33:$D$40,2,FALSE) -> 37.1059209
C66: Yes | D66: BNA0156b | E66: Egger Holzwerkstoffe Brilon GmbH & Co. KG | F66: Egger Kraftwerk Brilon | G66: 59929 | H66: Brilon | I66: Im Kissen 19 | J66: Nordrhein-Westfalen | K66: Gasturbinen - KWK - Anlage | L66: 01.05.1996 | M66: Gas | N66: Gas | O66: OCGT | P66: Gas turbine | Q66: OPSD (2018) | R66: 0.3696 | S66: OPSD (2018) | T66: 13.5 | U66: =(1-VLOOKUP(O66,Start!$H$33:$I$40,2,FALSE)/100)*T66 -> 11.745 | V66: =VLOOKUP(N66,Start!$C$9:$D$15,2,FALSE)+VLOOKUP(N66,Start!$C$23:$D$29,2,FALSE) -> 10.67 | W66: =(V66/R66)+Start!$D$19*(VLOOKUP(N66,Start!$M$33:$N$39,2,FALSE)/R66)+VLOOKUP(O66,Start!$C$33:$D$40,2,FALSE) -> 43.33430736
C67: Yes | D67: BNA0157 | E67: Preussen Elektra GmbH | F67: Brokdorf | G67: 25576 | H67: Brokdorf | J67: Schleswig-Holstein | K67: KBR | L67: 22.12.1986 | M67: Nuclear | N67: Nuclear | O67: Nuclear | P67: Steam turbine | Q67: OPSD (2018) | R67: 0.33 | S67: OPSD (2018) | T67: 1410 | U67: =(1-VLOOKUP(O67,Start!$H$33:$I$40,2,FALSE)/100)*T67 -> 1311.3 | V67: =VLOOKUP(N67,Start!$C$9:$D$15,2,FALSE)+VLOOKUP(N67,Start!$C$23:$D$29,2,FALSE) -> 5.5 | W67: =(V67/R67)+Start!$D$19*(VLOOKUP(N67,Start!$M$33:$N$39,2,FALSE)/R67)+VLOOKUP(O67,Start!$C$33:$D$40,2,FALSE) -> 17.86666667
C68: Yes | D68: BNA0172a | E68: Wacker Chemie AG | F68: Burghausen 01 - GT | G68: 84489 | H68: Burghausen | I68: Johannes-Hess Straße 24 | J68: Bayern | L68: 27.07.2001 | M68: Gas | N68: Gas | O68: CCGT | P68: Combined cycle | Q68: OPSD (2018) | R68: 0.5445 | S68: OPSD (2018) | T68: 120 | U68: =(1-VLOOKUP(O68,Start!$H$33:$I$40,2,FALSE)/100)*T68 -> 104.4 | V68: =VLOOKUP(N68,Start!$C$9:$D$15,2,FALSE)+VLOOKUP(N68,Start!$C$23:$D$29,2,FALSE) -> 10.67 | W68: =(V68/R68)+Start!$D$19*(VLOOKUP(N68,Start!$M$33:$N$39,2,FALSE)/R68)+VLOOKUP(O68,Start!$C$33:$D$40,2,FALSE) -> 30.23601469
C69: Yes | D69: BNA0172b | E69: Wacker Chemie AG | F69: Burghausen 01 - DT | G69: 84489 | H69: Burghausen | I69: Johannes-Hess Straße 24 | J69: Bayern | L69: 14.05.1979 | M69: Gas | N69: Gas | O69: CCGT | P69: Steam turbine | Q69: OPSD (2018) | R69: 0.3619 | S69: OPSD (2018) | T69: 50 | U69: =(1-VLOOKUP(O69,Start!$H$33:$I$40,2,FALSE)/100)*T69 -> 43.5 | V69: =VLOOKUP(N69,Start!$C$9:$D$15,2,FALSE)+VLOOKUP(N69,Start!$C$23:$D$29,2,FALSE) -> 10.67 | W69: =(V69/R69)+Start!$D$19*(VLOOKUP(N69,Start!$M$33:$N$39,2,FALSE)/R69)+VLOOKUP(O69,Start!$C$33:$D$40,2,FALSE) -> 44.7350373
C70: Yes | D70: BNA0174 | E70: InfraServ GmbH & Co. Gendorf KG | F70: Industriepark Werk Gendorf | G70: 84508 | H70: Burgkirchen | J70: Bayern | L70: 19.07.2002 | M70: Gas | N70: Gas | O70: CCGT | P70: Steam turbine | Q70: OPSD (2018) | R70: 0.3872 | S70: OPSD (2018) | T70: 73.1 | U70: =(1-VLOOKUP(O70,Start!$H$33:$I$40,2,FALSE)/100)*T70 -> 63.597 | V70: =VLOOKUP(N70,Start!$C$9:$D$15,2,FALSE)+VLOOKUP(N70,Start!$C$23:$D$29,2,FALSE) -> 10.67 | W70: =(V70/R70)+Start!$D$19*(VLOOKUP(N70,Start!$M$33:$N$39,2,FALSE)/R70)+VLOOKUP(O70,Start!$C$33:$D$40,2,FALSE) -> 41.91002066
C71: Yes | D71: BNA0177 | E71: eins - energie in sachsen GmbH & Co. KG | F71: HKW Chemnitz Nord II | G71: 9115 | H71: Chemnitz | J71: Sachsen | K71: Block B | L71: 01.09.1988 | M71: Multiple | N71: Lignite | O71: Lignite | P71: Steam turbine | Q71: OPSD (2018) | R71: 0.3712 | S71: OPSD (2018) | T71: 56.8 | U71: =(1-VLOOKUP(O71,Start!$H$33:$I$40,2,FALSE)/100)*T71 -> 49.416 | V71: =VLOOKUP(N71,Start!$C$9:$D$15,2,FALSE)+VLOOKUP(N71,Start!$C$23:$D$29,2,FALSE) -> 3.1 | W71: =(V71/R71)+Start!$D$19*(VLOOKUP(N71,Start!$M$33:$N$39,2,FALSE)/R71)+VLOOKUP(O71,Start!$C$33:$D$40,2,FALSE) -> 36.99913793
C72: Yes | D72: BNA0179 | E72: eins - energie in sachsen GmbH & Co. KG | F72: HKW Chemnitz Nord II | G72: 9116 | H72: Chemnitz | J72: Sachsen | K72: Block C | L72: 15.06.1990 | M72: Multiple | N72: Lignite | O72: Lignite | P72: Steam turbine | Q72: OPSD (2018) | R72: 0.424 | S72: OPSD (2018) | T72: 90.8 | U72: =(1-VLOOKUP(O72,Start!$H$33:$I$40,2,FALSE)/100)*T72 -> 78.996 | V72: =VLOOKUP(N72,Start!$C$9:$D$15,2,FALSE)+VLOOKUP(N72,Start!$C$23:$D$29,2,FALSE) -> 3.1 | W72: =(V72/R72)+Start!$D$19*(VLOOKUP(N72,Start!$M$33:$N$39,2,FALSE)/R72)+VLOOKUP(O72,Start!$C$33:$D$40,2,FALSE) -> 32.60339623
C73: Yes | D73: BNA0183 | E73: Stadtwerke Cottbus mbH | F73: HKW Cottbus | G73: 3052 | H73: Cottbus | J73: Brandenburg | K73: 1 | L73: 16.12.1999 | M73: Multiple | N73: Lignite | O73: Lignite | P73: Steam turbine | Q73: OPSD (2018) | R73: 0.3976 | S73: OPSD (2018) | T73: 74 | U73: =(1-VLOOKUP(O73,Start!$H$33:$I$40,2,FALSE)/100)*T73 -> 64.38 | V73: =VLOOKUP(N73,Start!$C$9:$D$15,2,FALSE)+VLOOKUP(N73,Start!$C$23:$D$29,2,FALSE) -> 3.1 | W73: =(V73/R73)+Start!$D$19*(VLOOKUP(N73,Start!$M$33:$N$39,2,FALSE)/R73)+VLOOKUP(O73,Start!$C$33:$D$40,2,FALSE) -> 34.65533199
C74: Yes | D74: BNA0194 | E74: Fernwärmeversorgungs-GmbH Dessau | F74: Kraftwerk Dessau | G74: 6842 | H74: Dessau-Roßlau | J74: Sachsen-Anhalt | L74: 01.01.1996 | M74: Gas | N74: Gas | O74: CCGT | P74: Steam turbine | Q74: own assumption | R74: 0.396 | S74: Assumption based on DIW (2014) | T74: 39 | U74: =(1-VLOOKUP(O74,Start!$H$33:$I$40,2,FALSE)/100)*T74 -> 33.93 | V74: =VLOOKUP(N74,Start!$C$9:$D$15,2,FALSE)+VLOOKUP(N74,Start!$C$23:$D$29,2,FALSE) -> 10.67 | W74: =(V74/R74)+Start!$D$19*(VLOOKUP(N74,Start!$M$33:$N$39,2,FALSE)/R74)+VLOOKUP(O74,Start!$C$33:$D$40,2,FALSE) -> 41.0120202
C75: Yes | D75: BNA0196 | E75: Mitteldeutsche Braunkohlengesellschaft mbH | F75: Deuben | G75: 6682 | H75: Teuchern | J75: Sachsen-Anhalt | L75: 09.10.1936 | M75: Lignite | N75: Lignite | O75: Lignite | P75: Steam turbine | Q75: OPSD (2018) | R75: 0.2464 | S75: OPSD (2018) | T75: 67 | U75: =(1-VLOOKUP(O75,Start!$H$33:$I$40,2,FALSE)/100)*T75 -> 58.29 | V75: =VLOOKUP(N75,Start!$C$9:$D$15,2,FALSE)+VLOOKUP(N75,Start!$C$23:$D$29,2,FALSE) -> 3.1 | W75: =(V75/R75)+Start!$D$19*(VLOOKUP(N75,Start!$M$33:$N$39,2,FALSE)/R75)+VLOOKUP(O75,Start!$C$33:$D$40,2,FALSE) -> 54.87792208
C76: Yes | D76: BNA0199 | E76: RWE Generation SE | F76: Dormagen | G76: 41539 | H76: Dormagen | J76: Nordrhein-Westfalen | K76: GuD | L76: 01.07.2000 | M76: Gas | N76: Gas | O76: CCGT | P76: Combined cycle | Q76: OPSD (2018) | R76: 0.54 | S76: OPSD (2018) | T76: 586 | U76: =(1-VLOOKUP(O76,Start!$H$33:$I$40,2,FALSE)/100)*T76 -> 509.82 | V76: =VLOOKUP(N76,Start!$C$9:$D$15,2,FALSE)+VLOOKUP(N76,Start!$C$23:$D$29,2,FALSE) -> 10.67 | W76: =(V76/R76)+Start!$D$19*(VLOOKUP(N76,Start!$M$33:$N$39,2,FALSE)/R76)+VLOOKUP(O76,Start!$C$33:$D$40,2,FALSE) -> 30.47548148
C77: Yes | D77: BNA0202 | E77: RWE Generation SE | F77: Dortmund | G77: 44143 | H77: Dortmund | J77: Nordrhein-Westfalen | K77: KDO | L77: 22.03.2004 | M77: Gas | N77: Gas | O77: CCGT | P77: Steam turbine | Q77: OPSD (2018) | R77: 0.3894 | S77: OPSD (2018) | T77: 26 | U77: =(1-VLOOKUP(O77,Start!$H$33:$I$40,2,FALSE)/100)*T77 -> 22.62 | V77: =VLOOKUP(N77,Start!$C$9:$D$15,2,FALSE)+VLOOKUP(N77,Start!$C$23:$D$29,2,FALSE) -> 10.67 | W77: =(V77/R77)+Start!$D$19*(VLOOKUP(N77,Start!$M$33:$N$39,2,FALSE)/R77)+VLOOKUP(O77,Start!$C$33:$D$40,2,FALSE) -> 41.68171546
C78: Yes | D78: BNA0207 | E78: DREWAG Stadtwerke Dresden GmbH | F78: HKW Dresden-Nossener Brücke | G78: 1169 | H78: Dresden | I78: Oederaner Str. 21 - 25 | J78: Sachsen | K78: HKW Dresden-Nossener Brücke (3 GT + 1 DT, Sammelschiene) | L78: 28.09.1995 | M78: Multiple | N78: Gas | O78: CCGT | P78: Combined cycle | Q78: OPSD (2018) | R78: 0.5175 | S78: OPSD (2018) | T78: 260 | U78: =(1-VLOOKUP(O78,Start!$H$33:$I$40,2,FALSE)/100)*T78 -> 226.2 | V78: =VLOOKUP(N78,Start!$C$9:$D$15,2,FALSE)+VLOOKUP(N78,Start!$C$23:$D$29,2,FALSE) -> 10.67 | W78: =(V78/R78)+Start!$D$19*(VLOOKUP(N78,Start!$M$33:$N$39,2,FALSE)/R78)+VLOOKUP(O78,Start!$C$33:$D$40,2,FALSE) -> 31.73528502
C79: Yes | D79: BNA0213 | E79: Stadtwerke Duisburg AG | F79: HKW III/A | G79: 47249 | H79: Duisburg | I79: Wanheimer Straße 439-454 | J79: Nordrhein-Westfalen | K79: HKW III/A | L79: 01.01.2002 | M79: Multiple | N79: Gas | O79: CCGT | P79: Steam turbine | Q79: OPSD (2018) | R79: 0.3872 | S79: OPSD (2018) | T79: 40 | U79: =(1-VLOOKUP(O79,Start!$H$33:$I$40,2,FALSE)/100)*T79 -> 34.8 | V79: =VLOOKUP(N79,Start!$C$9:$D$15,2,FALSE)+VLOOKUP(N79,Start!$C$23:$D$29,2,FALSE) -> 10.67 | W79: =(V79/R79)+Start!$D$19*(VLOOKUP(N79,Start!$M$33:$N$39,2,FALSE)/R79)+VLOOKUP(O79,Start!$C$33:$D$40,2,FALSE) -> 41.91002066
C80: Yes | D80: BNA0214 | E80: Stadtwerke Duisburg AG | F80: HKW III/B | G80: 47249 | H80: Duisburg | I80: Wanheimer Straße 439-454 | J80: Nordrhein-Westfalen | K80: HKW III/B | L80: 24.10.2005 | M80: Multiple | N80: Gas | O80: CCGT | P80: Combined cycle | Q80: OPSD (2018) | R80: 0.5625 | S80: OPSD (2018) | T80: 234 | U80: =(1-VLOOKUP(O80,Start!$H$33:$I$40,2,FALSE)/100)*T80 -> 203.58 | V80: =VLOOKUP(N80,Start!$C$9:$D$15,2,FALSE)+VLOOKUP(N80,Start!$C$23:$D$29,2,FALSE) -> 10.67 | W80: =(V80/R80)+Start!$D$19*(VLOOKUP(N80,Start!$M$33:$N$39,2,FALSE)/R80)+VLOOKUP(O80,Start!$C$33:$D$40,2,FALSE) -> 29.31646222
C81: Yes | D81: BNA0216a | E81: Steag GmbH | F81: KW Walsum | G81: 47180 | H81: Duisburg | I81: Dr. Wilhelm-Roelen-Str.129 | J81: Nordrhein-Westfalen | K81: Walsum 9 | L81: 01.06.1988 | M81: Coal | N81: Coal | O81: Coal | P81: Steam turbine | Q81: OPSD (2018) | R81: 0.395 | S81: OPSD (2018) | T81: 370 | U81: =(1-VLOOKUP(O81,Start!$H$33:$I$40,2,FALSE)/100)*T81 -> 277.5 | V81: =VLOOKUP(N81,Start!$C$9:$D$15,2,FALSE)+VLOOKUP(N81,Start!$C$23:$D$29,2,FALSE) -> 7.5 | W81: =(V81/R81)+Start!$D$19*(VLOOKUP(N81,Start!$M$33:$N$39,2,FALSE)/R81)+VLOOKUP(O81,Start!$C$33:$D$40,2,FALSE) -> 41.4116962
C82: Yes | D82: BNA0216b | E82: STEAG-EVN Walsum 10 Kraftwerksgesellsellschaft mbH | F82: KW Walsum | G82: 47180 | H82: Duisburg | I82: Dr. Wilhelm-Roelen-Str.129 | J82: Nordrhein-Westfalen | K82: Walsum 10 | L82: 20.12.2013 | M82: Coal | N82: Coal | O82: Coal | P82: Steam turbine | Q82: OPSD (2018) | R82: 0.4575 | S82: OPSD (2018) | T82: 725 | U82: =(1-VLOOKUP(O82,Start!$H$33:$I$40,2,FALSE)/100)*T82 -> 543.75 | V82: =VLOOKUP(N82,Start!$C$9:$D$15,2,FALSE)+VLOOKUP(N82,Start!$C$23:$D$29,2,FALSE) -> 7.5 | W82: =(V82/R82)+Start!$D$19*(VLOOKUP(N82,Start!$M$33:$N$39,2,FALSE)/R82)+VLOOKUP(O82,Start!$C$33:$D$40,2,FALSE) -> 35.93195628
C83: Yes | D83: BNA0217 | E83: ThyssenKrupp Steel Europe AG | F83: Duisburg Ruhrort 2 | G83: 47166 | H83: Duisburg - Ruhrort | J83: Nordrhein-Westfalen | K83: Block 2 | L83: 01.01.1955 | M83: Other | N83: Gas | O83: CCGT | P83: Steam turbine | Q83: OPSD (2018) | R83: 0.33 | S83: Assumption based on DIW (2014) | T83: 60 | U83: =(1-VLOOKUP(O83,Start!$H$33:$I$40,2,FALSE)/100)*T83 -> 52.2 | V83: =VLOOKUP(N83,Start!$C$9:$D$15,2,FALSE)+VLOOKUP(N83,Start!$C$23:$D$29,2,FALSE) -> 10.67 | W83: =(V83/R83)+Start!$D$19*(VLOOKUP(N83,Start!$M$33:$N$39,2,FALSE)/R83)+VLOOKUP(O83,Start!$C$33:$D$40,2,FALSE) -> 48.91442424
C84: Yes | D84: BNA0218 | E84: ThyssenKrupp Steel Europe AG | F84: Duisburg Ruhrort 3 | G84: 47166 | H84: Duisburg - Ruhrort | J84: Nordrhein-Westfalen | K84: Block 3 | L84: 01.01.1963 | M84: Other | N84: Gas | O84: CCGT | P84: Steam turbine | Q84: OPSD (2018) | R84: 0.341 | S84: Assumption based on DIW (2014) | T84: 95 | U84: =(1-VLOOKUP(O84,Start!$H$33:$I$40,2,FALSE)/100)*T84 -> 82.65 | V84: =VLOOKUP(N84,Start!$C$9:$D$15,2,FALSE)+VLOOKUP(N84,Start!$C$23:$D$29,2,FALSE) -> 10.67 | W84: =(V84/R84)+Start!$D$19*(VLOOKUP(N84,Start!$M$33:$N$39,2,FALSE)/R84)+VLOOKUP(O84,Start!$C$33:$D$40,2,FALSE) -> 47.38492669
C85: Yes | D85: BNA0219 | E85: ThyssenKrupp Steel Europe AG | F85: Duisburg Ruhrort 4 | G85: 47166 | H85: Duisburg - Ruhrort | J85: Nordrhein-Westfalen | K85: Block 4 | L85: 01.01.1968 | M85: Other | N85: Gas | O85: CCGT | P85: Steam turbine | Q85: OPSD (2018) | R85: 0.341 | S85: Assumption based on DIW (2014) | T85: 170 | U85: =(1-VLOOKUP(O85,Start!$H$33:$I$40,2,FALSE)/100)*T85 -> 147.9 | V85: =VLOOKUP(N85,Start!$C$9:$D$15,2,FALSE)+VLOOKUP(N85,Start!$C$23:$D$29,2,FALSE) -> 10.67 | W85: =(V85/R85)+Start!$D$19*(VLOOKUP(N85,Start!$M$33:$N$39,2,FALSE)/R85)+VLOOKUP(O85,Start!$C$33:$D$40,2,FALSE) -> 47.38492669
C86: Yes | D86: BNA0220 | E86: Stadtwerke Düsseldorf AG | F86: GuD | G86: 40221 | H86: Düsseldorf | I86: Auf der Lausward 75 | J86: Nordrhein-Westfalen | K86: AGuD | L86: 28.07.2000 | M86: Gas | N86: Gas | O86: CCGT | P86: Combined cycle | Q86: OPSD (2018) | R86: 0.54 | S86: OPSD (2018) | T86: 100 | U86: =(1-VLOOKUP(O86,Start!$H$33:$I$40,2,FALSE)/100)*T86 -> 87 | V86: =VLOOKUP(N86,Start!$C$9:$D$15,2,FALSE)+VLOOKUP(N86,Start!$C$23:$D$29,2,FALSE) -> 10.67 | W86: =(V86/R86)+Start!$D$19*(VLOOKUP(N86,Start!$M$33:$N$39,2,FALSE)/R86)+VLOOKUP(O86,Start!$C$33:$D$40,2,FALSE) -> 30.47548148
C87: Yes | D87: BNA0221a | E87: Stadtwerke Düsseldorf AG | F87: GT | G87: 40221 | H87: Düsseldorf | I87: Auf der Lausward 75 | J87: Nordrhein-Westfalen | K87: Block E GTE2 | L87: 21.02.1975 | M87: Gas | N87: Gas | O87: OCGT | P87: Gas turbine | Q87: OPSD (2018) | R87: 0.315 | S87: OPSD (2018) | T87: 64.7 | U87: =(1-VLOOKUP(O87,Start!$H$33:$I$40,2,FALSE)/100)*T87 -> 56.289 | V87: =VLOOKUP(N87,Start!$C$9:$D$15,2,FALSE)+VLOOKUP(N87,Start!$C$23:$D$29,2,FALSE) -> 10.67 | W87: =(V87/R87)+Start!$D$19*(VLOOKUP(N87,Start!$M$33:$N$39,2,FALSE)/R87)+VLOOKUP(O87,Start!$C$33:$D$40,2,FALSE) -> 50.67225397
C88: Yes | D88: BNA0221b | E88: Stadtwerke Düsseldorf AG | F88: GT | G88: 40221 | H88: Düsseldorf | I88: Auf der Lausward 75 | J88: Nordrhein-Westfalen | K88: Block E GTE1 | L88: 19.11.1974 | M88: Gas | N88: Gas | O88: OCGT | P88: Gas turbine | Q88: OPSD (2018) | R88: 0.3124 | S88: OPSD (2018) | T88: 66.7 | U88: =(1-VLOOKUP(O88,Start!$H$33:$I$40,2,FALSE)/100)*T88 -> 58.029 | V88: =VLOOKUP(N88,Start!$C$9:$D$15,2,FALSE)+VLOOKUP(N88,Start!$C$23:$D$29,2,FALSE) -> 10.67 | W88: =(V88/R88)+Start!$D$19*(VLOOKUP(N88,Start!$M$33:$N$39,2,FALSE)/R88)+VLOOKUP(O88,Start!$C$33:$D$40,2,FALSE) -> 51.08565941
C89: Yes | D89: BNA0222 | E89: Stadtwerke Düsseldorf AG | F89: GT | G89: 40233 | H89: Düsseldorf | I89: Behrenstraße 85 | J89: Nordrhein-Westfalen | K89: GTKW | L89: 03.08.1972 | M89: Petroleum | N89: Oil | O89: Oil | P89: Gas turbine | Q89: OPSD (2018) | R89: 0.3072 | S89: OPSD (2018) | T89: 86.2 | U89: =(1-VLOOKUP(O89,Start!$H$33:$I$40,2,FALSE)/100)*T89 -> 73.27 | V89: =VLOOKUP(N89,Start!$C$9:$D$15,2,FALSE)+VLOOKUP(N89,Start!$C$23:$D$29,2,FALSE) -> 23.2 | W89: =(V89/R89)+Start!$D$19*(VLOOKUP(N89,Start!$M$33:$N$39,2,FALSE)/R89)+VLOOKUP(O89,Start!$C$33:$D$40,2,FALSE) -> 99.08854167
C90: Yes | D90: BNA0223b | E90: Stadtwerke Düsseldorf AG | F90: DT | G90: 40233 | H90: Düsseldorf | I90: Behrenstraße 85 | J90: Nordrhein-Westfalen | K90: Flingern T1 | L90: 17.04.2000 | M90: Waste | N90: Waste | O90: Waste | P90: Steam turbine | Q90: OPSD (2018) | R90: 0.33 | S90: OPSD (2018) | T90: 53.7 | U90: =(1-VLOOKUP(O90,Start!$H$33:$I$40,2,FALSE)/100)*T90 -> 45.645 | V90: =VLOOKUP(N90,Start!$C$9:$D$15,2,FALSE)+VLOOKUP(N90,Start!$C$23:$D$29,2,FALSE) -> 0 | W90: =(V90/R90)+Start!$D$19*(VLOOKUP(N90,Start!$M$33:$N$39,2,FALSE)/R90)+VLOOKUP(O90,Start!$C$33:$D$40,2,FALSE) -> 1
C91: Yes | D91: BNA0232c | E91: Sappi Ehingen GmbH | F91: Werkskraftwerk Sappi Ehingen | G91: 89584 | H91: Ehingen | I91: Kessel 6 - Turbine 4 | J91: Baden-Württemberg | L91: 07.07.1977 | M91: Gas | N91: Gas | O91: CCGT | P91: Steam turbine | Q91: OPSD (2018) | R91: 0.3597 | S91: OPSD (2018) | T91: 4 | U91: =(1-VLOOKUP(O91,Start!$H$33:$I$40,2,FALSE)/100)*T91 -> 3.48 | V91: =VLOOKUP(N91,Start!$C$9:$D$15,2,FALSE)+VLOOKUP(N91,Start!$C$23:$D$29,2,FALSE) -> 10.67 | W91: =(V91/R91)+Start!$D$19*(VLOOKUP(N91,Start!$M$33:$N$39,2,FALSE)/R91)+VLOOKUP(O91,Start!$C$33:$D$40,2,FALSE) -> 44.99947178
C92: Yes | D92: BNA0233 | E92: Stora Enso Sachsen GmbH | F92: Kombikraftwerk | G92: 4838 | H92: Eilenburg | I92: Am Schanzberg 1 | J92: Sachsen | L92: 01.09.1993 | M92: Multiple | N92: Gas | O92: CCGT | P92: Steam turbine | Q92: OPSD (2018) | R92: 0.3773 | S92: OPSD (2018) | T92: 46.6 | U92: =(1-VLOOKUP(O92,Start!$H$33:$I$40,2,FALSE)/100)*T92 -> 40.542 | V92: =VLOOKUP(N92,Start!$C$9:$D$15,2,FALSE)+VLOOKUP(N92,Start!$C$23:$D$29,2,FALSE) -> 10.67 | W92: =(V92/R92)+Start!$D$19*(VLOOKUP(N92,Start!$M$33:$N$39,2,FALSE)/R92)+VLOOKUP(O92,Start!$C$33:$D$40,2,FALSE) -> 42.9703419
C93: Yes | D93: BNA0237 | E93: Progroup Power 1 GmbH | F93: EBS-Heizkraftwerk | G93: 15890 | H93: Eisenhüttenstadt | J93: Brandenburg | L93: 10.02.2011 | M93: Multiple | N93: Waste | O93: Waste | P93: Steam turbine | Q93: OPSD (2018) | R93: 0.33 | S93: eigene Annahme | T93: 23.5 | U93: =(1-VLOOKUP(O93,Start!$H$33:$I$40,2,FALSE)/100)*T93 -> 19.975 | V93: =VLOOKUP(N93,Start!$C$9:$D$15,2,FALSE)+VLOOKUP(N93,Start!$C$23:$D$29,2,FALSE) -> 0 | W93: =(V93/R93)+Start!$D$19*(VLOOKUP(N93,Start!$M$33:$N$39,2,FALSE)/R93)+VLOOKUP(O93,Start!$C$33:$D$40,2,FALSE) -> 1
C94: Yes | D94: BNA0238a | E94: ArcelorMittal Eisenhüttenstadt GmbH | F94: IKW | G94: 15890 | H94: Eisenhüttenstadt | I94: Werkstraße 1 | J94: Brandenburg | L94: 01.01.1954 | M94: Multiple | N94: Gas | O94: CCGT | P94: Steam turbine | Q94: OPSD (2018) | R94: 0.33 | S94: Assumption based on DIW (2014) | T94: 45 | U94: =(1-VLOOKUP(O94,Start!$H$33:$I$40,2,FALSE)/100)*T94 -> 39.15 | V94: =VLOOKUP(N94,Start!$C$9:$D$15,2,FALSE)+VLOOKUP(N94,Start!$C$23:$D$29,2,FALSE) -> 10.67 | W94: =(V94/R94)+Start!$D$19*(VLOOKUP(N94,Start!$M$33:$N$39,2,FALSE)/R94)+VLOOKUP(O94,Start!$C$33:$D$40,2,FALSE) -> 48.91442424
C95: Yes | D95: BNA0238b | E95: ArcelorMittal Eisenhüttenstadt GmbH | F95: IKW | G95: 15890 | H95: Eisenhüttenstadt | I95: Werkstraße 1 | J95: Brandenburg | K95: Block 7 | L95: 2013 | M95: Multiple | N95: Gas | O95: CCGT | P95: Steam turbine | Q95: OPSD (2018) | R95: 0.396 | S95: Assumption based on DIW (2014) | T95: 56 | U95: =(1-VLOOKUP(O95,Start!$H$33:$I$40,2,FALSE)/100)*T95 -> 48.72 | V95: =VLOOKUP(N95,Start!$C$9:$D$15,2,FALSE)+VLOOKUP(N95,Start!$C$23:$D$29,2,FALSE) -> 10.67 | W95: =(V95/R95)+Start!$D$19*(VLOOKUP(N95,Start!$M$33:$N$39,2,FALSE)/R95)+VLOOKUP(O95,Start!$C$33:$D$40,2,FALSE) -> 41.0120202
C96: Yes | D96: BNA0239 | E96: Uniper Kraftwerke GmbH | F96: Huntorf | G96: 26931 | H96: Elsfleth | J96: Niedersachsen | L96: 01.01.1978 | M96: Gas | N96: Gas | O96: OCGT | P96: Gas turbine | Q96: OPSD (2018) | R96: 0.3956 | S96: OPSD (2018) | T96: 321 | U96: =(1-VLOOKUP(O96,Start!$H$33:$I$40,2,FALSE)/100)*T96 -> 279.27 | V96: =VLOOKUP(N96,Start!$C$9:$D$15,2,FALSE)+VLOOKUP(N96,Start!$C$23:$D$29,2,FALSE) -> 10.67 | W96: =(V96/R96)+Start!$D$19*(VLOOKUP(N96,Start!$M$33:$N$39,2,FALSE)/R96)+VLOOKUP(O96,Start!$C$33:$D$40,2,FALSE) -> 40.55197169
C97: Yes | D97: BNA0243 | E97: Palm Power GmbH & Co. KG | F97: HKW Eltmann | G97: 97483 | H97: Eltmann | I97: Industriestraße 23 | J97: Bayern | L97: 28.12.2007 | M97: Gas | N97: Gas | O97: CCGT | P97: Steam turbine | Q97: OPSD (2018) | R97: 0.3927 | S97: OPSD (2018) | T97: 57 | U97: =(1-VLOOKUP(O97,Start!$H$33:$I$40,2,FALSE)/100)*T97 -> 49.59 | V97: =VLOOKUP(N97,Start!$C$9:$D$15,2,FALSE)+VLOOKUP(N97,Start!$C$23:$D$29,2,FALSE) -> 10.67 | W97: =(V97/R97)+Start!$D$19*(VLOOKUP(N97,Start!$M$33:$N$39,2,FALSE)/R97)+VLOOKUP(O97,Start!$C$33:$D$40,2,FALSE) -> 41.34405399
C98: Yes | D98: BNA0251 | E98: Preussen Elektra GmbH | F98: Grohnde | G98: 31857 | H98: Emmerthal | J98: Niedersachsen | K98: KWG | L98: 01.02.1985 | M98: Nuclear | N98: Nuclear | O98: Nuclear | P98: Steam turbine | Q98: OPSD (2018) | R98: 0.33 | S98: OPSD (2018) | T98: 1360 | U98: =(1-VLOOKUP(O98,Start!$H$33:$I$40,2,FALSE)/100)*T98 -> 1264.8 | V98: =VLOOKUP(N98,Start!$C$9:$D$15,2,FALSE)+VLOOKUP(N98,Start!$C$23:$D$29,2,FALSE) -> 5.5 | W98: =(V98/R98)+Start!$D$19*(VLOOKUP(N98,Start!$M$33:$N$39,2,FALSE)/R98)+VLOOKUP(O98,Start!$C$33:$D$40,2,FALSE) -> 17.86666667
C99: Yes | D99: BNA0256a | E99: SWE Energie GmbH | F99: HKW Erfurt-Ost | G99: 99087 | H99: Erfurt | J99: Thüringen | K99: GT1 | L99: 17.12.1999 | M99: Gas | N99: Gas | O99: CCGT | P99: Combined cycle | Q99: OPSD (2018) | R99: 0.5355 | S99: OPSD (2018) | T99: 76.5 | U99: =(1-VLOOKUP(O99,Start!$H$33:$I$40,2,FALSE)/100)*T99 -> 66.555 | V99: =VLOOKUP(N99,Start!$C$9:$D$15,2,FALSE)+VLOOKUP(N99,Start!$C$23:$D$29,2,FALSE) -> 10.67 | W99: =(V99/R99)+Start!$D$19*(VLOOKUP(N99,Start!$M$33:$N$39,2,FALSE)/R99)+VLOOKUP(O99,Start!$C$33:$D$40,2,FALSE) -> 30.71897292
C100: Yes | D100: BNA0256b | E100: SWE Energie GmbH | F100: HKW Erfurt-Ost | G100: 99087 | H100: Erfurt | J100: Thüringen | K100: GT2 | L100: 2014 | M100: Gas | N100: Gas | O100: CCGT | P100: Combined cycle | Q100: OPSD (2018) | R100: 0.603 | S100: OPSD (2018) | T100: 32.6 | U100: =(1-VLOOKUP(O100,Start!$H$33:$I$40,2,FALSE)/100)*T100 -> 28.362 | V100: =VLOOKUP(N100,Start!$C$9:$D$15,2,FALSE)+VLOOKUP(N100,Start!$C$23:$D$29,2,FALSE) -> 10.67 | W100: =(V100/R100)+Start!$D$19*(VLOOKUP(N100,Start!$M$33:$N$39,2,FALSE)/R100)+VLOOKUP(O100,Start!$C$33:$D$40,2,FALSE) -> 27.44819237
C101: Yes | D101: BNA0261a | E101: Erlanger Stadtwerke AG | F101: HKW Erlangen | G101: 91052 | H101: Erlangen | I101: Äußere Bruckerstr. 33 | J101: Bayern | K101: GuD I | L101: 14.09.2005 | M101: Gas | N101: Gas | O101: CCGT | P101: Combined cycle | Q101: OPSD (2018) | R101: 0.5625 | S101: OPSD (2018) | T101: 21.6 | U101: =(1-VLOOKUP(O101,Start!$H$33:$I$40,2,FALSE)/100)*T101 -> 18.792 | V101: =VLOOKUP(N101,Start!$C$9:$D$15,2,FALSE)+VLOOKUP(N101,Start!$C$23:$D$29,2,FALSE) -> 10.67 | W101: =(V101/R101)+Start!$D$19*(VLOOKUP(N101,Start!$M$33:$N$39,2,FALSE)/R101)+VLOOKUP(O101,Start!$C$33:$D$40,2,FALSE) -> 29.31646222
C102: Yes | D102: BNA0261b | E102: Erlanger Stadtwerke AG | F102: HKW Erlangen | G102: 91052 | H102: Erlangen | I102: Äußere Bruckerstr. 33 | J102: Bayern | K102: K6 DT2 | L102: 04.03.1982 | M102: Multiple | N102: Coal | O102: Coal | P102: Steam turbine | Q102: OPSD (2018) | R102: 0.38 | S102: OPSD (2018) | T102: 17.4 | U102: =(1-VLOOKUP(O102,Start!$H$33:$I$40,2,FALSE)/100)*T102 -> 13.05 | V102: =VLOOKUP(N102,Start!$C$9:$D$15,2,FALSE)+VLOOKUP(N102,Start!$C$23:$D$29,2,FALSE) -> 7.5 | W102: =(V102/R102)+Start!$D$19*(VLOOKUP(N102,Start!$M$33:$N$39,2,FALSE)/R102)+VLOOKUP(O102,Start!$C$33:$D$40,2,FALSE) -> 42.99505263
C103: Yes | D103: BNA0261c | E103: Erlanger Stadtwerke AG | F103: HKW Erlangen | G103: 91052 | H103: Erlangen | I103: Äußere Bruckerstr. 33 | J103: Bayern | K103: GuD 2 | L103: 10.02.2014 | M103: Gas | N103: Gas | O103: CCGT | P103: Combined cycle | Q103: OPSD (2018) | R103: 0.603 | S103: OPSD (2018) | T103: 6.7 | U103: =(1-VLOOKUP(O103,Start!$H$33:$I$40,2,FALSE)/100)*T103 -> 5.829 | V103: =VLOOKUP(N103,Start!$C$9:$D$15,2,FALSE)+VLOOKUP(N103,Start!$C$23:$D$29,2,FALSE) -> 10.67 | W103: =(V103/R103)+Start!$D$19*(VLOOKUP(N103,Start!$M$33:$N$39,2,FALSE)/R103)+VLOOKUP(O103,Start!$C$33:$D$40,2,FALSE) -> 27.44819237
C104: Yes | D104: BNA0263 | E104: Preussen Elektra GmbH | F104: Isar 2 | G104: 84051 | H104: Essenbach | J104: Bayern | K104: KKI 2 | L104: 09.04.1988 | M104: Nuclear | N104: Nuclear | O104: Nuclear | P104: Steam turbine | Q104: OPSD (2018) | R104: 0.33 | S104: OPSD (2018) | T104: 1410 | U104: =(1-VLOOKUP(O104,Start!$H$33:$I$40,2,FALSE)/100)*T104 -> 1311.3 | V104: =VLOOKUP(N104,Start!$C$9:$D$15,2,FALSE)+VLOOKUP(N104,Start!$C$23:$D$29,2,FALSE) -> 5.5 | W104: =(V104/R104)+Start!$D$19*(VLOOKUP(N104,Start!$M$33:$N$39,2,FALSE)/R104)+VLOOKUP(O104,Start!$C$33:$D$40,2,FALSE) -> 17.86666667
C105: Yes | D105: BNA0270 | E105: Stadtwerke Flensburg GmbH | F105: Heizkraftwerk FL | G105: 24939 | H105: Flensburg | I105: Batteriestr. 48 | J105: Schleswig-Holstein | K105: Block 11 | L105: 02.06.1992 | M105: Multiple | N105: Coal | O105: Coal | P105: Combined cycle | Q105: OPSD (2018) | R105: 0.504 | S105: OPSD (2018) | T105: 31 | U105: =(1-VLOOKUP(O105,Start!$H$33:$I$40,2,FALSE)/100)*T105 -> 23.25 | V105: =VLOOKUP(N105,Start!$C$9:$D$15,2,FALSE)+VLOOKUP(N105,Start!$C$23:$D$29,2,FALSE) -> 7.5 | W105: =(V105/R105)+Start!$D$19*(VLOOKUP(N105,Start!$M$33:$N$39,2,FALSE)/R105)+VLOOKUP(O105,Start!$C$33:$D$40,2,FALSE) -> 32.73674603
C106: Yes | D106: BNA0271 | E106: Stadtwerke Flensburg GmbH | F106: Heizkraftwerk FL | G106: 24939 | H106: Flensburg | I106: Batteriestr. 48 | J106: Schleswig-Holstein | K106: Block 10 | L106: 23.01.1989 | M106: Multiple | N106: Coal | O106: Coal | P106: Combined cycle | Q106: OPSD (2018) | R106: 0.4905 | S106: OPSD (2018) | T106: 33 | U106: =(1-VLOOKUP(O106,Start!$H$33:$I$40,2,FALSE)/100)*T106 -> 24.75 | V106: =VLOOKUP(N106,Start!$C$9:$D$15,2,FALSE)+VLOOKUP(N106,Start!$C$23:$D$29,2,FALSE) -> 7.5 | W106: =(V106/R106)+Start!$D$19*(VLOOKUP(N106,Start!$M$33:$N$39,2,FALSE)/R106)+VLOOKUP(O106,Start!$C$33:$D$40,2,FALSE) -> 33.60197757
C107: Yes | D107: BNA0272 | E107: Stadtwerke Flensburg GmbH | F107: Heizkraftwerk FL | G107: 24939 | H107: Flensburg | I107: Batteriestr. 48 | J107: Schleswig-Holstein | K107: Block 9 | L107: 01.10.1985 | M107: Multiple | N107: Coal | O107: Coal | P107: Combined cycle | Q107: OPSD (2018) | R107: 0.4725 | S107: OPSD (2018) | T107: 33 | U107: =(1-VLOOKUP(O107,Start!$H$33:$I$40,2,FALSE)/100)*T107 -> 24.75 | V107: =VLOOKUP(N107,Start!$C$9:$D$15,2,FALSE)+VLOOKUP(N107,Start!$C$23:$D$29,2,FALSE) -> 7.5 | W107: =(V107/R107)+Start!$D$19*(VLOOKUP(N107,Start!$M$33:$N$39,2,FALSE)/R107)+VLOOKUP(O107,Start!$C$33:$D$40,2,FALSE) -> 34.8325291
C108: Yes | D108: BNA0284 | E108: Stadtwerke Frankfurt (Oder) GmbH | F108: Heizkraftwerk FFO | G108: 15236 | H108: Frankfurt Oder | J108: Brandenburg | K108: Block1-GuD-EK | L108: 30.09.1997 | M108: Gas | N108: Gas | O108: CCGT | P108: Combustion Engine | Q108: https://www.stadtwerke-ffo.de/presse/artikel/?tx_ttnews%5Btt_news%5D=105&cHash=bc667efe855ba8a3998d92434b06a8b9 | R108: 0.47 | S108: https://powerplants.mandieselturbo.com/docs/librariesprovider7/brochures/v3544g-four-stroke-gas-engine.pdf?sfvrsn=12 | T108: 48 | U108: =(1-VLOOKUP(O108,Start!$H$33:$I$40,2,FALSE)/100)*T108 -> 41.76 | V108: =VLOOKUP(N108,Start!$C$9:$D$15,2,FALSE)+VLOOKUP(N108,Start!$C$23:$D$29,2,FALSE) -> 10.67 | W108: =(V108/R108)+Start!$D$19*(VLOOKUP(N108,Start!$M$33:$N$39,2,FALSE)/R108)+VLOOKUP(O108,Start!$C$33:$D$40,2,FALSE) -> 34.79097872
C109: Yes | D109: BNA0285 | E109: Mainova AG | F109: HKW Niederrad | G109: 60528 | H109: Frankfurt am Main | I109: Lyoner Straße 8 | J109: Hessen | K109: Block 1 | L109: 01.01.2004 | M109: Gas | N109: Gas | O109: CCGT | P109: Steam turbine | Q109: OPSD (2018) | R109: 0.3894 | S109: OPSD (2018) | T109: 70 | U109: =(1-VLOOKUP(O109,Start!$H$33:$I$40,2,FALSE)/100)*T109 -> 60.9 | V109: =VLOOKUP(N109,Start!$C$9:$D$15,2,FALSE)+VLOOKUP(N109,Start!$C$23:$D$29,2,FALSE) -> 10.67 | W109: =(V109/R109)+Start!$D$19*(VLOOKUP(N109,Start!$M$33:$N$39,2,FALSE)/R109)+VLOOKUP(O109,Start!$C$33:$D$40,2,FALSE) -> 41.68171546
C110: Yes | D110: BNA0286 | E110: Mainova AG | F110: HKW West | G110: 60627 | H110: Frankfurt am Main | I110: Gutleutstraße 231 | J110: Hessen | K110: Block 4 | L110: 01.01.1994 | M110: Gas | N110: Gas | O110: CCGT | P110: Steam turbine | Q110: OPSD (2018) | R110: 0.3784 | S110: OPSD (2018) | T110: 99 | U110: =(1-VLOOKUP(O110,Start!$H$33:$I$40,2,FALSE)/100)*T110 -> 86.13 | V110: =VLOOKUP(N110,Start!$C$9:$D$15,2,FALSE)+VLOOKUP(N110,Start!$C$23:$D$29,2,FALSE) -> 10.67 | W110: =(V110/R110)+Start!$D$19*(VLOOKUP(N110,Start!$M$33:$N$39,2,FALSE)/R110)+VLOOKUP(O110,Start!$C$33:$D$40,2,FALSE) -> 42.84978858
C111: Yes | D111: BNA0287a | E111: Mainova AG | F111: MHKW Frankfurt | G111: 60440 | H111: Frankfurt am Main | I111: Heddernheimer Landstraße 158 | J111: Hessen | K111: T 3 (nur alleiniger Betrieb, kein gemeinsamer Betrieb mit T 7 möglich) | L111: 01.01.1969 | M111: Multiple | N111: Waste | O111: Waste | P111: Steam turbine | Q111: OPSD (2018) | R111: 0.33 | S111: OPSD (2018) | T111: 26 | U111: =(1-VLOOKUP(O111,Start!$H$33:$I$40,2,FALSE)/100)*T111 -> 22.1 | V111: =VLOOKUP(N111,Start!$C$9:$D$15,2,FALSE)+VLOOKUP(N111,Start!$C$23:$D$29,2,FALSE) -> 0 | W111: =(V111/R111)+Start!$D$19*(VLOOKUP(N111,Start!$M$33:$N$39,2,FALSE)/R111)+VLOOKUP(O111,Start!$C$33:$D$40,2,FALSE) -> 1
C112: Yes | D112: BNA0287b | E112: Mainova AG | F112: MHKW Frankfurt | G112: 60439 | H112: Frankfurt am Main | I112: Heddernheimer Landstraße 157 | J112: Hessen | K112: T 7 (nur alleiniger Betrieb, kein gemeinsamer Betrieb mit T 3 möglich) | L112: 01.01.2006 | M112: Multiple | N112: Waste | O112: Waste | P112: Steam turbine | Q112: OPSD (2018) | R112: 0.33 | S112: OPSD (2018) | T112: 46.5 | U112: =(1-VLOOKUP(O112,Start!$H$33:$I$40,2,FALSE)/100)*T112 -> 39.525 | V112: =VLOOKUP(N112,Start!$C$9:$D$15,2,FALSE)+VLOOKUP(N112,Start!$C$23:$D$29,2,FALSE) -> 0 | W112: =(V112/R112)+Start!$D$19*(VLOOKUP(N112,Start!$M$33:$N$39,2,FALSE)/R112)+VLOOKUP(O112,Start!$C$33:$D$40,2,FALSE) -> 1
C113: Yes | D113: BNA0289b | E113: Mainova AG | F113: HKW West | G113: 60627 | H113: Frankfurt am Main | I113: Gutleutstraße 231 | J113: Hessen | K113: Block 2 | L113: 01.01.1988 | M113: Multiple | N113: Coal | O113: Coal | P113: Steam turbine | Q113: OPSD (2018) | R113: 0.395 | S113: OPSD (2018) | T113: 61.5 | U113: =(1-VLOOKUP(O113,Start!$H$33:$I$40,2,FALSE)/100)*T113 -> 46.125 | V113: =VLOOKUP(N113,Start!$C$9:$D$15,2,FALSE)+VLOOKUP(N113,Start!$C$23:$D$29,2,FALSE) -> 7.5 | W113: =(V113/R113)+Start!$D$19*(VLOOKUP(N113,Start!$M$33:$N$39,2,FALSE)/R113)+VLOOKUP(O113,Start!$C$33:$D$40,2,FALSE) -> 41.4116962
C114: Yes | D114: BNA0290 | E114: Mainova AG | F114: HKW West | G114: 60627 | H114: Frankfurt am Main | I114: Gutleutstraße 231 | J114: Hessen | K114: Block 3 | L114: 01.01.1989 | M114: Multiple | N114: Coal | O114: Coal | P114: Steam turbine | Q114: OPSD (2018) | R114: 0.3975 | S114: OPSD (2018) | T114: 61.5 | U114: =(1-VLOOKUP(O114,Start!$H$33:$I$40,2,FALSE)/100)*T114 -> 46.125 | V114: =VLOOKUP(N114,Start!$C$9:$D$15,2,FALSE)+VLOOKUP(N114,Start!$C$23:$D$29,2,FALSE) -> 7.5 | W114: =(V114/R114)+Start!$D$19*(VLOOKUP(N114,Start!$M$33:$N$39,2,FALSE)/R114)+VLOOKUP(O114,Start!$C$33:$D$40,2,FALSE) -> 41.15942138
C115: Yes | D115: BNA0292 | E115: RWE Power AG | F115: Frechen/Wachtberg | G115: 50226 | H115: Frechen | J115: Nordrhein-Westfalen | K115: Frechen/Wachtberg | L115: 01.01.1959 | M115: Multiple | N115: Lignite | O115: Lignite | P115: Steam turbine | Q115: OPSD (2018) | R115: 0.3712 | S115: OPSD (2018) | T115: 176 | U115: =(1-VLOOKUP(O115,Start!$H$33:$I$40,2,FALSE)/100)*T115 -> 153.12 | V115: =VLOOKUP(N115,Start!$C$9:$D$15,2,FALSE)+VLOOKUP(N115,Start!$C$23:$D$29,2,FALSE) -> 3.1 | W115: =(V115/R115)+Start!$D$19*(VLOOKUP(N115,Start!$M$33:$N$39,2,FALSE)/R115)+VLOOKUP(O115,Start!$C$33:$D$40,2,FALSE) -> 36.99913793
C116: Yes | D116: BNA0318 | E116: RhönEnergie Fulda GmbH | F116: Kraftwerk Fulda | G116: 36043 | H116: Fulda | J116: Hessen | L116: 01.01.2011 | M116: Petroleum | N116: Oil | O116: Oil | P116: Steam turbine | Q116: OPSD (2018) | R116: 0.3971 | S116: OPSD (2018) | T116: 24.81 | U116: =(1-VLOOKUP(O116,Start!$H$33:$I$40,2,FALSE)/100)*T116 -> 21.0885 | V116: =VLOOKUP(N116,Start!$C$9:$D$15,2,FALSE)+VLOOKUP(N116,Start!$C$23:$D$29,2,FALSE) -> 23.2 | W116: =(V116/R116)+Start!$D$19*(VLOOKUP(N116,Start!$M$33:$N$39,2,FALSE)/R116)+VLOOKUP(O116,Start!$C$33:$D$40,2,FALSE) -> 76.88214556
C117: Yes | D117: BNA0331 | E117: Uniper Kraftwerke GmbH | F117: Scholven | G117: 45896 | H117: Gelsenkirchen | J117: Nordrhein-Westfalen | K117: C | L117: 01.01.1969 | M117: Coal | N117: Coal | O117: Coal | P117: Steam turbine | Q117: OPSD (2018) | R117: 0.3475 | S117: OPSD (2018) | T117: 345 | U117: =(1-VLOOKUP(O117,Start!$H$33:$I$40,2,FALSE)/100)*T117 -> 258.75 | V117: =VLOOKUP(N117,Start!$C$9:$D$15,2,FALSE)+VLOOKUP(N117,Start!$C$23:$D$29,2,FALSE) -> 7.5 | W117: =(V117/R117)+Start!$D$19*(VLOOKUP(N117,Start!$M$33:$N$39,2,FALSE)/R117)+VLOOKUP(O117,Start!$C$33:$D$40,2,FALSE) -> 46.89458993
C118: Yes | D118: BNA0332 | E118: Uniper Kraftwerke GmbH | F118: Scholven | G118: 45896 | H118: Gelsenkirchen | J118: Nordrhein-Westfalen | K118: B | L118: 01.01.1968 | M118: Coal | N118: Coal | O118: Coal | P118: Steam turbine | Q118: OPSD (2018) | R118: 0.345 | S118: OPSD (2018) | T118: 345 | U118: =(1-VLOOKUP(O118,Start!$H$33:$I$40,2,FALSE)/100)*T118 -> 258.75 | V118: =VLOOKUP(N118,Start!$C$9:$D$15,2,FALSE)+VLOOKUP(N118,Start!$C$23:$D$29,2,FALSE) -> 7.5 | W118: =(V118/R118)+Start!$D$19*(VLOOKUP(N118,Start!$M$33:$N$39,2,FALSE)/R118)+VLOOKUP(O118,Start!$C$33:$D$40,2,FALSE) -> 47.22498551
C119: Yes | D119: BNA0336 | E119: Uniper Kraftwerke GmbH | F119: FWK Buer | G119: 45896 | H119: Gelsenkirchen | J119: Nordrhein-Westfalen | L119: 01.01.1985 | M119: Coal | N119: Coal | O119: Coal | P119: Steam turbine | Q119: OPSD (2018) | R119: 0.3875 | S119: OPSD (2018) | T119: 70 | U119: =(1-VLOOKUP(O119,Start!$H$33:$I$40,2,FALSE)/100)*T119 -> 52.5 | V119: =VLOOKUP(N119,Start!$C$9:$D$15,2,FALSE)+VLOOKUP(N119,Start!$C$23:$D$29,2,FALSE) -> 7.5 | W119: =(V119/R119)+Start!$D$19*(VLOOKUP(N119,Start!$M$33:$N$39,2,FALSE)/R119)+VLOOKUP(O119,Start!$C$33:$D$40,2,FALSE) -> 42.18805161
C120: Yes | D120: BNA0354 | E120: Georg-August-Universität Göttingen Stiftung Öffentlichen Rechts | F120: HKW Göttingen | G120: 37075 | H120: Göttingen | I120: Rudolf-Diesel-Straße 1 | J120: Niedersachsen | L120: 01.01.1998 | M120: Multiple | N120: Gas | O120: CCGT | P120: Steam turbine | Q120: OPSD (2018) | R120: 0.3828 | S120: OPSD (2018) | T120: 18.8 | U120: =(1-VLOOKUP(O120,Start!$H$33:$I$40,2,FALSE)/100)*T120 -> 16.356 | V120: =VLOOKUP(N120,Start!$C$9:$D$15,2,FALSE)+VLOOKUP(N120,Start!$C$23:$D$29,2,FALSE) -> 10.67 | W120: =(V120/R120)+Start!$D$19*(VLOOKUP(N120,Start!$M$33:$N$39,2,FALSE)/R120)+VLOOKUP(O120,Start!$C$33:$D$40,2,FALSE) -> 42.37450366
C121: Yes | D121: BNA0360 | E121: Stadtwerke Greifswald GmbH | F121: HKW "Helmshäger Berg" | G121: 17489 | H121: Greifswald | J121: Mecklenburg-Vorpommern | K121: Gasturbine | L121: 01.01.1996 | M121: Gas | N121: Gas | O121: OCGT | P121: Gas turbine | Q121: OPSD (2018) | R121: 0.3696 | S121: OPSD (2018) | T121: 14.7 | U121: =(1-VLOOKUP(O121,Start!$H$33:$I$40,2,FALSE)/100)*T121 -> 12.789 | V121: =VLOOKUP(N121,Start!$C$9:$D$15,2,FALSE)+VLOOKUP(N121,Start!$C$23:$D$29,2,FALSE) -> 10.67 | W121: =(V121/R121)+Start!$D$19*(VLOOKUP(N121,Start!$M$33:$N$39,2,FALSE)/R121)+VLOOKUP(O121,Start!$C$33:$D$40,2,FALSE) -> 43.33430736
C122: Yes | D122: BNA0361 | E122: KGW - Kraftwerk Grenzach-Wyhlen GmbH | F122: Kraftwerk Grenzach-Wyhlen | G122: 79639 | H122: Grenzach-Wyhlen | J122: Baden-Württemberg | L122: 20.12.2017 | M122: Gas | N122: Gas | O122: CCGT | P122: Steam turbine | Q122: OPSD (2018) | R122: 0.4037 | S122: OPSD (2018) | T122: 30 | U122: =(1-VLOOKUP(O122,Start!$H$33:$I$40,2,FALSE)/100)*T122 -> 26.1 | V122: =VLOOKUP(N122,Start!$C$9:$D$15,2,FALSE)+VLOOKUP(N122,Start!$C$23:$D$29,2,FALSE) -> 10.67 | W122: =(V122/R122)+Start!$D$19*(VLOOKUP(N122,Start!$M$33:$N$39,2,FALSE)/R122)+VLOOKUP(O122,Start!$C$33:$D$40,2,FALSE) -> 40.25838494
C123: Yes | D123: BNA0369 | E123: envia THERM GmbH | F123: Spitzenlastkraftwerk Sermuth | G123: 4668 | H123: Großbothen | J123: Sachsen | L123: 16.10.1995 | M123: Petroleum | N123: Oil | O123: Oil | P123: Steam turbine | Q123: OPSD (2018) | R123: 0.3795 | S123: OPSD (2018) | T123: 17 | U123: =(1-VLOOKUP(O123,Start!$H$33:$I$40,2,FALSE)/100)*T123 -> 14.45 | V123: =VLOOKUP(N123,Start!$C$9:$D$15,2,FALSE)+VLOOKUP(N123,Start!$C$23:$D$29,2,FALSE) -> 23.2 | W123: =(V123/R123)+Start!$D$19*(VLOOKUP(N123,Start!$M$33:$N$39,2,FALSE)/R123)+VLOOKUP(O123,Start!$C$33:$D$40,2,FALSE) -> 80.40131752
C124: Yes | D124: BNA0373 | E124: envia THERM GmbH | F124: Spitzenlastkraftwerk Großkayna | G124: 6242 | H124: Großkayna | J124: Sachsen-Anhalt | L124: 03.01.1994 | M124: Petroleum | N124: Oil | O124: Oil | P124: Gas turbine | Q124: OPSD (2018) | R124: 0.3644 | S124: OPSD (2018) | T124: 120 | U124: =(1-VLOOKUP(O124,Start!$H$33:$I$40,2,FALSE)/100)*T124 -> 102 | V124: =VLOOKUP(N124,Start!$C$9:$D$15,2,FALSE)+VLOOKUP(N124,Start!$C$23:$D$29,2,FALSE) -> 23.2 | W124: =(V124/R124)+Start!$D$19*(VLOOKUP(N124,Start!$M$33:$N$39,2,FALSE)/R124)+VLOOKUP(O124,Start!$C$33:$D$40,2,FALSE) -> 83.69154775
C125: Yes | D125: BNA0377 | E125: Uniper Kraftwerke GmbH | F125: Staudinger | G125: 63538 | H125: Großkrotzenburg | J125: Hessen | K125: 5 | L125: 01.01.1992 | M125: Coal | N125: Coal | O125: Coal | P125: Steam turbine | Q125: OPSD (2018) | R125: 0.405 | S125: OPSD (2018) | T125: 510 | U125: =(1-VLOOKUP(O125,Start!$H$33:$I$40,2,FALSE)/100)*T125 -> 382.5 | V125: =VLOOKUP(N125,Start!$C$9:$D$15,2,FALSE)+VLOOKUP(N125,Start!$C$23:$D$29,2,FALSE) -> 7.5 | W125: =(V125/R125)+Start!$D$19*(VLOOKUP(N125,Start!$M$33:$N$39,2,FALSE)/R125)+VLOOKUP(O125,Start!$C$33:$D$40,2,FALSE) -> 40.42128395
C126: Yes | D126: BNA0380 | E126: EEW Energy from Waste Großräschen GmbH | F126: EEW Großräschen | G126: 1983 | H126: Großräschen | J126: Brandenburg | L126: 01.12.2007 | M126: Waste | N126: Waste | O126: Waste | P126: Steam turbine | Q126: OPSD (2018) | R126: 0.33 | S126: OPSD (2018) | T126: 23.3 | U126: =(1-VLOOKUP(O126,Start!$H$33:$I$40,2,FALSE)/100)*T126 -> 19.805 | V126: =VLOOKUP(N126,Start!$C$9:$D$15,2,FALSE)+VLOOKUP(N126,Start!$C$23:$D$29,2,FALSE) -> 0 | W126: =(V126/R126)+Start!$D$19*(VLOOKUP(N126,Start!$M$33:$N$39,2,FALSE)/R126)+VLOOKUP(O126,Start!$C$33:$D$40,2,FALSE) -> 1
C127: Yes | D127: BNA0382 | E127: RWE Power AG | F127: Kernkraft Gundremmingen | G127: 89355 | H127: Gundremmingen | J127: Bayern | K127: C | L127: 02.11.1984 | M127: Nuclear | N127: Nuclear | O127: Nuclear | P127: Steam turbine | Q127: OPSD (2018) | R127: 0.33 | S127: OPSD (2018) | T127: 1288 | U127: =(1-VLOOKUP(O127,Start!$H$33:$I$40,2,FALSE)/100)*T127 -> 1197.84 | V127: =VLOOKUP(N127,Start!$C$9:$D$15,2,FALSE)+VLOOKUP(N127,Start!$C$23:$D$29,2,FALSE) -> 5.5 | W127: =(V127/R127)+Start!$D$19*(VLOOKUP(N127,Start!$M$33:$N$39,2,FALSE)/R127)+VLOOKUP(O127,Start!$C$33:$D$40,2,FALSE) -> 17.86666667
C128: Yes | D128: BNA0386 | E128: Mohn Media Mohndruck GmbH | F128: Energiezentrum Mohn Media | G128: 33334 | H128: Gütersloh | I128: Carl Bertelsmann Straße 161 | J128: Nordrhein-Westfalen | L128: 28.03.1994 | M128: Gas | N128: Gas | O128: CCGT | P128: Steam turbine | Q128: OPSD (2018) | R128: 0.3784 | S128: OPSD (2018) | T128: 25 | U128: =(1-VLOOKUP(O128,Start!$H$33:$I$40,2,FALSE)/100)*T128 -> 21.75 | V128: =VLOOKUP(N128,Start!$C$9:$D$15,2,FALSE)+VLOOKUP(N128,Start!$C$23:$D$29,2,FALSE) -> 10.67 | W128: =(V128/R128)+Start!$D$19*(VLOOKUP(N128,Start!$M$33:$N$39,2,FALSE)/R128)+VLOOKUP(O128,Start!$C$33:$D$40,2,FALSE) -> 42.84978858
C129: Yes | D129: BNA0392a | E129: EVH GmbH | F129: HKW Halle Trotha | G129: 6130 | H129: Halle | I129: Dieselstraße 141 | J129: Sachsen-Anhalt | K129: Block A und B | L129: 27.08.2005 | M129: Gas | N129: Gas | O129: CCGT | P129: Steam turbine | Q129: OPSD (2018) | R129: 0.3905 | S129: OPSD (2018) | T129: 97 | U129: =(1-VLOOKUP(O129,Start!$H$33:$I$40,2,FALSE)/100)*T129 -> 84.39 | V129: =VLOOKUP(N129,Start!$C$9:$D$15,2,FALSE)+VLOOKUP(N129,Start!$C$23:$D$29,2,FALSE) -> 10.67 | W129: =(V129/R129)+Start!$D$19*(VLOOKUP(N129,Start!$M$33:$N$39,2,FALSE)/R129)+VLOOKUP(O129,Start!$C$33:$D$40,2,FALSE) -> 41.56852753
C130: Yes | D130: BNA0392b | E130: Heizkraftwerk Halle-Trotha GmbH | F130: HKW Halle Trotha | G130: 6130 | H130: Halle | I130: Brachwitzer Straße 23 | J130: Sachsen-Anhalt | K130: GuD | L130: 30.01.2013 | M130: Gas | N130: Gas | O130: CCGT | P130: Combined cycle | Q130: OPSD (2018) | R130: 0.5985 | S130: OPSD (2018) | T130: 56.14 | U130: =(1-VLOOKUP(O130,Start!$H$33:$I$40,2,FALSE)/100)*T130 -> 48.8418 | V130: =VLOOKUP(N130,Start!$C$9:$D$15,2,FALSE)+VLOOKUP(N130,Start!$C$23:$D$29,2,FALSE) -> 10.67 | W130: =(V130/R130)+Start!$D$19*(VLOOKUP(N130,Start!$M$33:$N$39,2,FALSE)/R130)+VLOOKUP(O130,Start!$C$33:$D$40,2,FALSE) -> 27.64329156
C131: Yes | D131: BNA0395 | E131: ThyssenKrupp Steel Europe AG | F131: Duisburg Hamborn 3 | G131: 47166 | H131: Hamborn | J131: Nordrhein-Westfalen | K131: Block 3 | L131: 01.01.1958 | M131: Other | N131: Gas | O131: CCGT | P131: Steam turbine | Q131: OPSD (2018) | R131: 0.33 | S131: Assumption based on DIW (2014) | T131: 59 | U131: =(1-VLOOKUP(O131,Start!$H$33:$I$40,2,FALSE)/100)*T131 -> 51.33 | V131: =VLOOKUP(N131,Start!$C$9:$D$15,2,FALSE)+VLOOKUP(N131,Start!$C$23:$D$29,2,FALSE) -> 10.67 | W131: =(V131/R131)+Start!$D$19*(VLOOKUP(N131,Start!$M$33:$N$39,2,FALSE)/R131)+VLOOKUP(O131,Start!$C$33:$D$40,2,FALSE) -> 48.91442424
C132: Yes | D132: BNA0396 | E132: ThyssenKrupp Steel Europe AG | F132: Duisburg Hamborn 4 | G132: 47166 | H132: Hamborn | J132: Nordrhein-Westfalen | K132: Block 4 | L132: 01.01.1976 | M132: Other | N132: Gas | O132: CCGT | P132: Steam turbine | Q132: OPSD (2018) | R132: 0.352 | S132: Assumption based on DIW (2014) | T132: 101 | U132: =(1-VLOOKUP(O132,Start!$H$33:$I$40,2,FALSE)/100)*T132 -> 87.87 | V132: =VLOOKUP(N132,Start!$C$9:$D$15,2,FALSE)+VLOOKUP(N132,Start!$C$23:$D$29,2,FALSE) -> 10.67 | W132: =(V132/R132)+Start!$D$19*(VLOOKUP(N132,Start!$M$33:$N$39,2,FALSE)/R132)+VLOOKUP(O132,Start!$C$33:$D$40,2,FALSE) -> 45.95102273
C133: Yes | D133: BNA0397 | E133: ThyssenKrupp Steel Europe AG | F133: Duisburg Hamborn 5 | G133: 47166 | H133: Hamborn | J133: Nordrhein-Westfalen | K133: Block 5 | L133: 01.01.2003 | M133: Other | N133: Gas | O133: CCGT | P133: Combined cycle | Q133: OPSD (2018) | R133: 0.54 | S133: Assumption based on DIW (2014) | T133: 225 | U133: =(1-VLOOKUP(O133,Start!$H$33:$I$40,2,FALSE)/100)*T133 -> 195.75 | V133: =VLOOKUP(N133,Start!$C$9:$D$15,2,FALSE)+VLOOKUP(N133,Start!$C$23:$D$29,2,FALSE) -> 10.67 | W133: =(V133/R133)+Start!$D$19*(VLOOKUP(N133,Start!$M$33:$N$39,2,FALSE)/R133)+VLOOKUP(O133,Start!$C$33:$D$40,2,FALSE) -> 30.47548148
C134: Yes | D134: BNA0398 | E134: MVR Müllverwertung Rugenberger Damm GmbH & Co. KG | F134: MVR Müllverwertung Rugenberger Damm GmbH & Co. KG | G134: 21129 | H134: Hamburg | I134: Rugenberger Damm 1 | J134: Hamburg | L134: 12.08.1999 | M134: Waste | N134: Waste | O134: Waste | P134: Steam turbine | Q134: OPSD (2018) | R134: 0.33 | S134: OPSD (2018) | T134: 24 | U134: =(1-VLOOKUP(O134,Start!$H$33:$I$40,2,FALSE)/100)*T134 -> 20.4 | V134: =VLOOKUP(N134,Start!$C$9:$D$15,2,FALSE)+VLOOKUP(N134,Start!$C$23:$D$29,2,FALSE) -> 0 | W134: =(V134/R134)+Start!$D$19*(VLOOKUP(N134,Start!$M$33:$N$39,2,FALSE)/R134)+VLOOKUP(O134,Start!$C$33:$D$40,2,FALSE) -> 1
C135: Yes | D135: BNA0400 | E135: Wärme Hamburg GmbH | F135: GuD Tiefstack | G135: 22113 | H135: Hamburg | I135: Andreas-Meyer-Straße 8 | J135: Hamburg | K135: GuD Tiefstack | L135: 02.11.2009 | M135: Gas | N135: Gas | O135: CCGT | P135: Combined cycle | Q135: OPSD (2018) | R135: 0.5805 | S135: OPSD (2018) | T135: 127 | U135: =(1-VLOOKUP(O135,Start!$H$33:$I$40,2,FALSE)/100)*T135 -> 110.49 | V135: =VLOOKUP(N135,Start!$C$9:$D$15,2,FALSE)+VLOOKUP(N135,Start!$C$23:$D$29,2,FALSE) -> 10.67 | W135: =(V135/R135)+Start!$D$19*(VLOOKUP(N135,Start!$M$33:$N$39,2,FALSE)/R135)+VLOOKUP(O135,Start!$C$33:$D$40,2,FALSE) -> 28.45393626
C136: Yes | D136: BNA0401 | E136: ADM Hamburg Aktiengesellschaft | F136: Heizkraftwerk | G136: 21107 | H136: Hamburg | I136: Nippoldstr. 117 | J136: Hamburg | K136: HKW | L136: 01.07.1993 | M136: Gas | N136: Gas | O136: CCGT | P136: Steam turbine | Q136: OPSD (2018) | R136: 0.3773 | S136: OPSD (2018) | T136: 22.5 | U136: =(1-VLOOKUP(O136,Start!$H$33:$I$40,2,FALSE)/100)*T136 -> 19.575 | V136: =VLOOKUP(N136,Start!$C$9:$D$15,2,FALSE)+VLOOKUP(N136,Start!$C$23:$D$29,2,FALSE) -> 10.67 | W136: =(V136/R136)+Start!$D$19*(VLOOKUP(N136,Start!$M$33:$N$39,2,FALSE)/R136)+VLOOKUP(O136,Start!$C$33:$D$40,2,FALSE) -> 42.9703419
C137: Yes | D137: BNA0402 | E137: Wärme Hamburg GmbH | F137: Tiefstack | G137: 22113 | H137: Hamburg | I137: Andreas-Meyer-Straße 8 | J137: Hamburg | K137: Tiefstack | L137: 01.03.1993 | M137: Coal | N137: Coal | O137: Coal | P137: Steam turbine | Q137: OPSD (2018) | R137: 0.4075 | S137: OPSD (2018) | T137: 194 | U137: =(1-VLOOKUP(O137,Start!$H$33:$I$40,2,FALSE)/100)*T137 -> 145.5 | V137: =VLOOKUP(N137,Start!$C$9:$D$15,2,FALSE)+VLOOKUP(N137,Start!$C$23:$D$29,2,FALSE) -> 7.5 | W137: =(V137/R137)+Start!$D$19*(VLOOKUP(N137,Start!$M$33:$N$39,2,FALSE)/R137)+VLOOKUP(O137,Start!$C$33:$D$40,2,FALSE) -> 40.18127607
C138: Yes | D138: BNA0403 | E138: Wärme Hamburg GmbH | F138: Wedel | G138: 22880 | H138: Wedel | I138: Tinsdaler Weg 146 | J138: Schleswig-Holstein | K138: Wedel 2 | L138: 23.07.1962 | M138: Coal | N138: Coal | O138: Coal | P138: Steam turbine | Q138: OPSD (2018) | R138: 0.4075 | S138: OPSD (2018) | T138: 123 | U138: =(1-VLOOKUP(O138,Start!$H$33:$I$40,2,FALSE)/100)*T138 -> 92.25 | V138: =VLOOKUP(N138,Start!$C$9:$D$15,2,FALSE)+VLOOKUP(N138,Start!$C$23:$D$29,2,FALSE) -> 7.5 | W138: =(V138/R138)+Start!$D$19*(VLOOKUP(N138,Start!$M$33:$N$39,2,FALSE)/R138)+VLOOKUP(O138,Start!$C$33:$D$40,2,FALSE) -> 40.18127607
C139: Yes | D139: BNA0404 | E139: Wärme Hamburg GmbH | F139: Wedel | G139: 22880 | H139: Wedel | I139: Tinsdaler Weg 146 | J139: Schleswig-Holstein | K139: Wedel 1 | L139: 01.01.1961 | M139: Coal | N139: Coal | O139: Coal | P139: Steam turbine | Q139: OPSD (2018) | R139: 0.4075 | S139: OPSD (2018) | T139: 137 | U139: =(1-VLOOKUP(O139,Start!$H$33:$I$40,2,FALSE)/100)*T139 -> 102.75 | V139: =VLOOKUP(N139,Start!$C$9:$D$15,2,FALSE)+VLOOKUP(N139,Start!$C$23:$D$29,2,FALSE) -> 7.5 | W139: =(V139/R139)+Start!$D$19*(VLOOKUP(N139,Start!$M$33:$N$39,2,FALSE)/R139)+VLOOKUP(O139,Start!$C$33:$D$40,2,FALSE) -> 40.18127607
C140: Yes | D140: BNA0407 | E140: Enertec Hameln GmbH | F140: Enertec Hameln | G140: 31789 | H140: Hameln | J140: Niedersachsen | K140: Linien 1,3,4 | L140: 07.10.1913 | M140: Waste | N140: Waste | O140: Waste | P140: Steam turbine | Q140: OPSD (2018) | R140: 0.33 | S140: OPSD (2018) | T140: 13.2 | U140: =(1-VLOOKUP(O140,Start!$H$33:$I$40,2,FALSE)/100)*T140 -> 11.22 | V140: =VLOOKUP(N140,Start!$C$9:$D$15,2,FALSE)+VLOOKUP(N140,Start!$C$23:$D$29,2,FALSE) -> 0 | W140: =(V140/R140)+Start!$D$19*(VLOOKUP(N140,Start!$M$33:$N$39,2,FALSE)/R140)+VLOOKUP(O140,Start!$C$33:$D$40,2,FALSE) -> 1
C141: Yes | D141: BNA0410 | E141: Trianel Gaskraftwerk Hamm GmbH & Co. KG | F141: Trianel Gaskraftwerk | G141: 59071 | H141: Hamm | I141: Trianelstraße 1 | J141: Nordrhein-Westfalen | K141: Block 10 | L141: 01.03.2008 | M141: Gas | N141: Gas | O141: CCGT | P141: Combined cycle | Q141: OPSD (2018) | R141: 0.576 | S141: OPSD (2018) | T141: 407 | U141: =(1-VLOOKUP(O141,Start!$H$33:$I$40,2,FALSE)/100)*T141 -> 354.09 | V141: =VLOOKUP(N141,Start!$C$9:$D$15,2,FALSE)+VLOOKUP(N141,Start!$C$23:$D$29,2,FALSE) -> 10.67 | W141: =(V141/R141)+Start!$D$19*(VLOOKUP(N141,Start!$M$33:$N$39,2,FALSE)/R141)+VLOOKUP(O141,Start!$C$33:$D$40,2,FALSE) -> 28.66451389
C142: Yes | D142: BNA0411 | E142: Trianel Gaskraftwerk Hamm GmbH & Co. KG | F142: Trianel Gaskraftwerk | G142: 59071 | H142: Hamm | I142: Trianelstraße 1 | J142: Nordrhein-Westfalen | K142: Block 20 | L142: 01.03.2008 | M142: Gas | N142: Gas | O142: CCGT | P142: Combined cycle | Q142: OPSD (2018) | R142: 0.576 | S142: OPSD (2018) | T142: 410 | U142: =(1-VLOOKUP(O142,Start!$H$33:$I$40,2,FALSE)/100)*T142 -> 356.7 | V142: =VLOOKUP(N142,Start!$C$9:$D$15,2,FALSE)+VLOOKUP(N142,Start!$C$23:$D$29,2,FALSE) -> 10.67 | W142: =(V142/R142)+Start!$D$19*(VLOOKUP(N142,Start!$M$33:$N$39,2,FALSE)/R142)+VLOOKUP(O142,Start!$C$33:$D$40,2,FALSE) -> 28.66451389
C143: Yes | D143: BNA0413c | E143: RWE Generation SE | F143: Westfalen | G143: 59071 | H143: Hamm-Uentrop | J143: Nordrhein-Westfalen | K143: E | L143: 02.07.2014 | M143: Coal | N143: Coal | O143: Coal | P143: Steam turbine | Q143: OPSD (2018) | R143: 0.46 | S143: OPSD (2018) | T143: 763.7 | U143: =(1-VLOOKUP(O143,Start!$H$33:$I$40,2,FALSE)/100)*T143 -> 572.775 | V143: =VLOOKUP(N143,Start!$C$9:$D$15,2,FALSE)+VLOOKUP(N143,Start!$C$23:$D$29,2,FALSE) -> 7.5 | W143: =(V143/R143)+Start!$D$19*(VLOOKUP(N143,Start!$M$33:$N$39,2,FALSE)/R143)+VLOOKUP(O143,Start!$C$33:$D$40,2,FALSE) -> 35.74373913
C144: Yes | D144: BNA0417 | E144: EEW Energy from Waste Hannover GmbH | F144: EEW Energy from Waste Hannover GmbH | G144: 30659 | H144: Hannover | J144: Niedersachsen | K144: Hannover | L144: 01.06.2005 | M144: Waste | N144: Waste | O144: Waste | P144: Steam turbine | Q144: OPSD (2018) | R144: 0.33 | S144: OPSD (2018) | T144: 22.5 | U144: =(1-VLOOKUP(O144,Start!$H$33:$I$40,2,FALSE)/100)*T144 -> 19.125 | V144: =VLOOKUP(N144,Start!$C$9:$D$15,2,FALSE)+VLOOKUP(N144,Start!$C$23:$D$29,2,FALSE) -> 0 | W144: =(V144/R144)+Start!$D$19*(VLOOKUP(N144,Start!$M$33:$N$39,2,FALSE)/R144)+VLOOKUP(O144,Start!$C$33:$D$40,2,FALSE) -> 1
C145: Yes | D145: BNA0418 | E145: enercity AG | F145: GKL | G145: 30169 | H145: Hannover | J145: Niedersachsen | K145: GKL | L145: 05.11.1998 | M145: Gas | N145: Gas | O145: CCGT | P145: Combined cycle | Q145: OPSD (2018) | R145: 0.5985 | S145: OPSD (2018) | T145: 230 | U145: =(1-VLOOKUP(O145,Start!$H$33:$I$40,2,FALSE)/100)*T145 -> 200.1 | V145: =VLOOKUP(N145,Start!$C$9:$D$15,2,FALSE)+VLOOKUP(N145,Start!$C$23:$D$29,2,FALSE) -> 10.67 | W145: =(V145/R145)+Start!$D$19*(VLOOKUP(N145,Start!$M$33:$N$39,2,FALSE)/R145)+VLOOKUP(O145,Start!$C$33:$D$40,2,FALSE) -> 27.64329156
C146: Yes | D146: BNA0420 | E146: enercity AG | F146: GKH | G146: 30419 | H146: Hannover | J146: Niedersachsen | K146: Block1 | L146: 26.01.1989 | M146: Coal | N146: Coal | O146: Coal | P146: Steam turbine | Q146: OPSD (2018) | R146: 0.3975 | S146: OPSD (2018) | T146: 136 | U146: =(1-VLOOKUP(O146,Start!$H$33:$I$40,2,FALSE)/100)*T146 -> 102 | V146: =VLOOKUP(N146,Start!$C$9:$D$15,2,FALSE)+VLOOKUP(N146,Start!$C$23:$D$29,2,FALSE) -> 7.5 | W146: =(V146/R146)+Start!$D$19*(VLOOKUP(N146,Start!$M$33:$N$39,2,FALSE)/R146)+VLOOKUP(O146,Start!$C$33:$D$40,2,FALSE) -> 41.15942138
C147: Yes | D147: BNA0421 | E147: enercity AG | F147: GKH | G147: 30419 | H147: Hannover | J147: Niedersachsen | K147: Block2 | L147: 21.06.1989 | M147: Coal | N147: Coal | O147: Coal | P147: Steam turbine | Q147: OPSD (2018) | R147: 0.3975 | S147: OPSD (2018) | T147: 136 | U147: =(1-VLOOKUP(O147,Start!$H$33:$I$40,2,FALSE)/100)*T147 -> 102 | V147: =VLOOKUP(N147,Start!$C$9:$D$15,2,FALSE)+VLOOKUP(N147,Start!$C$23:$D$29,2,FALSE) -> 7.5 | W147: =(V147/R147)+Start!$D$19*(VLOOKUP(N147,Start!$M$33:$N$39,2,FALSE)/R147)+VLOOKUP(O147,Start!$C$33:$D$40,2,FALSE) -> 41.15942138
C148: Yes | D148: BNA0427 | E148: Peissenberger Kraftwerksgesellschaft mbH | F148: Kraftwerk Hausham | G148: 83734 | H148: Hausham | J148: Bayern | K148: GT 1 | L148: 01.11.1982 | M148: Petroleum | N148: Oil | O148: Oil | P148: Gas turbine | Q148: OPSD (2018) | R148: 0.3332 | S148: OPSD (2018) | T148: 23.38 | U148: =(1-VLOOKUP(O148,Start!$H$33:$I$40,2,FALSE)/100)*T148 -> 19.873 | V148: =VLOOKUP(N148,Start!$C$9:$D$15,2,FALSE)+VLOOKUP(N148,Start!$C$23:$D$29,2,FALSE) -> 23.2 | W148: =(V148/R148)+Start!$D$19*(VLOOKUP(N148,Start!$M$33:$N$39,2,FALSE)/R148)+VLOOKUP(O148,Start!$C$33:$D$40,2,FALSE) -> 91.43457383
C149: Yes | D149: BNA0428 | E149: Peissenberger Kraftwerksgesellschaft mbH | F149: Kraftwerk Hausham | G149: 83734 | H149: Hausham | J149: Bayern | K149: GT 2 | L149: 01.11.1982 | M149: Petroleum | N149: Oil | O149: Oil | P149: Gas turbine | Q149: OPSD (2018) | R149: 0.3332 | S149: OPSD (2018) | T149: 23.38 | U149: =(1-VLOOKUP(O149,Start!$H$33:$I$40,2,FALSE)/100)*T149 -> 19.873 | V149: =VLOOKUP(N149,Start!$C$9:$D$15,2,FALSE)+VLOOKUP(N149,Start!$C$23:$D$29,2,FALSE) -> 23.2 | W149: =(V149/R149)+Start!$D$19*(VLOOKUP(N149,Start!$M$33:$N$39,2,FALSE)/R149)+VLOOKUP(O149,Start!$C$33:$D$40,2,FALSE) -> 91.43457383
C150: Yes | D150: BNA0429 | E150: Peissenberger Kraftwerksgesellschaft mbH | F150: Kraftwerk Hausham | G150: 83734 | H150: Hausham | J150: Bayern | K150: GT 3 | L150: 01.11.1982 | M150: Petroleum | N150: Oil | O150: Oil | P150: Gas turbine | Q150: OPSD (2018) | R150: 0.3332 | S150: OPSD (2018) | T150: 23.38 | U150: =(1-VLOOKUP(O150,Start!$H$33:$I$40,2,FALSE)/100)*T150 -> 19.873 | V150: =VLOOKUP(N150,Start!$C$9:$D$15,2,FALSE)+VLOOKUP(N150,Start!$C$23:$D$29,2,FALSE) -> 23.2 | W150: =(V150/R150)+Start!$D$19*(VLOOKUP(N150,Start!$M$33:$N$39,2,FALSE)/R150)+VLOOKUP(O150,Start!$C$33:$D$40,2,FALSE) -> 91.43457383
C151: Yes | D151: BNA0430 | E151: Peissenberger Kraftwerksgesellschaft mbH | F151: Kraftwerk Hausham | G151: 83734 | H151: Hausham | J151: Bayern | K151: GT 4 | L151: 01.11.1982 | M151: Petroleum | N151: Oil | O151: Oil | P151: Gas turbine | Q151: OPSD (2018) | R151: 0.3332 | S151: OPSD (2018) | T151: 23.38 | U151: =(1-VLOOKUP(O151,Start!$H$33:$I$40,2,FALSE)/100)*T151 -> 19.873 | V151: =VLOOKUP(N151,Start!$C$9:$D$15,2,FALSE)+VLOOKUP(N151,Start!$C$23:$D$29,2,FALSE) -> 23.2 | W151: =(V151/R151)+Start!$D$19*(VLOOKUP(N151,Start!$M$33:$N$39,2,FALSE)/R151)+VLOOKUP(O151,Start!$C$33:$D$40,2,FALSE) -> 91.43457383
C152: Yes | D152: BNA0434 | E152: EnBW Energie Baden-Württemberg AG | F152: Heizkraftwerk Heilbronn | G152: 74076 | H152: Heilbronn | I152: Lichtenbergerstraße 23 | J152: Baden-Württemberg | K152: HLB 7 | L152: 01.12.1985 | M152: Coal | N152: Coal | O152: Coal | P152: Steam turbine | Q152: OPSD (2018) | R152: 0.4475 | S152: OPSD (2018) | T152: 778 | U152: =(1-VLOOKUP(O152,Start!$H$33:$I$40,2,FALSE)/100)*T152 -> 583.5 | V152: =VLOOKUP(N152,Start!$C$9:$D$15,2,FALSE)+VLOOKUP(N152,Start!$C$23:$D$29,2,FALSE) -> 7.5 | W152: =(V152/R152)+Start!$D$19*(VLOOKUP(N152,Start!$M$33:$N$39,2,FALSE)/R152)+VLOOKUP(O152,Start!$C$33:$D$40,2,FALSE) -> 36.70585475
C153: Yes | D153: BNA0438 | E153: EEW Energy from Waste Helmstedt GmbH | F153: TRV Buschhaus | G153: 38350 | H153: Helmstedt | J153: Niedersachsen | K153: Linie 1-3 | L153: 31.03.1999 | M153: Waste | N153: Waste | O153: Waste | P153: Steam turbine | Q153: OPSD (2018) | R153: 0.33 | S153: OPSD (2018) | T153: 37.5 | U153: =(1-VLOOKUP(O153,Start!$H$33:$I$40,2,FALSE)/100)*T153 -> 31.875 | V153: =VLOOKUP(N153,Start!$C$9:$D$15,2,FALSE)+VLOOKUP(N153,Start!$C$23:$D$29,2,FALSE) -> 0 | W153: =(V153/R153)+Start!$D$19*(VLOOKUP(N153,Start!$M$33:$N$39,2,FALSE)/R153)+VLOOKUP(O153,Start!$C$33:$D$40,2,FALSE) -> 1
C154: Yes | D154: BNA0442 | E154: Mark-E AG / Statkraft Markets | F154: Cuno Heizkraftwerk Herdecke | G154: 58313 | H154: Herdecke | J154: Nordrhein-Westfalen | K154: H6 | L154: 01.01.2007 | M154: Gas | N154: Gas | O154: CCGT | P154: Combined cycle | Q154: OPSD (2018) | R154: 0.5715 | S154: OPSD (2018) | T154: 417 | U154: =(1-VLOOKUP(O154,Start!$H$33:$I$40,2,FALSE)/100)*T154 -> 362.79 | V154: =VLOOKUP(N154,Start!$C$9:$D$15,2,FALSE)+VLOOKUP(N154,Start!$C$23:$D$29,2,FALSE) -> 10.67 | W154: =(V154/R154)+Start!$D$19*(VLOOKUP(N154,Start!$M$33:$N$39,2,FALSE)/R154)+VLOOKUP(O154,Start!$C$33:$D$40,2,FALSE) -> 28.8784077
C155: Yes | D155: BNA0444 | E155: K+S AG | F155: Wintershall | G155: 36266 | H155: Heringen | J155: Hessen | K155: Wintershall | L155: 20.05.2009 | M155: Gas | N155: Gas | O155: CCGT | P155: Combined cycle | Q155: OPSD (2018) | R155: 0.5805 | S155: OPSD (2018) | T155: 69 | U155: =(1-VLOOKUP(O155,Start!$H$33:$I$40,2,FALSE)/100)*T155 -> 60.03 | V155: =VLOOKUP(N155,Start!$C$9:$D$15,2,FALSE)+VLOOKUP(N155,Start!$C$23:$D$29,2,FALSE) -> 10.67 | W155: =(V155/R155)+Start!$D$19*(VLOOKUP(N155,Start!$M$33:$N$39,2,FALSE)/R155)+VLOOKUP(O155,Start!$C$33:$D$40,2,FALSE) -> 28.45393626
C156: Yes | D156: BNA0450 | E156: Steag GmbH | F156: KW Herne | G156: 44655 | H156: Herne | I156: Hertener Str. 16 | J156: Nordrhein-Westfalen | K156: Herne 4 | L156: 25.07.1989 | M156: Coal | N156: Coal | O156: Coal | P156: Steam turbine | Q156: OPSD (2018) | R156: 0.4575 | S156: OPSD (2018) | T156: 449 | U156: =(1-VLOOKUP(O156,Start!$H$33:$I$40,2,FALSE)/100)*T156 -> 336.75 | V156: =VLOOKUP(N156,Start!$C$9:$D$15,2,FALSE)+VLOOKUP(N156,Start!$C$23:$D$29,2,FALSE) -> 7.5 | W156: =(V156/R156)+Start!$D$19*(VLOOKUP(N156,Start!$M$33:$N$39,2,FALSE)/R156)+VLOOKUP(O156,Start!$C$33:$D$40,2,FALSE) -> 35.93195628
C157: Yes | D157: BNA0464 | E157: Kraftwerk Mehrum GmbH | F157: KWM | G157: 31249 | H157: Hohenhameln OT Mehrum | J157: Niedersachsen | K157: Block3 | L157: 01.06.1979 | M157: Coal | N157: Coal | O157: Coal | P157: Steam turbine | Q157: OPSD (2018) | R157: 0.4325 | S157: OPSD (2018) | T157: 690 | U157: =(1-VLOOKUP(O157,Start!$H$33:$I$40,2,FALSE)/100)*T157 -> 517.5 | V157: =VLOOKUP(N157,Start!$C$9:$D$15,2,FALSE)+VLOOKUP(N157,Start!$C$23:$D$29,2,FALSE) -> 7.5 | W157: =(V157/R157)+Start!$D$19*(VLOOKUP(N157,Start!$M$33:$N$39,2,FALSE)/R157)+VLOOKUP(O157,Start!$C$33:$D$40,2,FALSE) -> 37.93380347
C158: Yes | D158: BNA0485 | E158: Hüttenwerke Krupp Mannesmann GmbH | F158: Huckingen | G158: 47259 | H158: Duisburg-Huckingen | J158: Nordrhein-Westfalen | K158: A | L158: 17.01.1976 | M158: Multiple | N158: Gas | O158: CCGT | P158: Combined cycle | Q158: OPSD (2018) | R158: 0.45 | S158: Assumption based on DIW (2014) | T158: 303 | U158: =(1-VLOOKUP(O158,Start!$H$33:$I$40,2,FALSE)/100)*T158 -> 263.61 | V158: =VLOOKUP(N158,Start!$C$9:$D$15,2,FALSE)+VLOOKUP(N158,Start!$C$23:$D$29,2,FALSE) -> 10.67 | W158: =(V158/R158)+Start!$D$19*(VLOOKUP(N158,Start!$M$33:$N$39,2,FALSE)/R158)+VLOOKUP(O158,Start!$C$33:$D$40,2,FALSE) -> 36.27057778
C159: Yes | D159: BNA0486 | E159: Hüttenwerke Krupp Mannesmann GmbH | F159: Huckingen | G159: 47259 | H159: Duisburg-Huckingen | J159: Nordrhein-Westfalen | K159: B | L159: 27.03.1977 | M159: Multiple | N159: Gas | O159: CCGT | P159: Combined cycle | Q159: OPSD (2018) | R159: 0.45 | S159: Assumption based on DIW (2014) | T159: 303 | U159: =(1-VLOOKUP(O159,Start!$H$33:$I$40,2,FALSE)/100)*T159 -> 263.61 | V159: =VLOOKUP(N159,Start!$C$9:$D$15,2,FALSE)+VLOOKUP(N159,Start!$C$23:$D$29,2,FALSE) -> 10.67 | W159: =(V159/R159)+Start!$D$19*(VLOOKUP(N159,Start!$M$33:$N$39,2,FALSE)/R159)+VLOOKUP(O159,Start!$C$33:$D$40,2,FALSE) -> 36.27057778
C160: Yes | D160: BNA0491 | E160: RWE Power AG | F160: Ville/Berrenrath | G160: 50354 | H160: Hürth | J160: Nordrhein-Westfalen | K160: Ville/Berrenrath | L160: 01.01.1917 | M160: Multiple | N160: Lignite | O160: Lignite | P160: Steam turbine | Q160: OPSD (2018) | R160: 0.2008 | S160: OPSD (2018) | T160: 98 | U160: =(1-VLOOKUP(O160,Start!$H$33:$I$40,2,FALSE)/100)*T160 -> 85.26 | V160: =VLOOKUP(N160,Start!$C$9:$D$15,2,FALSE)+VLOOKUP(N160,Start!$C$23:$D$29,2,FALSE) -> 3.1 | W160: =(V160/R160)+Start!$D$19*(VLOOKUP(N160,Start!$M$33:$N$39,2,FALSE)/R160)+VLOOKUP(O160,Start!$C$33:$D$40,2,FALSE) -> 66.95418327
C161: Yes | D161: BNA0493 | E161: RWE Generation SE | F161: Ibbenbüren | G161: 49479 | H161: Ibbenbüren | J161: Nordrhein-Westfalen | K161: B | L161: 19.06.1985 | M161: Multiple | N161: Coal | O161: Coal | P161: Steam turbine | Q161: OPSD (2018) | R161: 0.4475 | S161: OPSD (2018) | T161: 794 | U161: =(1-VLOOKUP(O161,Start!$H$33:$I$40,2,FALSE)/100)*T161 -> 595.5 | V161: =VLOOKUP(N161,Start!$C$9:$D$15,2,FALSE)+VLOOKUP(N161,Start!$C$23:$D$29,2,FALSE) -> 7.5 | W161: =(V161/R161)+Start!$D$19*(VLOOKUP(N161,Start!$M$33:$N$39,2,FALSE)/R161)+VLOOKUP(O161,Start!$C$33:$D$40,2,FALSE) -> 36.70585475
C162: Yes | D162: BNA0497 | E162: Infraserv GmbH & Co. Höchst KG | F162: ADS-Anlage | G162: 65926 | H162: Industriepark Höchst | J162: Hessen | L162: 01.11.2012 | M162: Gas | N162: Gas | O162: OCGT | P162: Gas turbine | Q162: OPSD (2018) | R162: 0.4112 | S162: OPSD (2018) | T162: 96.5 | U162: =(1-VLOOKUP(O162,Start!$H$33:$I$40,2,FALSE)/100)*T162 -> 83.955 | V162: =VLOOKUP(N162,Start!$C$9:$D$15,2,FALSE)+VLOOKUP(N162,Start!$C$23:$D$29,2,FALSE) -> 10.67 | W162: =(V162/R162)+Start!$D$19*(VLOOKUP(N162,Start!$M$33:$N$39,2,FALSE)/R162)+VLOOKUP(O162,Start!$C$33:$D$40,2,FALSE) -> 39.05145914
C163: Yes | D163: BNA0498 | E163: Infraserv GmbH & Co. Höchst KG | F163: Heizkraftwerk | G163: 65926 | H163: Industriepark Höchst | J163: Hessen | K163: Block B | L163: 21.08.1989 | M163: Multiple | N163: Coal | O163: Coal | P163: Combined cycle | Q163: OPSD (2018) | R163: 0.4905 | S163: OPSD (2018) | T163: 66 | U163: =(1-VLOOKUP(O163,Start!$H$33:$I$40,2,FALSE)/100)*T163 -> 49.5 | V163: =VLOOKUP(N163,Start!$C$9:$D$15,2,FALSE)+VLOOKUP(N163,Start!$C$23:$D$29,2,FALSE) -> 7.5 | W163: =(V163/R163)+Start!$D$19*(VLOOKUP(N163,Start!$M$33:$N$39,2,FALSE)/R163)+VLOOKUP(O163,Start!$C$33:$D$40,2,FALSE) -> 33.60197757
C164: Yes | D164: BNA0499 | E164: Infraserv GmbH & Co. Höchst KG | F164: Heizkraftwerk | G164: 65926 | H164: Industriepark Höchst | J164: Hessen | K164: Block A | L164: 26.11.2003 | M164: Gas | N164: Gas | O164: CCGT | P164: Combined cycle | Q164: OPSD (2018) | R164: 0.5535 | S164: OPSD (2018) | T164: 86 | U164: =(1-VLOOKUP(O164,Start!$H$33:$I$40,2,FALSE)/100)*T164 -> 74.82 | V164: =VLOOKUP(N164,Start!$C$9:$D$15,2,FALSE)+VLOOKUP(N164,Start!$C$23:$D$29,2,FALSE) -> 10.67 | W164: =(V164/R164)+Start!$D$19*(VLOOKUP(N164,Start!$M$33:$N$39,2,FALSE)/R164)+VLOOKUP(O164,Start!$C$33:$D$40,2,FALSE) -> 29.76876242
C165: Yes | D165: BNA0504 | E165: TEAG Thüringer Energie AG | F165: HKW Jena | G165: 7749 | H165: Jena | J165: Thüringen | K165: HKW Jena | L165: 26.09.1996 | M165: Multiple | N165: Gas | O165: CCGT | P165: Combined cycle | Q165: OPSD (2018) | R165: 0.522 | S165: OPSD (2018) | T165: 182 | U165: =(1-VLOOKUP(O165,Start!$H$33:$I$40,2,FALSE)/100)*T165 -> 158.34 | V165: =VLOOKUP(N165,Start!$C$9:$D$15,2,FALSE)+VLOOKUP(N165,Start!$C$23:$D$29,2,FALSE) -> 10.67 | W165: =(V165/R165)+Start!$D$19*(VLOOKUP(N165,Start!$M$33:$N$39,2,FALSE)/R165)+VLOOKUP(O165,Start!$C$33:$D$40,2,FALSE) -> 31.47463602
C166: Yes | D166: BNA0510a | E166: SWK Stadtwerke Kaiserslautern, Versorgungs-AG | F166: HKW Karcherstr. | G166: 67655 | H166: Kaiserslautern | J166: Rheinland-Pfalz | K166: 10 | L166: 18.09.1989 | M166: Multiple | N166: Gas | O166: CCGT | P166: Steam turbine | Q166: OPSD (2018) | R166: 0.3729 | S166: OPSD (2018) | T166: 11.6 | U166: =(1-VLOOKUP(O166,Start!$H$33:$I$40,2,FALSE)/100)*T166 -> 10.092 | V166: =VLOOKUP(N166,Start!$C$9:$D$15,2,FALSE)+VLOOKUP(N166,Start!$C$23:$D$29,2,FALSE) -> 10.67 | W166: =(V166/R166)+Start!$D$19*(VLOOKUP(N166,Start!$M$33:$N$39,2,FALSE)/R166)+VLOOKUP(O166,Start!$C$33:$D$40,2,FALSE) -> 43.45966747
C167: Yes | D167: BNA0510b | E167: SWK Stadtwerke Kaiserslautern, Versorgungs-AG | F167: HKW Karcherstr. | G167: 67655 | H167: Kaiserslautern | J167: Rheinland-Pfalz | K167: 20 | L167: 26.11.1996 | M167: Coal | N167: Coal | O167: Coal | P167: Steam turbine | Q167: OPSD (2018) | R167: 0.415 | S167: OPSD (2018) | T167: 13.4 | U167: =(1-VLOOKUP(O167,Start!$H$33:$I$40,2,FALSE)/100)*T167 -> 10.05 | V167: =VLOOKUP(N167,Start!$C$9:$D$15,2,FALSE)+VLOOKUP(N167,Start!$C$23:$D$29,2,FALSE) -> 7.5 | W167: =(V167/R167)+Start!$D$19*(VLOOKUP(N167,Start!$M$33:$N$39,2,FALSE)/R167)+VLOOKUP(O167,Start!$C$33:$D$40,2,FALSE) -> 39.47860241
C168: Yes | D168: BNA0515 | E168: Stadtwerke Karlsruhe GmbH | F168: Heizkraftwerk West | G168: 76189 | H168: Karlsruhe | J168: Baden-Württemberg | K168: T3 | L168: 01.01.1984 | M168: Multiple | N168: Gas | O168: CCGT | P168: Steam turbine | Q168: OPSD (2018) | R168: 0.3674 | S168: OPSD (2018) | T168: 37 | U168: =(1-VLOOKUP(O168,Start!$H$33:$I$40,2,FALSE)/100)*T168 -> 32.19 | V168: =VLOOKUP(N168,Start!$C$9:$D$15,2,FALSE)+VLOOKUP(N168,Start!$C$23:$D$29,2,FALSE) -> 10.67 | W168: =(V168/R168)+Start!$D$19*(VLOOKUP(N168,Start!$M$33:$N$39,2,FALSE)/R168)+VLOOKUP(O168,Start!$C$33:$D$40,2,FALSE) -> 44.08780621
C169: Yes | D169: BNA0516 | E169: MiRO Mineraloelraffinerie Oberrhein GmbH & Co. KG | F169: MiRO | G169: 76187 | H169: Karlsruhe | J169: Baden-Württemberg | K169: Kesselhaus Werk 1 | L169: 17.06.1995 | M169: Multiple | N169: Oil | O169: Oil | P169: Steam turbine | Q169: OPSD (2018) | R169: 0.3795 | S169: OPSD (2018) | T169: 45 | U169: =(1-VLOOKUP(O169,Start!$H$33:$I$40,2,FALSE)/100)*T169 -> 38.25 | V169: =VLOOKUP(N169,Start!$C$9:$D$15,2,FALSE)+VLOOKUP(N169,Start!$C$23:$D$29,2,FALSE) -> 23.2 | W169: =(V169/R169)+Start!$D$19*(VLOOKUP(N169,Start!$M$33:$N$39,2,FALSE)/R169)+VLOOKUP(O169,Start!$C$33:$D$40,2,FALSE) -> 80.40131752
C170: Yes | D170: BNA0517 | E170: MiRO Mineraloelraffinerie Oberrhein GmbH & Co. KG | F170: MiRO | G170: 76187 | H170: Karlsruhe | J170: Baden-Württemberg | K170: Kesselhaus Werk 2 | L170: 17.06.1995 | M170: Multiple | N170: Oil | O170: Oil | P170: Steam turbine | Q170: OPSD (2018) | R170: 0.3795 | S170: OPSD (2018) | T170: 25 | U170: =(1-VLOOKUP(O170,Start!$H$33:$I$40,2,FALSE)/100)*T170 -> 21.25 | V170: =VLOOKUP(N170,Start!$C$9:$D$15,2,FALSE)+VLOOKUP(N170,Start!$C$23:$D$29,2,FALSE) -> 23.2 | W170: =(V170/R170)+Start!$D$19*(VLOOKUP(N170,Start!$M$33:$N$39,2,FALSE)/R170)+VLOOKUP(O170,Start!$C$33:$D$40,2,FALSE) -> 80.40131752
C171: Yes | D171: BNA0518a | E171: EnBW Energie Baden-Württemberg AG | F171: Rheinhafen-Dampfkraftwerk | G171: 76189 | H171: Karlsruhe | I171: Fettweisstraße 42 | J171: Baden-Württemberg | K171: RDK 7 | L171: 21.06.1985 | M171: Coal | N171: Coal | O171: Coal | P171: Steam turbine | Q171: OPSD (2018) | R171: 0.4375 | S171: OPSD (2018) | T171: 517 | U171: =(1-VLOOKUP(O171,Start!$H$33:$I$40,2,FALSE)/100)*T171 -> 387.75 | V171: =VLOOKUP(N171,Start!$C$9:$D$15,2,FALSE)+VLOOKUP(N171,Start!$C$23:$D$29,2,FALSE) -> 7.5 | W171: =(V171/R171)+Start!$D$19*(VLOOKUP(N171,Start!$M$33:$N$39,2,FALSE)/R171)+VLOOKUP(O171,Start!$C$33:$D$40,2,FALSE) -> 37.51513143
C172: Yes | D172: BNA0518b | E172: EnBW Energie Baden-Württemberg AG | F172: Rheinhafen-Dampfkraftwerk | G172: 76189 | H172: Karlsruhe | I172: Fettweisstraße 42 | J172: Baden-Württemberg | K172: RDK 8 | L172: 01.07.2014 | M172: Coal | N172: Coal | O172: Coal | P172: Steam turbine | Q172: OPSD (2018) | R172: 0.46 | S172: OPSD (2018) | T172: 834 | U172: =(1-VLOOKUP(O172,Start!$H$33:$I$40,2,FALSE)/100)*T172 -> 625.5 | V172: =VLOOKUP(N172,Start!$C$9:$D$15,2,FALSE)+VLOOKUP(N172,Start!$C$23:$D$29,2,FALSE) -> 7.5 | W172: =(V172/R172)+Start!$D$19*(VLOOKUP(N172,Start!$M$33:$N$39,2,FALSE)/R172)+VLOOKUP(O172,Start!$C$33:$D$40,2,FALSE) -> 35.74373913
C173: Yes | D173: BNA0519 | E173: RWE Generation SE | F173: Karnap | G173: 45329 | H173: Essen | J173: Nordrhein-Westfalen | K173: B | L173: 16.03.1987 | M173: Waste | N173: Waste | O173: Waste | P173: Steam turbine | Q173: OPSD (2018) | R173: 0.33 | S173: OPSD (2018) | T173: 38 | U173: =(1-VLOOKUP(O173,Start!$H$33:$I$40,2,FALSE)/100)*T173 -> 32.3 | V173: =VLOOKUP(N173,Start!$C$9:$D$15,2,FALSE)+VLOOKUP(N173,Start!$C$23:$D$29,2,FALSE) -> 0 | W173: =(V173/R173)+Start!$D$19*(VLOOKUP(N173,Start!$M$33:$N$39,2,FALSE)/R173)+VLOOKUP(O173,Start!$C$33:$D$40,2,FALSE) -> 1
C174: Yes | D174: BNA0521 | E174: Städtische Werke Energie + Wärme GmbH | F174: Kombi-HKW | G174: 34134 | H174: Kassel | J174: Hessen | L174: 18.07.1988 | M174: Gas | N174: Gas | O174: CCGT | P174: Steam turbine | Q174: OPSD (2018) | R174: 0.3718 | S174: OPSD (2018) | T174: 48.31 | U174: =(1-VLOOKUP(O174,Start!$H$33:$I$40,2,FALSE)/100)*T174 -> 42.0297 | V174: =VLOOKUP(N174,Start!$C$9:$D$15,2,FALSE)+VLOOKUP(N174,Start!$C$23:$D$29,2,FALSE) -> 10.67 | W174: =(V174/R174)+Start!$D$19*(VLOOKUP(N174,Start!$M$33:$N$39,2,FALSE)/R174)+VLOOKUP(O174,Start!$C$33:$D$40,2,FALSE) -> 43.5838085
C175: Yes | D175: BNA0523 | E175: Städtische Werke Energie + Wärme GmbH | F175: FKK | G175: 34134 | H175: Kassel | J175: Hessen | L175: 21.12.1989 | M175: Multiple | N175: Lignite | O175: Lignite | P175: Steam turbine | Q175: OPSD (2018) | R175: 0.3736 | S175: OPSD (2018) | T175: 33.5 | U175: =(1-VLOOKUP(O175,Start!$H$33:$I$40,2,FALSE)/100)*T175 -> 29.145 | V175: =VLOOKUP(N175,Start!$C$9:$D$15,2,FALSE)+VLOOKUP(N175,Start!$C$23:$D$29,2,FALSE) -> 3.1 | W175: =(V175/R175)+Start!$D$19*(VLOOKUP(N175,Start!$M$33:$N$39,2,FALSE)/R175)+VLOOKUP(O175,Start!$C$33:$D$40,2,FALSE) -> 36.77237687
C176: Yes | D176: BNA0527 | E176: Stadtwerke Kiel AG | F176: HKW Humboldtstr. | G176: 24116 | H176: Kiel | J176: Schleswig-Holstein | L176: 27.04.2005 | M176: Gas | N176: Gas | O176: CCGT | P176: Steam turbine | Q176: OPSD (2018) | R176: 0.3905 | S176: OPSD (2018) | T176: 21.5 | U176: =(1-VLOOKUP(O176,Start!$H$33:$I$40,2,FALSE)/100)*T176 -> 18.705 | V176: =VLOOKUP(N176,Start!$C$9:$D$15,2,FALSE)+VLOOKUP(N176,Start!$C$23:$D$29,2,FALSE) -> 10.67 | W176: =(V176/R176)+Start!$D$19*(VLOOKUP(N176,Start!$M$33:$N$39,2,FALSE)/R176)+VLOOKUP(O176,Start!$C$33:$D$40,2,FALSE) -> 41.56852753
C177: Yes | D177: BNA0531 | E177: Energieservice Westfalen Weser GmbH | F177: KW Kirchlengern | G177: 32278 | H177: Kirchlengern | J177: Nordrhein-Westfalen | L177: 16.01.1981 | M177: Multiple | N177: Gas | O177: CCGT | P177: Combined cycle | Q177: OPSD (2018) | R177: 0.4545 | S177: OPSD (2018) | T177: 125 | U177: =(1-VLOOKUP(O177,Start!$H$33:$I$40,2,FALSE)/100)*T177 -> 108.75 | V177: =VLOOKUP(N177,Start!$C$9:$D$15,2,FALSE)+VLOOKUP(N177,Start!$C$23:$D$29,2,FALSE) -> 10.67 | W177: =(V177/R177)+Start!$D$19*(VLOOKUP(N177,Start!$M$33:$N$39,2,FALSE)/R177)+VLOOKUP(O177,Start!$C$33:$D$40,2,FALSE) -> 35.92631463
C178: Yes | D178: BNA0543 | E178: RheinEnergie AG | F178: HKW Merkenich | G178: 50769 | H178: Köln | J178: Nordrhein-Westfalen | K178: Block 6 | L178: 16.12.2010 | M178: Lignite | N178: Lignite | O178: Lignite | P178: Steam turbine | Q178: OPSD (2018) | R178: 0.424 | S178: OPSD (2018) | T178: 75.3 | U178: =(1-VLOOKUP(O178,Start!$H$33:$I$40,2,FALSE)/100)*T178 -> 65.511 | V178: =VLOOKUP(N178,Start!$C$9:$D$15,2,FALSE)+VLOOKUP(N178,Start!$C$23:$D$29,2,FALSE) -> 3.1 | W178: =(V178/R178)+Start!$D$19*(VLOOKUP(N178,Start!$M$33:$N$39,2,FALSE)/R178)+VLOOKUP(O178,Start!$C$33:$D$40,2,FALSE) -> 32.60339623
C179: Yes | D179: BNA0545 | E179: RheinEnergie AG | F179: HKW Niehl 2 | G179: 50735 | H179: Köln | J179: Nordrhein-Westfalen | K179: GuD | L179: 26.03.2005 | M179: Gas | N179: Gas | O179: CCGT | P179: Combined cycle | Q179: OPSD (2018) | R179: 0.576 | S179: OPSD (2018) | T179: 413 | U179: =(1-VLOOKUP(O179,Start!$H$33:$I$40,2,FALSE)/100)*T179 -> 359.31 | V179: =VLOOKUP(N179,Start!$C$9:$D$15,2,FALSE)+VLOOKUP(N179,Start!$C$23:$D$29,2,FALSE) -> 10.67 | W179: =(V179/R179)+Start!$D$19*(VLOOKUP(N179,Start!$M$33:$N$39,2,FALSE)/R179)+VLOOKUP(O179,Start!$C$33:$D$40,2,FALSE) -> 28.66451389
C180: Yes | D180: BNA0546 | E180: RheinEnergie AG | F180: HKW Merkenich | G180: 50769 | H180: Köln | J180: Nordrhein-Westfalen | K180: GuD | L180: 27.01.2004 | M180: Gas | N180: Gas | O180: CCGT | P180: Combined cycle | Q180: OPSD (2018) | R180: 0.558 | S180: OPSD (2018) | T180: 108 | U180: =(1-VLOOKUP(O180,Start!$H$33:$I$40,2,FALSE)/100)*T180 -> 93.96 | V180: =VLOOKUP(N180,Start!$C$9:$D$15,2,FALSE)+VLOOKUP(N180,Start!$C$23:$D$29,2,FALSE) -> 10.67 | W180: =(V180/R180)+Start!$D$19*(VLOOKUP(N180,Start!$M$33:$N$39,2,FALSE)/R180)+VLOOKUP(O180,Start!$C$33:$D$40,2,FALSE) -> 29.54078853
C181: Yes | D181: BNA0547 | E181: Shell Deutschland Oil GmbH | F181: Shell Deutschland Oil GmbH | G181: 50997 | H181: Köln | I181: Godorfer Hauptstr. 150 | J181: Nordrhein-Westfalen | L181: 2004 | M181: Petroleum | N181: Oil | O181: Oil | P181: Combined cycle | Q181: OPSD (2018) | R181: 0.38 | S181: OPSD (2018) | T181: 97.1 | U181: =(1-VLOOKUP(O181,Start!$H$33:$I$40,2,FALSE)/100)*T181 -> 82.535 | V181: =VLOOKUP(N181,Start!$C$9:$D$15,2,FALSE)+VLOOKUP(N181,Start!$C$23:$D$29,2,FALSE) -> 23.2 | W181: =(V181/R181)+Start!$D$19*(VLOOKUP(N181,Start!$M$33:$N$39,2,FALSE)/R181)+VLOOKUP(O181,Start!$C$33:$D$40,2,FALSE) -> 80.29684211
C182: Yes | D182: BNA0548a | E182: Knapsack Power GmbH & Co. KG | F182: Knapsack Gas I | G182: 50351 | H182: Hürth-Knapsack | J182: Nordrhein-Westfalen | L182: 01.01.2006 | M182: Gas | N182: Gas | O182: CCGT | P182: Combined cycle | Q182: OPSD (2018) | R182: 0.567 | S182: OPSD (2018) | T182: 800 | U182: =(1-VLOOKUP(O182,Start!$H$33:$I$40,2,FALSE)/100)*T182 -> 696 | V182: =VLOOKUP(N182,Start!$C$9:$D$15,2,FALSE)+VLOOKUP(N182,Start!$C$23:$D$29,2,FALSE) -> 10.67 | W182: =(V182/R182)+Start!$D$19*(VLOOKUP(N182,Start!$M$33:$N$39,2,FALSE)/R182)+VLOOKUP(O182,Start!$C$33:$D$40,2,FALSE) -> 29.09569665
C183: Yes | D183: BNA0548b | E183: Statkraft Markets GmbH | F183: Knapsack Gas II | G183: 50351 | H183: Hürth-Knapsack | J183: Nordrhein-Westfalen | L183: 01.07.2013 | M183: Gas | N183: Gas | O183: CCGT | P183: Combined cycle | Q183: OPSD (2018) | R183: 0.5985 | S183: OPSD (2018) | T183: 430 | U183: =(1-VLOOKUP(O183,Start!$H$33:$I$40,2,FALSE)/100)*T183 -> 374.1 | V183: =VLOOKUP(N183,Start!$C$9:$D$15,2,FALSE)+VLOOKUP(N183,Start!$C$23:$D$29,2,FALSE) -> 10.67 | W183: =(V183/R183)+Start!$D$19*(VLOOKUP(N183,Start!$M$33:$N$39,2,FALSE)/R183)+VLOOKUP(O183,Start!$C$33:$D$40,2,FALSE) -> 27.64329156
C184: Yes | D184: BNA0556a | E184: Cargill Deutschland GmbH | F184: KWK-Anlage Krefeld DT | G184: 47809 | H184: Krefeld | I184: Düsseldorfer Str. 191 | J184: Nordrhein-Westfalen | K184: Dampfturbine | L184: 01.07.1999 | M184: Gas | N184: Gas | O184: CCGT | P184: Steam turbine | Q184: OPSD (2018) | R184: 0.3839 | S184: OPSD (2018) | T184: 25.8 | U184: =(1-VLOOKUP(O184,Start!$H$33:$I$40,2,FALSE)/100)*T184 -> 22.446 | V184: =VLOOKUP(N184,Start!$C$9:$D$15,2,FALSE)+VLOOKUP(N184,Start!$C$23:$D$29,2,FALSE) -> 10.67 | W184: =(V184/R184)+Start!$D$19*(VLOOKUP(N184,Start!$M$33:$N$39,2,FALSE)/R184)+VLOOKUP(O184,Start!$C$33:$D$40,2,FALSE) -> 42.25738474
C185: Yes | D185: BNA0556b | E185: Cargill Deutschland GmbH | F185: KWK-Anlage Krefeld VM | G185: 47809 | H185: Krefeld | I185: Düsseldorfer Str. 191 | J185: Nordrhein-Westfalen | K185: Gasmotor (Dieselgenerator) | L185: 01.07.1999 | M185: Gas | N185: Gas | O185: CCGT | P185: Combustion Engine | Q185: OPSD (2018) | R185: 0.4406 | S185: OPSD (2018) | T185: 14 | U185: =(1-VLOOKUP(O185,Start!$H$33:$I$40,2,FALSE)/100)*T185 -> 12.18 | V185: =VLOOKUP(N185,Start!$C$9:$D$15,2,FALSE)+VLOOKUP(N185,Start!$C$23:$D$29,2,FALSE) -> 10.67 | W185: =(V185/R185)+Start!$D$19*(VLOOKUP(N185,Start!$M$33:$N$39,2,FALSE)/R185)+VLOOKUP(O185,Start!$C$33:$D$40,2,FALSE) -> 37.01239219
C186: Yes | D186: BNA0557a | E186: Currenta GmbH & Co. OHG | F186: Kraftwerk L 57 | G186: 47812 | H186: Krefeld-Uerdingen | I186: CHEMPARK, Geb. L 57 | J186: Nordrhein-Westfalen | L186: 01.01.1957 | M186: Multiple | N186: Coal | O186: Coal | P186: Steam turbine | Q186: OPSD (2018) | R186: 0.3175 | S186: OPSD (2018) | T186: 26 | U186: =(1-VLOOKUP(O186,Start!$H$33:$I$40,2,FALSE)/100)*T186 -> 19.5 | V186: =VLOOKUP(N186,Start!$C$9:$D$15,2,FALSE)+VLOOKUP(N186,Start!$C$23:$D$29,2,FALSE) -> 7.5 | W186: =(V186/R186)+Start!$D$19*(VLOOKUP(N186,Start!$M$33:$N$39,2,FALSE)/R186)+VLOOKUP(O186,Start!$C$33:$D$40,2,FALSE) -> 51.20274016
C187: Yes | D187: BNA0557b | E187: Currenta GmbH & Co. OHG | F187: Kraftwerk N 230 | G187: 47812 | H187: Krefeld-Uerdingen | I187: CHEMPARK, Geb. N 230 | J187: Nordrhein-Westfalen | L187: 01.01.1971 | M187: Multiple | N187: Coal | O187: Coal | P187: Steam turbine | Q187: OPSD (2018) | R187: 0.3525 | S187: OPSD (2018) | T187: 110 | U187: =(1-VLOOKUP(O187,Start!$H$33:$I$40,2,FALSE)/100)*T187 -> 82.5 | V187: =VLOOKUP(N187,Start!$C$9:$D$15,2,FALSE)+VLOOKUP(N187,Start!$C$23:$D$29,2,FALSE) -> 7.5 | W187: =(V187/R187)+Start!$D$19*(VLOOKUP(N187,Start!$M$33:$N$39,2,FALSE)/R187)+VLOOKUP(O187,Start!$C$33:$D$40,2,FALSE) -> 46.24785816
C188: Yes | D188: BNA0574a | E188: Statkraft Markets GmbH | F188: Landesbergen Gas | G188: 31628 | H188: Landesbergen | J188: Niedersachsen | K188: Gasturbine | L188: 01.01.1973 | M188: Gas | N188: Gas | O188: OCGT | P188: Gas turbine | Q188: OPSD (2018) | R188: 0.3098 | S188: OPSD (2018) | T188: 56 | U188: =(1-VLOOKUP(O188,Start!$H$33:$I$40,2,FALSE)/100)*T188 -> 48.72 | V188: =VLOOKUP(N188,Start!$C$9:$D$15,2,FALSE)+VLOOKUP(N188,Start!$C$23:$D$29,2,FALSE) -> 10.67 | W188: =(V188/R188)+Start!$D$19*(VLOOKUP(N188,Start!$M$33:$N$39,2,FALSE)/R188)+VLOOKUP(O188,Start!$C$33:$D$40,2,FALSE) -> 51.50600387
C189: Yes | D189: BNA0588 | E189: Stadtwerke Leipzig GmbH | F189: Heizkraftwerk Leipzig-Nord | G189: 4105 | H189: Leipzig | J189: Sachsen | L189: 15.02.1996 | M189: Multiple | N189: Gas | O189: CCGT | P189: Combined cycle | Q189: OPSD (2018) | R189: 0.585 | S189: OPSD (2018) | T189: 167 | U189: =(1-VLOOKUP(O189,Start!$H$33:$I$40,2,FALSE)/100)*T189 -> 145.29 | V189: =VLOOKUP(N189,Start!$C$9:$D$15,2,FALSE)+VLOOKUP(N189,Start!$C$23:$D$29,2,FALSE) -> 10.67 | W189: =(V189/R189)+Start!$D$19*(VLOOKUP(N189,Start!$M$33:$N$39,2,FALSE)/R189)+VLOOKUP(O189,Start!$C$33:$D$40,2,FALSE) -> 28.24659829
C190: Yes | D190: BNA0590 | E190: MVV Energie AG | F190: TREA Leuna | G190: 6237 | H190: Leuna | I190: An der B91 | J190: Sachsen-Anhalt | K190: Linie 1 | L190: 26.08.2005 | M190: Waste | N190: Waste | O190: Waste | P190: Steam turbine | Q190: OPSD (2018) | R190: 0.33 | S190: OPSD (2018) | T190: 16.25 | U190: =(1-VLOOKUP(O190,Start!$H$33:$I$40,2,FALSE)/100)*T190 -> 13.8125 | V190: =VLOOKUP(N190,Start!$C$9:$D$15,2,FALSE)+VLOOKUP(N190,Start!$C$23:$D$29,2,FALSE) -> 0 | W190: =(V190/R190)+Start!$D$19*(VLOOKUP(N190,Start!$M$33:$N$39,2,FALSE)/R190)+VLOOKUP(O190,Start!$C$33:$D$40,2,FALSE) -> 1
C191: Yes | D191: BNA0591 | E191: MVV Energie AG | F191: TREA Leuna | G191: 6237 | H191: Leuna | I191: An der B91 | J191: Sachsen-Anhalt | K191: Linie 2 | L191: 19.06.2007 | M191: Waste | N191: Waste | O191: Waste | P191: Steam turbine | Q191: OPSD (2018) | R191: 0.33 | S191: OPSD (2018) | T191: 16.25 | U191: =(1-VLOOKUP(O191,Start!$H$33:$I$40,2,FALSE)/100)*T191 -> 13.8125 | V191: =VLOOKUP(N191,Start!$C$9:$D$15,2,FALSE)+VLOOKUP(N191,Start!$C$23:$D$29,2,FALSE) -> 0 | W191: =(V191/R191)+Start!$D$19*(VLOOKUP(N191,Start!$M$33:$N$39,2,FALSE)/R191)+VLOOKUP(O191,Start!$C$33:$D$40,2,FALSE) -> 1
C192: Yes | D192: BNA0592 | E192: InfraLeuna GmbH | F192: GuD Leuna | G192: 6237 | H192: Leuna | J192: Sachsen-Anhalt | L192: 01.10.1998 | M192: Gas | N192: Gas | O192: CCGT | P192: Combined cycle | Q192: OPSD (2018) | R192: 0.531 | S192: OPSD (2018) | T192: 39 | U192: =(1-VLOOKUP(O192,Start!$H$33:$I$40,2,FALSE)/100)*T192 -> 33.93 | V192: =VLOOKUP(N192,Start!$C$9:$D$15,2,FALSE)+VLOOKUP(N192,Start!$C$23:$D$29,2,FALSE) -> 10.67 | W192: =(V192/R192)+Start!$D$19*(VLOOKUP(N192,Start!$M$33:$N$39,2,FALSE)/R192)+VLOOKUP(O192,Start!$C$33:$D$40,2,FALSE) -> 30.96659134
C193: Yes | D193: BNA0593 | E193: InfraLeuna GmbH | F193: ILK-GuD | G193: 6237 | H193: Leuna | J193: Sachsen-Anhalt | K193: GT1 | L193: 01.07.1994 | M193: Gas | N193: Gas | O193: CCGT | P193: Combined cycle | Q193: OPSD (2018) | R193: 0.513 | S193: OPSD (2018) | T193: 35 | U193: =(1-VLOOKUP(O193,Start!$H$33:$I$40,2,FALSE)/100)*T193 -> 30.45 | V193: =VLOOKUP(N193,Start!$C$9:$D$15,2,FALSE)+VLOOKUP(N193,Start!$C$23:$D$29,2,FALSE) -> 10.67 | W193: =(V193/R193)+Start!$D$19*(VLOOKUP(N193,Start!$M$33:$N$39,2,FALSE)/R193)+VLOOKUP(O193,Start!$C$33:$D$40,2,FALSE) -> 32.00050682
C194: Yes | D194: BNA0594 | E194: TOTAL Raffinerie Mitteldeutschland GmbH | F194: ILK-GuD | G194: 6237 | H194: Leuna | J194: Sachsen-Anhalt | K194: GT2 | L194: 01.07.1994 | M194: Gas | N194: Gas | O194: CCGT | P194: Combined cycle | Q194: OPSD (2018) | R194: 0.513 | S194: OPSD (2018) | T194: 35 | U194: =(1-VLOOKUP(O194,Start!$H$33:$I$40,2,FALSE)/100)*T194 -> 30.45 | V194: =VLOOKUP(N194,Start!$C$9:$D$15,2,FALSE)+VLOOKUP(N194,Start!$C$23:$D$29,2,FALSE) -> 10.67 | W194: =(V194/R194)+Start!$D$19*(VLOOKUP(N194,Start!$M$33:$N$39,2,FALSE)/R194)+VLOOKUP(O194,Start!$C$33:$D$40,2,FALSE) -> 32.00050682
C195: Yes | D195: BNA0595 | E195: InfraLeuna GmbH | F195: ILK-GuD | G195: 6237 | H195: Leuna | J195: Sachsen-Anhalt | K195: GT3 | L195: 01.07.1994 | M195: Gas | N195: Gas | O195: CCGT | P195: Combined cycle | Q195: OPSD (2018) | R195: 0.513 | S195: OPSD (2018) | T195: 37 | U195: =(1-VLOOKUP(O195,Start!$H$33:$I$40,2,FALSE)/100)*T195 -> 32.19 | V195: =VLOOKUP(N195,Start!$C$9:$D$15,2,FALSE)+VLOOKUP(N195,Start!$C$23:$D$29,2,FALSE) -> 10.67 | W195: =(V195/R195)+Start!$D$19*(VLOOKUP(N195,Start!$M$33:$N$39,2,FALSE)/R195)+VLOOKUP(O195,Start!$C$33:$D$40,2,FALSE) -> 32.00050682
C196: Yes | D196: BNA0596 | E196: TOTAL Raffinerie Mitteldeutschland GmbH | F196: Raffineriekraftwerk | G196: 6237 | H196: Leuna | J196: Sachsen-Anhalt | L196: 01.01.1997 | M196: Petroleum | N196: Oil | O196: Oil | P196: Combined cycle | Q196: OPSD (2018) | R196: 0.38 | S196: OPSD (2018) | T196: 92.5 | U196: =(1-VLOOKUP(O196,Start!$H$33:$I$40,2,FALSE)/100)*T196 -> 78.625 | V196: =VLOOKUP(N196,Start!$C$9:$D$15,2,FALSE)+VLOOKUP(N196,Start!$C$23:$D$29,2,FALSE) -> 23.2 | W196: =(V196/R196)+Start!$D$19*(VLOOKUP(N196,Start!$M$33:$N$39,2,FALSE)/R196)+VLOOKUP(O196,Start!$C$33:$D$40,2,FALSE) -> 80.29684211
C197: Yes | D197: BNA0597 | E197: InfraLeuna GmbH | F197: ILK-GuD | G197: 6237 | H197: Leuna | J197: Sachsen-Anhalt | K197: DT1 | L197: 01.07.1994 | M197: Other | N197: Gas | O197: CCGT | P197: Combined cycle | Q197: OPSD (2018) | R197: 0.495 | S197: Assumption based on DIW (2014) | T197: 8.7 | U197: =(1-VLOOKUP(O197,Start!$H$33:$I$40,2,FALSE)/100)*T197 -> 7.569 | V197: =VLOOKUP(N197,Start!$C$9:$D$15,2,FALSE)+VLOOKUP(N197,Start!$C$23:$D$29,2,FALSE) -> 10.67 | W197: =(V197/R197)+Start!$D$19*(VLOOKUP(N197,Start!$M$33:$N$39,2,FALSE)/R197)+VLOOKUP(O197,Start!$C$33:$D$40,2,FALSE) -> 33.10961616
C198: Yes | D198: BNA0598a | E198: InfraLeuna GmbH | F198: ILK-EKT | G198: 6237 | H198: Leuna | J198: Sachsen-Anhalt | K198: EKT | L198: 14.02.2000 | M198: Other | N198: Gas | O198: CCGT | P198: Steam turbine | Q198: OPSD (2018) | R198: 0.385 | S198: Assumption based on DIW (2014) | T198: 14 | U198: =(1-VLOOKUP(O198,Start!$H$33:$I$40,2,FALSE)/100)*T198 -> 12.18 | V198: =VLOOKUP(N198,Start!$C$9:$D$15,2,FALSE)+VLOOKUP(N198,Start!$C$23:$D$29,2,FALSE) -> 10.67 | W198: =(V198/R198)+Start!$D$19*(VLOOKUP(N198,Start!$M$33:$N$39,2,FALSE)/R198)+VLOOKUP(O198,Start!$C$33:$D$40,2,FALSE) -> 42.14093506
C199: Yes | D199: BNA0598b | E199: InfraLeuna GmbH | F199: ILK-GuD | G199: 6237 | H199: Leuna | J199: Sachsen-Anhalt | K199: KT1 | L199: 30.04.2010 | M199: Other | N199: Gas | O199: CCGT | P199: Combined cycle | Q199: OPSD (2018) | R199: 0.585 | S199: Assumption based on DIW (2014) | T199: 20 | U199: =(1-VLOOKUP(O199,Start!$H$33:$I$40,2,FALSE)/100)*T199 -> 17.4 | V199: =VLOOKUP(N199,Start!$C$9:$D$15,2,FALSE)+VLOOKUP(N199,Start!$C$23:$D$29,2,FALSE) -> 10.67 | W199: =(V199/R199)+Start!$D$19*(VLOOKUP(N199,Start!$M$33:$N$39,2,FALSE)/R199)+VLOOKUP(O199,Start!$C$33:$D$40,2,FALSE) -> 28.24659829
C200: Yes | D200: BNA0599 | E200: AVEA Entsorgungsbetriebe GmbH & Co. KG | G200: 51373 | H200: Leverkusen | J200: Nordrhein-Westfalen | K200: entfällt | L200: 03.05.2011 | M200: Waste | N200: Waste | O200: Waste | P200: Steam turbine | Q200: https://www.avea.info/klimaschutz/strom/ | R200: 0.33 | S200: eigene Annahme | T200: 11.6 | U200: =(1-VLOOKUP(O200,Start!$H$33:$I$40,2,FALSE)/100)*T200 -> 9.86 | V200: =VLOOKUP(N200,Start!$C$9:$D$15,2,FALSE)+VLOOKUP(N200,Start!$C$23:$D$29,2,FALSE) -> 0 | W200: =(V200/R200)+Start!$D$19*(VLOOKUP(N200,Start!$M$33:$N$39,2,FALSE)/R200)+VLOOKUP(O200,Start!$C$33:$D$40,2,FALSE) -> 1
C201: Yes | D201: BNA0600a | E201: Currenta GmbH & Co. OHG | F201: X-Kraftwerk | G201: 51368 | H201: Leverkusen | I201: CHEMPARK, Geb. X 50 | J201: Nordrhein-Westfalen | L201: 01.01.1981 | M201: Gas | N201: Gas | O201: CCGT | P201: Steam turbine | Q201: OPSD (2018) | R201: 0.3641 | S201: OPSD (2018) | T201: 25 | U201: =(1-VLOOKUP(O201,Start!$H$33:$I$40,2,FALSE)/100)*T201 -> 21.75 | V201: =VLOOKUP(N201,Start!$C$9:$D$15,2,FALSE)+VLOOKUP(N201,Start!$C$23:$D$29,2,FALSE) -> 10.67 | W201: =(V201/R201)+Start!$D$19*(VLOOKUP(N201,Start!$M$33:$N$39,2,FALSE)/R201)+VLOOKUP(O201,Start!$C$33:$D$40,2,FALSE) -> 44.47379841
C202: Yes | D202: BNA0600b | E202: Currenta GmbH & Co. OHG | F202: G-Kraftwerk | G202: 51368 | H202: Leverkusen | I202: CHEMPARK, Geb. G 22 | J202: Nordrhein-Westfalen | L202: 01.01.1962 | M202: Multiple | N202: Coal | O202: Coal | P202: Steam turbine | Q202: OPSD (2018) | R202: 0.33 | S202: OPSD (2018) | T202: 103 | U202: =(1-VLOOKUP(O202,Start!$H$33:$I$40,2,FALSE)/100)*T202 -> 77.25 | V202: =VLOOKUP(N202,Start!$C$9:$D$15,2,FALSE)+VLOOKUP(N202,Start!$C$23:$D$29,2,FALSE) -> 7.5 | W202: =(V202/R202)+Start!$D$19*(VLOOKUP(N202,Start!$M$33:$N$39,2,FALSE)/R202)+VLOOKUP(O202,Start!$C$33:$D$40,2,FALSE) -> 49.31248485
C203: Yes | D203: BNA0602 | E203: RWE Generation SE | F203: Emsland | G203: 49811 | H203: Lingen | J203: Niedersachsen | K203: C1 | L203: 01.01.1974 | M203: Gas | N203: Gas | O203: CCGT | P203: Combined cycle | Q203: OPSD (2018) | R203: 0.423 | S203: OPSD (2018) | T203: 116 | U203: =(1-VLOOKUP(O203,Start!$H$33:$I$40,2,FALSE)/100)*T203 -> 100.92 | V203: =VLOOKUP(N203,Start!$C$9:$D$15,2,FALSE)+VLOOKUP(N203,Start!$C$23:$D$29,2,FALSE) -> 10.67 | W203: =(V203/R203)+Start!$D$19*(VLOOKUP(N203,Start!$M$33:$N$39,2,FALSE)/R203)+VLOOKUP(O203,Start!$C$33:$D$40,2,FALSE) -> 38.48997636
C204: Yes | D204: BNA0603 | E204: RWE Generation SE | F204: Emsland | G204: 49811 | H204: Lingen | J204: Niedersachsen | K204: B1 | L204: 01.01.1973 | M204: Gas | N204: Gas | O204: CCGT | P204: Combined cycle | Q204: OPSD (2018) | R204: 0.4185 | S204: OPSD (2018) | T204: 116 | U204: =(1-VLOOKUP(O204,Start!$H$33:$I$40,2,FALSE)/100)*T204 -> 100.92 | V204: =VLOOKUP(N204,Start!$C$9:$D$15,2,FALSE)+VLOOKUP(N204,Start!$C$23:$D$29,2,FALSE) -> 10.67 | W204: =(V204/R204)+Start!$D$19*(VLOOKUP(N204,Start!$M$33:$N$39,2,FALSE)/R204)+VLOOKUP(O204,Start!$C$33:$D$40,2,FALSE) -> 38.88771804
C205: Yes | D205: BNA0604 | E205: RWE Generation SE | F205: Emsland | G205: 49811 | H205: Lingen | J205: Niedersachsen | K205: B2 | L205: 01.01.1973 | M205: Gas | N205: Gas | O205: CCGT | P205: Combined cycle | Q205: OPSD (2018) | R205: 0.4185 | S205: OPSD (2018) | T205: 359 | U205: =(1-VLOOKUP(O205,Start!$H$33:$I$40,2,FALSE)/100)*T205 -> 312.33 | V205: =VLOOKUP(N205,Start!$C$9:$D$15,2,FALSE)+VLOOKUP(N205,Start!$C$23:$D$29,2,FALSE) -> 10.67 | W205: =(V205/R205)+Start!$D$19*(VLOOKUP(N205,Start!$M$33:$N$39,2,FALSE)/R205)+VLOOKUP(O205,Start!$C$33:$D$40,2,FALSE) -> 38.88771804
C206: Yes | D206: BNA0605 | E206: RWE Generation SE | F206: Emsland | G206: 49811 | H206: Lingen | J206: Niedersachsen | K206: C2 | L206: 01.01.1974 | M206: Gas | N206: Gas | O206: CCGT | P206: Combined cycle | Q206: OPSD (2018) | R206: 0.423 | S206: OPSD (2018) | T206: 359 | U206: =(1-VLOOKUP(O206,Start!$H$33:$I$40,2,FALSE)/100)*T206 -> 312.33 | V206: =VLOOKUP(N206,Start!$C$9:$D$15,2,FALSE)+VLOOKUP(N206,Start!$C$23:$D$29,2,FALSE) -> 10.67 | W206: =(V206/R206)+Start!$D$19*(VLOOKUP(N206,Start!$M$33:$N$39,2,FALSE)/R206)+VLOOKUP(O206,Start!$C$33:$D$40,2,FALSE) -> 38.48997636
... 349 more rows

Sheet Sources
C3: EWI Merit Order Tool 2021
C5: Sources | D5: =Imprint!F5 -> Version 2021.4_en
C7: Abbrevation | D7: Sources
C8: BNetzA (2020) | D8: Bundesnetzagentur; Kraftwerksliste der Bundesnetzagentur as of 01.04.2020. Licensed under "dl-en/by-2-0": www.govdata.de/dl-de/by-2-0; URL: https://www.bundesnetzagentur.de/DE/Sachgebiete/ElektrizitaetundGas/Unternehmen_Institutionen/Versorgungssicherheit/ Erzeugungskapazitaeten/Kraftwerksliste/kraftwerksliste-node.html (accessed on 17.12.2020)
C9: DIW (2014) | D9: Jonas Egerer & Clemens Gerbaulet & Richard Ihlenburg & Friedrich Kunz & Benjamin Reinhard & Christian von Hirschhausen & Alexander Weber & Jens Weibezahn, 2014. "Electricity Sector Data for Policy-Relevant Modeling: Data Documentation and Applications to the German and European Electricity Markets," Data Documentation 72, DIW Berlin, German Institute for Economic Research.
C10: ENTSO-E (2020) | D10: ENTSO-E; Transparency Platform, URL: https://transparency.entsoe.eu/ (accessed on 28.12.2020)
C11: EWI (2019) | D11: Energiewirtschaftliches Institut an der Universität zu Köln gGmbH; Auswirkungen einer Beendigung der Kohleverstromung bis 2038 auf den Strommarkt, CO2-Emissionen und ausgewählte Industrien - Eine Analyse des Abschlussberichts der WSB-Kommission, August 2019.
C12: OPSD (2018) | D12: Open Power System Data. 2018. Data Package Conventional power plants. Version 2018-12-20.
C13: R2B (2019) | D13: R2b energy consulting GmbH, Consentec GmbH, Fraunhofer ISI, TEP Energy GmbH; Definition und Monitoring der Versorgungssicherheit an den europäischen Strommärkten, Projekt Nr. 047/16, Januar 2019.
C14: Sandbag (2020) | D14: Sandbag; Carbon Price Viewer, URL: https://sandbag.org.uk/carbon-price-viewer/ (accessed on 05.01.2021)
C15: SDKW (2020) | D15: Statistik der Kohlewirtschaft e.V.; Entwicklung ausgewählter Energiepreise, Stand 22.12.2020. (Assumed value of November 2020 for December 2020)
C16: ÜNB (2019) | D16: 50Hertz Transmission GmbH, Amprio GmbH, TenneT TSO GmbH und TransnetBW GmbH; Netzentwicklungsplan Strom 2030, Version 2019, 2. Entwurf. April 2019.

Sheet Imprint
C3: EWI Merit Order Tool 2021
C5: Imprint | F5: =CONCATENATE("Version ",F11," ") -> Version 2021.4_en
D8: EWI Merit Order Tool 2021
D10: Institute of Energy Economics at the University of Cologne (EWI) | E10: Last updated: | F10: 28.10.2021
D11: Alte Wagenfabrik | E11: Model version: | F11: 2021.4_en
D12: Vogelsanger Straße 321a
D13: 50827 Köln
D14: Tel.: +49 (0)221 277 29-100
D15: Fax: +49 (0)221 277 29-400
D16: www.ewi.uni-koeln.de
D18: Authors:
D19: Fabian Arnold
D20: David Schlund
D21: Dr. Simon Schulte
D23: For questions, remarks and criticism contact: | E23: © Institute of Energy Economics at the University of Cologne (EWI).
D24: Fabian Arnold | E24: All rights reserved. Use of the tool and results only permitted with
D25: Tel.: +49 (0)221 277 29-232 | E25: reference to the authors and the Institute of Energy Economics at
D26: fabian.arnold@ewi.uni-koeln.de | E26: the University of Cologne gGmbH (EWI). Liability for consequential
E27: damages is excluded. This also and in particular applies to damages
E28: or lost profits arising as a result of using the information provided in
E29: this document.

Sheet Start Reset (hidden)
C3: EWI Merit Order Tool 2021
C5: Start | P5: =Imprint!F5 -> Version 2021.4_en
C7: =Start!C7 -> Fuel Prices | H7: Übersicht über die Grenzkosten der Kraftwerke
C8: =Start!C8 -> Fuel Type | D8: =Start!D8 -> Price | E8: =Start!E8 -> Unit | F8: =Start!F8 -> Source | H8: =Start!H8 -> The boxplot diagram gives a first overview of the marginal cost distribution of power plants. In the illustration to the right of this text box, the individual elements of the diagram are explained. Changes in assumptions are reflected in the diagram immediately. In order to transfer the assumptions to the merit order in the Merit Order sheet, the button Update Merit Order must be clicked.
C9: =Start!C9 -> Nuclear | D9: 5.5 | E9: EUR/MWhth | F9: refer to documentation
C10: =Start!C10 -> Lignite | D10: 3.1 | E10: EUR/MWhth | F10: EWI (2019)
C11: =Start!C11 -> Coal | D11: 6.25 | E11: EUR/MWhth | F11: VDKi (2020)
C12: =Start!C12 -> Gas | D12: 10.17 | E12: EUR/MWhth | F12: Spot TTF
C13: =Start!C13 -> Oil | D13: 22.9 | E13: EUR/MWhth | F13: SDKW (2019)
C14: =Start!C14 -> Waste | D14: 0 | E14: EUR/MWhth | F14: refer to documentation
C15: =Start!C15 -> Other | D15: 22.9 | E15: EUR/MWhth | F15: refer to documentation
C17: =Start!C17 -> Emission Certificate Price
D18: =D8 -> Price | E18: =E8 -> Unit | F18: Source Default Value
C19: =Start!C19 -> Emission certificate price | D19: 24.76 | E19: EUR/tCO2 | F19: Sandbag (2020)
C21: =Start!C21 -> Transport Costs
C22: Power Plant Type | D22: =D8 -> Price | E22: =E8 -> Unit | F22: Source Default Value
C23: Nuclear | D23: 0 | E23: EUR/MWhth | F23: refer to documentation
C24: =C10 -> Lignite | D24: 0 | E24: EUR/MWhth | F24: refer to documentation
C25: Coal | D25: 1.25 | E25: EUR/MWhth | F25: R2B (2019)
C26: Gas | D26: 0.5 | E26: EUR/MWhth | F26: R2B (2019)
C27: Oil | D27: 0.3 | E27: EUR/MWhth | F27: R2B (2019)
C28: Waste | D28: 0 | E28: EUR/MWhth | F28: refer to documentation
C29: Other | D29: 0 | E29: EUR/MWhth | F29: refer to documentation | H29: =Start!H29 -> Available RES generation capacity | I29: 0 | J29: MWh
C31: =Start!C31 -> Other Variable Costs | H31: =Start!H31 -> Outages | M31: =Start!M31 -> Emission Levels
C32: Power Plant Type | D32: =D8 -> Price | E32: =E8 -> Unit | F32: Source Default Value | H32: Power Plant Type | I32: =D8 -> Price | J32: =E8 -> Unit | K32: Source Default Value | M32: =Start!M32 -> Fuel Type | N32: =D8 -> Price | O32: =E8 -> Unit | P32: Source Default Value
C33: Nuclear | D33: 1.2 | E33: EUR/Mwhel | F33: refer to documentation | H33: Nuclear | I33: 7 | J33: % | K33: ENTSO-E (2020) | M33: Nuclear | N33: 0 | O33: tCO2/MWhth | P33: refer to documentation
C34: =C10 -> Lignite | D34: 1.7 | E34: EUR/Mwhel | F34: R2B (2019) | H34: =C10 -> Lignite | I34: 13 | J34: % | K34: ENTSO-E (2020) | M34: =C10 -> Lignite | N34: 0.404 | O34: tCO2/MWhth | P34: ÜNB (2019)
C35: =C11 -> Coal | D35: 1.3 | E35: EUR/Mwhel | F35: R2B (2019) | H35: =C11 -> Coal | I35: 25 | J35: % | K35: ENTSO-E (2020) | M35: Coal | N35: 0.337 | O35: tCO2/MWhth | P35: ÜNB (2019)
C36: GuD | D36: 1.5 | E36: EUR/Mwhel | F36: R2B (2019) | H36: GuD | I36: 13 | J36: % | K36: ENTSO-E (2020) | M36: Gas | N36: 0.201 | O36: tCO2/MWhth | P36: ÜNB (2019)
C37: Gasturbine | D37: 1 | E37: EUR/Mwhel | F37: R2B (2019) | H37: Gasturbine | I37: 13 | J37: % | K37: ENTSO-E (2020) | M37: Oil | N37: 0.28 | O37: tCO2/MWhth | P37: ÜNB (2019)
C38: =C13 -> Oil | D38: 1 | E38: EUR/Mwhel | F38: refer to documentation | H38: =C13 -> Oil | I38: 15 | J38: % | K38: refer to documentation | M38: Waste | N38: 0 | O38: tCO2/MWhth | P38: refer to documentation
C39: =C14 -> Waste | D39: 1 | E39: EUR/Mwhel | F39: refer to documentation | H39: =C14 -> Waste | I39: 15 | J39: % | K39: refer to documentation | M39: Other | N39: 0.214 | O39: tCO2/MWhth | P39: ÜNB (2019)
C40: =C15 -> Other | D40: 1 | E40: EUR/Mwhel | F40: refer to documentation | H40: =C15 -> Other | I40: 15 | J40: % | K40: refer to documentation

Sheet Backend I (hidden)
A1: Index | B1: Power Plant Type | C1: Performance | D1: cumulated performance | E1: marginal costs
A2: BNA0084 | B2: Waste | C2: 30.6 | D2: 30.6 | E2: 1
A3: BNA0088b | B3: Waste | C3: 29.75 | D3: 60.35 | E3: 1
A4: BNA0097 | B4: Waste | C4: 28.9 | D4: 89.25 | E4: 1
A5: BNA0117a | B5: Waste | C5: 10.2 | D5: 99.45 | E5: 1
A6: BNA0139 | B6: Waste | C6: 28.05 | D6: 127.5 | E6: 1
A7: BNA0223b | B7: Waste | C7: 45.645 | D7: 173.145 | E7: 1
A8: BNA0237 | B8: Waste | C8: 19.975 | D8: 193.12 | E8: 1
A9: BNA0287a | B9: Waste | C9: 22.1 | D9: 215.22 | E9: 1
A10: BNA0287b | B10: Waste | C10: 39.525 | D10: 254.745 | E10: 1
A11: BNA0380 | B11: Waste | C11: 19.805 | D11: 274.55 | E11: 1
A12: BNA0398 | B12: Waste | C12: 20.4 | D12: 294.95 | E12: 1
A13: BNA0407 | B13: Waste | C13: 11.22 | D13: 306.17 | E13: 1
A14: BNA0417 | B14: Waste | C14: 19.125 | D14: 325.295 | E14: 1
A15: BNA0438 | B15: Waste | C15: 31.875 | D15: 357.17 | E15: 1
A16: BNA0519 | B16: Waste | C16: 32.3 | D16: 389.47 | E16: 1
A17: BNA0590 | B17: Waste | C17: 13.8125 | D17: 403.2825 | E17: 1
A18: BNA0591 | B18: Waste | C18: 13.8125 | D18: 417.095 | E18: 1
A19: BNA0599 | B19: Waste | C19: 9.86 | D19: 426.955 | E19: 1
A20: BNA0622 | B20: Waste | C20: 24.82 | D20: 451.775 | E20: 1
A21: BNA0623 | B21: Waste | C21: 24.82 | D21: 476.595 | E21: 1
A22: BNA0640 | B22: Waste | C22: 7.3525 | D22: 483.9475 | E22: 1
A23: BNA0641a | B23: Waste | C23: 18.785 | D23: 502.7325 | E23: 1
A24: BNA0641b | B24: Waste | C24: 4.5645 | D24: 507.297 | E24: 1
A25: BNA0641c | B25: Waste | C25: 3.298 | D25: 510.595 | E25: 1
A26: BNA0693 | B26: Waste | C26: 45.56 | D26: 556.155 | E26: 1
A27: BNA0746 | B27: Waste | C27: 15.3 | D27: 571.455 | E27: 1
A28: BNA0750 | B28: Waste | C28: 34.34 | D28: 605.795 | E28: 1
A29: BNA0751 | B29: Waste | C29: 17.935 | D29: 623.73 | E29: 1
A30: BNA0845 | B30: Waste | C30: 7.65 | D30: 631.38 | E30: 1
A31: BNA0855 | B31: Waste | C31: 25.5 | D31: 656.88 | E31: 1
A32: BNA0895 | B32: Waste | C32: 20.74 | D32: 677.62 | E32: 1
A33: BNA0939a | B33: Waste | C33: 16.575 | D33: 694.195 | E33: 1
A34: BNA0969a | B34: Waste | C34: 15.3 | D34: 709.495 | E34: 1
A35: BNA0969c | B35: Waste | C35: 18.7 | D35: 728.195 | E35: 1
A36: BNA1020 | B36: Waste | C36: 22.95 | D36: 751.145 | E36: 1
A37: BNA1108 | B37: Waste | C37: 8.415 | D37: 759.56 | E37: 1
A38: BNA1110 | B38: Waste | C38: 8.075 | D38: 767.635 | E38: 1
A39: BNA1114 | B39: Waste | C39: 37.4 | D39: 805.035 | E39: 1
A40: BNA1116 | B40: Waste | C40: 11.9 | D40: 816.935 | E40: 1
A41: BNA1119 | B41: Waste | C41: 10.625 | D41: 827.56 | E41: 1
A42: BNA1139 | B42: Waste | C42: 11.56 | D42: 839.12 | E42: 1
A43: BNA1144 | B43: Waste | C43: 9.35 | D43: 848.47 | E43: 1
A44: BNA1148 | B44: Waste | C44: 12.393 | D44: 860.863 | E44: 1
A45: BNA1154 | B45: Waste | C45: 13.175 | D45: 874.038 | E45: 1
A46: BNA1155 | B46: Waste | C46: 9.945 | D46: 883.983 | E46: 1
A47: BNA1161 | B47: Waste | C47: 21.675 | D47: 905.658 | E47: 1
A48: BNA1167 | B48: Waste | C48: 13.6 | D48: 919.258 | E48: 1
A49: BNA1168 | B49: Waste | C49: 12.495 | D49: 931.753 | E49: 1
A50: BNA1184 | B50: Waste | C50: 38.335 | D50: 970.088 | E50: 1
A51: BNA1186b | B51: Waste | C51: 11.73 | D51: 981.818 | E51: 1
A52: BNA1186c | B52: Waste | C52: 1.275 | D52: 983.093 | E52: 1
A53: BNA1186d | B53: Waste | C53: 2.38 | D53: 985.473 | E53: 1
A54: BNA1186e | B54: Waste | C54: 1.275 | D54: 986.748 | E54: 1
A55: BNA1190 | B55: Waste | C55: 13.345 | D55: 1000.093 | E55: 1
A56: BNA1197 | B56: Waste | C56: 23.8 | D56: 1023.893 | E56: 1
A57: BNA1198 | B57: Waste | C57: 19.55 | D57: 1043.443 | E57: 1
A58: BNA1199 | B58: Waste | C58: 13.26 | D58: 1056.703 | E58: 1
A59: BNA1222 | B59: Waste | C59: 12.325 | D59: 1069.028 | E59: 1
A60: BNA1229 | B60: Waste | C60: 12.75 | D60: 1081.778 | E60: 1
A61: BNA1232 | B61: Waste | C61: 2.125 | D61: 1083.903 | E61: 1
A62: BNA1233 | B62: Waste | C62: 12.325 | D62: 1096.228 | E62: 1
A63: BNA1243 | B63: Waste | C63: 14.45 | D63: 1110.678 | E63: 1
A64: BNA1244 | B64: Waste | C64: 13.6 | D64: 1124.278 | E64: 1
A65: BNA1254 | B65: Waste | C65: 45.9 | D65: 1170.178 | E65: 1
A66: BNA1255 | B66: Waste | C66: 24.565 | D66: 1194.743 | E66: 1
A67: BNA1261 | B67: Waste | C67: 13.94 | D67: 1208.683 | E67: 1
A68: BNA1262 | B68: Waste | C68: 20.4 | D68: 1229.083 | E68: 1
A69: BNA1286 | B69: Waste | C69: 10.285 | D69: 1239.368 | E69: 1
A70: BNA1289 | B70: Waste | C70: 10.7185 | D70: 1250.0865 | E70: 1
A71: BNA1291 | B71: Waste | C71: 10.625 | D71: 1260.7115 | E71: 1
A72: BNA1295 | B72: Waste | C72: 8.5 | D72: 1269.2115 | E72: 1
A73: BNA1316 | B73: Waste | C73: 25.5 | D73: 1294.7115 | E73: 1
A74: BNA1330 | B74: Waste | C74: 14.45 | D74: 1309.1615 | E74: 1
A75: BNA1447a | B75: Waste | C75: 10.115 | D75: 1319.2765 | E75: 1
A76: BNA1447b | B76: Waste | C76: 5.865 | D76: 1325.1415 | E76: 1
A77: BNA1448 | B77: Waste | C77: 9.86 | D77: 1335.0015 | E77: 1
A78: BNA1449a | B78: Waste | C78: 7.395 | D78: 1342.3965 | E78: 1
A79: BNA1449b | B79: Waste | C79: 10.2 | D79: 1352.5965 | E79: 1
A80: BNA1465a | B80: Waste | C80: 23.8 | D80: 1376.3965 | E80: 1
A81: BNA1490 | B81: Waste | C81: 28.39 | D81: 1404.7865 | E81: 1
A82: BNA1510 | B82: Waste | C82: 15.895 | D82: 1420.6815 | E82: 1
A83: BNA1520 | B83: Waste | C83: 8.925 | D83: 1429.6065 | E83: 1
A84: BNA1864 | B84: Waste | C84: 8.075 | D84: 1437.6815 | E84: 1
A85: BNA1865 | B85: Waste | C85: 8.33 | D85: 1446.0115 | E85: 1
A86: BNA1867 | B86: Waste | C86: 15.3 | D86: 1461.3115 | E86: 1
B87: Waste | C87: 120.224425 | D87: 1581.535925 | E87: 1
A88: BNA0157 | B88: Nuclear | C88: 1311.3 | D88: 2892.835925 | E88: 17.86666667
A89: BNA0251 | B89: Nuclear | C89: 1264.8 | D89: 4157.635925 | E89: 17.86666667
A90: BNA0263 | B90: Nuclear | C90: 1311.3 | D90: 5468.935925 | E90: 17.86666667
A91: BNA0382 | B91: Nuclear | C91: 1197.84 | D91: 6666.775925 | E91: 17.86666667
A92: BNA0607 | B92: Nuclear | C92: 1242.48 | D92: 7909.255925 | E92: 17.86666667
A93: BNA0686 | B93: Nuclear | C93: 1218.3 | D93: 9127.555925 | E93: 17.86666667
A94: BNA1817 | B94: CCGT | C94: 517.65 | D94: 9645.205925 | E94: 27.06660131
A95: BNA1819 | B95: CCGT | C95: 67.86 | D95: 9713.065925 | E95: 27.06660131
A96: BNA1820 | B96: CCGT | C96: 386.715 | D96: 10099.78093 | E96: 27.06660131
A97: BNA0918b | B97: CCGT | C97: 136.59 | D97: 10236.37093 | E97: 27.25598354
A98: BNA0922 | B98: CCGT | C98: 87 | D98: 10323.37093 | E98: 27.25598354
A99: BNA0256b | B99: CCGT | C99: 28.362 | D99: 10351.73293 | E99: 27.44819237
A100: BNA0261c | B100: CCGT | C100: 5.829 | D100: 10357.56192 | E100: 27.44819237
A101: BNA0392b | B101: CCGT | C101: 48.8418 | D101: 10406.40373 | E101: 27.64329156
A102: BNA0418 | B102: CCGT | C102: 200.1 | D102: 10606.50373 | E102: 27.64329156
A103: BNA0548b | B103: CCGT | C103: 374.1 | D103: 10980.60373 | E103: 27.64329156
A104: BNA1337e | B104: CCGT | C104: 40.89 | D104: 11021.49373 | E104: 27.64329156
A105: BNA1523b | B105: CCGT | C105: 23.838 | D105: 11045.33173 | E105: 27.64329156
A106: BNA0059b | B106: CCGT | C106: 67.86 | D106: 11113.19173 | E106: 28.04242578
A107: BNA0136 | B107: CCGT | C107: 64.38 | D107: 11177.57172 | E107: 28.24659829
A108: BNA0588 | B108: CCGT | C108: 145.29 | D108: 11322.86173 | E108: 28.24659829
A109: BNA0598b | B109: CCGT | C109: 17.4 | D109: 11340.26173 | E109: 28.24659829
A110: BNA0606 | B110: CCGT | C110: 771.69 | D110: 12111.95173 | E110: 28.24659829
A111: BNA0805 | B111: CCGT | C111: 103.095 | D111: 12215.04673 | E111: 28.24659829
A112: BNA0400 | B112: CCGT | C112: 110.49 | D112: 12325.53672 | E112: 28.45393626
A113: BNA0444 | B113: CCGT | C113: 60.03 | D113: 12385.56673 | E113: 28.45393626
A114: BNA1087 | B114: CCGT | C114: 25.665 | D114: 12411.23173 | E114: 28.45393626
A115: BNA0410 | B115: CCGT | C115: 354.09 | D115: 12765.32173 | E115: 28.66451389
A116: BNA0411 | B116: CCGT | C116: 356.7 | D116: 13122.02173 | E116: 28.66451389
A117: BNA0545 | B117: CCGT | C117: 359.31 | D117: 13481.33173 | E117: 28.66451389
A118: BNA0442 | B118: CCGT | C118: 362.79 | D118: 13844.12173 | E118: 28.8784077
A119: BNA0548a | B119: CCGT | C119: 696 | D119: 14540.12173 | E119: 29.09569665
A120: BNA0100 | B120: CCGT | C120: 32.5815 | D120: 14572.70323 | E120: 29.31646222
A121: BNA0214 | B121: CCGT | C121: 203.58 | D121: 14776.28323 | E121: 29.31646222
A122: BNA0261a | B122: CCGT | C122: 18.792 | D122: 14795.07523 | E122: 29.31646222
A123: BNA0614b | B123: CCGT | C123: 432.825 | D123: 15227.90023 | E123: 29.31646222
A124: BNA0685 | B124: CCGT | C124: 90.6018 | D124: 15318.50203 | E124: 29.31646222
A125: BNA0742 | B125: CCGT | C125: 65.25 | D125: 15383.75203 | E125: 29.31646222
A126: BNA0743 | B126: CCGT | C126: 65.25 | D126: 15449.00203 | E126: 29.31646222
A127: BNA0861a | B127: CCGT | C127: 65.25 | D127: 15514.25203 | E127: 29.31646222
A128: BNA1082 | B128: CCGT | C128: 76.57653 | D128: 15590.82856 | E128: 29.31646222
A129: BNA1088 | B129: CCGT | C129: 38.715 | D129: 15629.54356 | E129: 29.31646222
A130: BNA0546 | B130: CCGT | C130: 93.96 | D130: 15723.50356 | E130: 29.54078853
A131: BNA0684a | B131: CCGT | C131: 108.663 | D131: 15832.16656 | E131: 29.54078853
A132: BNA0684b | B132: CCGT | C132: 107.793 | D132: 15939.95956 | E132: 29.54078853
A133: BNA0684c | B133: CCGT | C133: 111.012 | D133: 16050.97156 | E133: 29.54078853
A134: BNA0499 | B134: CCGT | C134: 74.82 | D134: 16125.79156 | E134: 29.76876242
A135: BNA0658 | B135: CCGT | C135: 53.1831 | D135: 16178.97466 | E135: 29.76876242
A136: BNA1196b | B136: CCGT | C136: 10.4052 | D136: 16189.37986 | E136: 29.76876242
A137: BNA1334 | B137: CCGT | C137: 12.876 | D137: 16202.25586 | E137: 30.00047359
A138: BNA0172a | B138: CCGT | C138: 104.4 | D138: 16306.65586 | E138: 30.23601469
A139: BNA1183 | B139: CCGT | C139: 13.746 | D139: 16320.40186 | E139: 30.23601469
A140: BNA0105 | B140: CCGT | C140: 92.22 | D140: 16412.62186 | E140: 30.47548148
A141: BNA0199 | B141: CCGT | C141: 509.82 | D141: 16922.44186 | E141: 30.47548148
A142: BNA0220 | B142: CCGT | C142: 87 | D142: 17009.44186 | E142: 30.47548148
A143: BNA0397 | B143: CCGT | C143: 195.75 | D143: 17205.19186 | E143: 30.47548148
A144: BNA0626 | B144: CCGT | C144: 377.754 | D144: 17582.94586 | E144: 30.47548148
A145: BNA1450 | B145: CCGT | C145: 11.31 | D145: 17594.25586 | E145: 30.47548148
A146: BNA0256a | B146: CCGT | C146: 66.555 | D146: 17660.81086 | E146: 30.71897292
A147: BNA0857 | B147: CCGT | C147: 97.527 | D147: 17758.33786 | E147: 30.71897292
A148: BNA0592 | B148: CCGT | C148: 33.93 | D148: 17792.26786 | E148: 30.96659134
A149: BNA0615 | B149: CCGT | C149: 356.7 | D149: 18148.96786 | E149: 31.21844255
A150: BNA0688 | B150: CCGT | C150: 65.25 | D150: 18214.21786 | E150: 31.21844255
A151: BNA0073 | B151: CCGT | C151: 386.28 | D151: 18600.49786 | E151: 31.47463602
A152: BNA0504 | B152: CCGT | C152: 158.34 | D152: 18758.83786 | E152: 31.47463602
A153: BNA0848 | B153: CCGT | C153: 93.96 | D153: 18852.79786 | E153: 31.47463602
A154: BNA1279 | B154: CCGT | C154: 45.153 | D154: 18897.95085 | E154: 31.47463602
A155: BNA0207 | B155: CCGT | C155: 226.2 | D155: 19124.15085 | E155: 31.73528502
A156: BNA0755b | B156: CCGT | C156: 52.2 | D156: 19176.35086 | E156: 31.73528502
A157: BNA1185 | B157: Lignite | C157: 17.661 | D157: 19194.01186 | E157: 31.91918819
A158: BNA0088a | B158: CCGT | C158: 122.235 | D158: 19316.24686 | E158: 32.00050682
A159: BNA0130 | B159: CCGT | C159: 139.2 | D159: 19455.44686 | E159: 32.00050682
A160: BNA0593 | B160: CCGT | C160: 30.45 | D160: 19485.89686 | E160: 32.00050682
A161: BNA0594 | B161: CCGT | C161: 30.45 | D161: 19516.34686 | E161: 32.00050682
A162: BNA0595 | B162: CCGT | C162: 32.19 | D162: 19548.53686 | E162: 32.00050682
A163: BNA0893 | B163: CCGT | C163: 106.14 | D163: 19654.67686 | E163: 32.00050682
A164: BNA1164 | B164: Lignite | C164: 20.2014 | D164: 19674.87826 | E164: 32.08738404
A165: BNA1401a | B165: Lignite | C165: 922.2 | D165: 20597.07826 | E165: 32.25746269
A166: BNA1401b | B166: Lignite | C166: 922.2 | D166: 21519.27826 | E166: 32.25746269
A167: BNA1404 | B167: Lignite | C167: 556.8 | D167: 22076.07826 | E167: 32.25746269
A168: BNA1086 | B168: CCGT | C168: 21.75 | D168: 22097.82826 | E168: 32.27042281
A169: BNA1329 | B169: CCGT | C169: 11.4057 | D169: 22109.23396 | E169: 32.27042281
A170: BNA1523a | B170: CCGT | C170: 9.918 | D170: 22119.15196 | E170: 32.54515873
A171: BNA0179 | B171: Lignite | C171: 78.996 | D171: 22198.14796 | E171: 32.60339623
A172: BNA0543 | B172: Lignite | C172: 65.511 | D172: 22263.65896 | E172: 32.60339623
A173: BNA0270 | B173: Coal | C173: 23.25 | D173: 22286.90896 | E173: 32.73674603
A174: BNA0707 | B174: Lignite | C174: 563.76 | D174: 22850.66896 | E174: 32.77931689
A175: BNA0708 | B175: Lignite | C175: 546.36 | D175: 23397.02896 | E175: 32.95725191
A176: BNA0597 | B176: CCGT | C176: 7.569 | D176: 23404.59796 | E176: 33.10961616
A177: BNA0271 | B177: Coal | C177: 24.75 | D177: 23429.34796 | E177: 33.60197757
A178: BNA0498 | B178: Coal | C178: 49.5 | D178: 23478.84796 | E178: 33.60197757
A179: BNA0709 | B179: Lignite | C179: 821.28 | D179: 24300.12795 | E179: 34.06916996
A180: BNA0115 | B180: Lignite | C180: 761.25 | D180: 25061.37795 | E180: 34.4576
A181: BNA0124 | B181: Lignite | C181: 745.59 | D181: 25806.96796 | E181: 34.4576
A182: BNA1461 | B182: Lignite | C182: 15.225 | D182: 25822.19295 | E182: 34.4576
A183: BNA0116 | B183: Lignite | C183: 761.25 | D183: 26583.44295 | E183: 34.65533199
A184: BNA0183 | B184: Lignite | C184: 64.38 | D184: 26647.82295 | E184: 34.65533199
A185: BNA0284 | B185: CCGT | C185: 41.76 | D185: 26689.58295 | E185: 34.79097872
A186: BNA0272 | B186: Coal | C186: 24.75 | D186: 26714.33295 | E186: 34.8325291
A187: BNA0915 | B187: Lignite | C187: 652.5 | D187: 27366.83295 | E187: 34.85546559
A188: BNA0914 | B188: Lignite | C188: 652.5 | D188: 28019.33295 | E188: 35.05804481
A189: BNA0138 | B189: Coal | C189: 32.475 | D189: 28051.80795 | E189: 35.15495726
A190: BNA0785 | B190: Lignite | C190: 404.55 | D190: 28456.35795 | E190: 35.26311475
A191: BNA0786 | B191: Lignite | C191: 404.55 | D191: 28860.90795 | E191: 35.26311475
A192: BNA0787 | B192: Lignite | C192: 404.55 | D192: 29265.45795 | E192: 35.26311475
A193: BNA0788 | B193: Lignite | C193: 404.55 | D193: 29670.00795 | E193: 35.26311475
A194: BNA0878 | B194: Lignite | C194: 391.5 | D194: 30061.50795 | E194: 35.26311475
A195: BNA0879 | B195: Lignite | C195: 391.5 | D195: 30453.00795 | E195: 35.26311475
A196: BNA1293a | B196: Lignite | C196: 8.7 | D196: 30461.70795 | E196: 35.47072165
A197: BNA1293b | B197: Lignite | C197: 8.7 | D197: 30470.40795 | E197: 35.47072165
A198: BNA0662a | B198: Coal | C198: 51.3 | D198: 30521.70795 | E198: 35.48364617
A199: BNA0842b | B199: CCGT | C199: 8.004 | D199: 30529.71195 | E199: 35.49991308
A200: BNA0646b | B200: Coal | C200: 632.25 | D200: 31161.96195 | E200: 35.55755676
... 336 more rows

Sheet Backend II (hidden)
A1: Power | B1: Renewables | C1: Waste | D1: Nuclear | E1: Lignite | F1: Coal | G1: CCGT | H1: OCGT | I1: Oil | J1: Other
A2: 0 | B2: 0 | C2: 1 | D2: 0 | E2: 0 | F2: 0 | G2: 0 | H2: 0 | I2: 0 | J2: 0
A3: 1581.535925 | B3: 0 | C3: 1 | D3: 0 | E3: 0 | F3: 0 | G3: 0 | H3: 0 | I3: 0 | J3: 0
A4: 1581.535925 | B4: 0 | C4: 0 | D4: 17.8667 | E4: 0 | F4: 0 | G4: 0 | H4: 0 | I4: 0 | J4: 0
A5: 9127.555925 | B5: 0 | C5: 0 | D5: 17.8667 | E5: 0 | F5: 0 | G5: 0 | H5: 0 | I5: 0 | J5: 0
A6: 9127.555925 | B6: 0 | C6: 0 | D6: 0 | E6: 0 | F6: 0 | G6: 27.0666 | H6: 0 | I6: 0 | J6: 0
A7: 10099.78093 | B7: 0 | C7: 0 | D7: 0 | E7: 0 | F7: 0 | G7: 27.0666 | H7: 0 | I7: 0 | J7: 0
A8: 10099.78093 | B8: 0 | C8: 0 | D8: 0 | E8: 0 | F8: 0 | G8: 27.256 | H8: 0 | I8: 0 | J8: 0
A9: 10323.37093 | B9: 0 | C9: 0 | D9: 0 | E9: 0 | F9: 0 | G9: 27.256 | H9: 0 | I9: 0 | J9: 0
A10: 10323.37093 | B10: 0 | C10: 0 | D10: 0 | E10: 0 | F10: 0 | G10: 27.4482 | H10: 0 | I10: 0 | J10: 0
A11: 10357.56192 | B11: 0 | C11: 0 | D11: 0 | E11: 0 | F11: 0 | G11: 27.4482 | H11: 0 | I11: 0 | J11: 0
A12: 10357.56192 | B12: 0 | C12: 0 | D12: 0 | E12: 0 | F12: 0 | G12: 27.6433 | H12: 0 | I12: 0 | J12: 0
A13: 11045.33173 | B13: 0 | C13: 0 | D13: 0 | E13: 0 | F13: 0 | G13: 27.6433 | H13: 0 | I13: 0 | J13: 0
A14: 11045.33173 | B14: 0 | C14: 0 | D14: 0 | E14: 0 | F14: 0 | G14: 28.0424 | H14: 0 | I14: 0 | J14: 0
A15: 11113.19173 | B15: 0 | C15: 0 | D15: 0 | E15: 0 | F15: 0 | G15: 28.0424 | H15: 0 | I15: 0 | J15: 0
A16: 11113.19173 | B16: 0 | C16: 0 | D16: 0 | E16: 0 | F16: 0 | G16: 28.2466 | H16: 0 | I16: 0 | J16: 0
A17: 12215.04673 | B17: 0 | C17: 0 | D17: 0 | E17: 0 | F17: 0 | G17: 28.2466 | H17: 0 | I17: 0 | J17: 0
A18: 12215.04673 | B18: 0 | C18: 0 | D18: 0 | E18: 0 | F18: 0 | G18: 28.4539 | H18: 0 | I18: 0 | J18: 0
A19: 12411.23173 | B19: 0 | C19: 0 | D19: 0 | E19: 0 | F19: 0 | G19: 28.4539 | H19: 0 | I19: 0 | J19: 0
A20: 12411.23173 | B20: 0 | C20: 0 | D20: 0 | E20: 0 | F20: 0 | G20: 28.6645 | H20: 0 | I20: 0 | J20: 0
A21: 13481.33173 | B21: 0 | C21: 0 | D21: 0 | E21: 0 | F21: 0 | G21: 28.6645 | H21: 0 | I21: 0 | J21: 0
A22: 13481.33173 | B22: 0 | C22: 0 | D22: 0 | E22: 0 | F22: 0 | G22: 28.8784 | H22: 0 | I22: 0 | J22: 0
A23: 13844.12173 | B23: 0 | C23: 0 | D23: 0 | E23: 0 | F23: 0 | G23: 28.8784 | H23: 0 | I23: 0 | J23: 0
A24: 13844.12173 | B24: 0 | C24: 0 | D24: 0 | E24: 0 | F24: 0 | G24: 29.0957 | H24: 0 | I24: 0 | J24: 0
A25: 14540.12173 | B25: 0 | C25: 0 | D25: 0 | E25: 0 | F25: 0 | G25: 29.0957 | H25: 0 | I25: 0 | J25: 0
A26: 14540.12173 | B26: 0 | C26: 0 | D26: 0 | E26: 0 | F26: 0 | G26: 29.3165 | H26: 0 | I26: 0 | J26: 0
A27: 15629.54356 | B27: 0 | C27: 0 | D27: 0 | E27: 0 | F27: 0 | G27: 29.3165 | H27: 0 | I27: 0 | J27: 0
A28: 15629.54356 | B28: 0 | C28: 0 | D28: 0 | E28: 0 | F28: 0 | G28: 29.5408 | H28: 0 | I28: 0 | J28: 0
A29: 16050.97156 | B29: 0 | C29: 0 | D29: 0 | E29: 0 | F29: 0 | G29: 29.5408 | H29: 0 | I29: 0 | J29: 0
A30: 16050.97156 | B30: 0 | C30: 0 | D30: 0 | E30: 0 | F30: 0 | G30: 29.7688 | H30: 0 | I30: 0 | J30: 0
A31: 16189.37986 | B31: 0 | C31: 0 | D31: 0 | E31: 0 | F31: 0 | G31: 29.7688 | H31: 0 | I31: 0 | J31: 0
A32: 16189.37986 | B32: 0 | C32: 0 | D32: 0 | E32: 0 | F32: 0 | G32: 30.0005 | H32: 0 | I32: 0 | J32: 0
A33: 16202.25586 | B33: 0 | C33: 0 | D33: 0 | E33: 0 | F33: 0 | G33: 30.0005 | H33: 0 | I33: 0 | J33: 0
A34: 16202.25586 | B34: 0 | C34: 0 | D34: 0 | E34: 0 | F34: 0 | G34: 30.236 | H34: 0 | I34: 0 | J34: 0
A35: 16320.40186 | B35: 0 | C35: 0 | D35: 0 | E35: 0 | F35: 0 | G35: 30.236 | H35: 0 | I35: 0 | J35: 0
A36: 16320.40186 | B36: 0 | C36: 0 | D36: 0 | E36: 0 | F36: 0 | G36: 30.4755 | H36: 0 | I36: 0 | J36: 0
A37: 17594.25586 | B37: 0 | C37: 0 | D37: 0 | E37: 0 | F37: 0 | G37: 30.4755 | H37: 0 | I37: 0 | J37: 0
A38: 17594.25586 | B38: 0 | C38: 0 | D38: 0 | E38: 0 | F38: 0 | G38: 30.719 | H38: 0 | I38: 0 | J38: 0
A39: 17758.33786 | B39: 0 | C39: 0 | D39: 0 | E39: 0 | F39: 0 | G39: 30.719 | H39: 0 | I39: 0 | J39: 0
A40: 17758.33786 | B40: 0 | C40: 0 | D40: 0 | E40: 0 | F40: 0 | G40: 30.9666 | H40: 0 | I40: 0 | J40: 0
A41: 17792.26786 | B41: 0 | C41: 0 | D41: 0 | E41: 0 | F41: 0 | G41: 30.9666 | H41: 0 | I41: 0 | J41: 0
A42: 17792.26786 | B42: 0 | C42: 0 | D42: 0 | E42: 0 | F42: 0 | G42: 31.2184 | H42: 0 | I42: 0 | J42: 0
A43: 18214.21786 | B43: 0 | C43: 0 | D43: 0 | E43: 0 | F43: 0 | G43: 31.2184 | H43: 0 | I43: 0 | J43: 0
A44: 18214.21786 | B44: 0 | C44: 0 | D44: 0 | E44: 0 | F44: 0 | G44: 31.4746 | H44: 0 | I44: 0 | J44: 0
A45: 18897.95085 | B45: 0 | C45: 0 | D45: 0 | E45: 0 | F45: 0 | G45: 31.4746 | H45: 0 | I45: 0 | J45: 0
A46: 18897.95085 | B46: 0 | C46: 0 | D46: 0 | E46: 0 | F46: 0 | G46: 31.7353 | H46: 0 | I46: 0 | J46: 0
A47: 19176.35086 | B47: 0 | C47: 0 | D47: 0 | E47: 0 | F47: 0 | G47: 31.7353 | H47: 0 | I47: 0 | J47: 0
A48: 19176.35086 | B48: 0 | C48: 0 | D48: 0 | E48: 31.9192 | F48: 0 | G48: 0 | H48: 0 | I48: 0 | J48: 0
A49: 19194.01186 | B49: 0 | C49: 0 | D49: 0 | E49: 31.9192 | F49: 0 | G49: 0 | H49: 0 | I49: 0 | J49: 0
A50: 19194.01186 | B50: 0 | C50: 0 | D50: 0 | E50: 0 | F50: 0 | G50: 32.0005 | H50: 0 | I50: 0 | J50: 0
A51: 19654.67686 | B51: 0 | C51: 0 | D51: 0 | E51: 0 | F51: 0 | G51: 32.0005 | H51: 0 | I51: 0 | J51: 0
A52: 19654.67686 | B52: 0 | C52: 0 | D52: 0 | E52: 32.0874 | F52: 0 | G52: 0 | H52: 0 | I52: 0 | J52: 0
A53: 19674.87826 | B53: 0 | C53: 0 | D53: 0 | E53: 32.0874 | F53: 0 | G53: 0 | H53: 0 | I53: 0 | J53: 0
A54: 19674.87826 | B54: 0 | C54: 0 | D54: 0 | E54: 32.2575 | F54: 0 | G54: 0 | H54: 0 | I54: 0 | J54: 0
A55: 22076.07826 | B55: 0 | C55: 0 | D55: 0 | E55: 32.2575 | F55: 0 | G55: 0 | H55: 0 | I55: 0 | J55: 0
A56: 22076.07826 | B56: 0 | C56: 0 | D56: 0 | E56: 0 | F56: 0 | G56: 32.2704 | H56: 0 | I56: 0 | J56: 0
A57: 22109.23396 | B57: 0 | C57: 0 | D57: 0 | E57: 0 | F57: 0 | G57: 32.2704 | H57: 0 | I57: 0 | J57: 0
A58: 22109.23396 | B58: 0 | C58: 0 | D58: 0 | E58: 0 | F58: 0 | G58: 32.5452 | H58: 0 | I58: 0 | J58: 0
A59: 22119.15196 | B59: 0 | C59: 0 | D59: 0 | E59: 0 | F59: 0 | G59: 32.5452 | H59: 0 | I59: 0 | J59: 0
A60: 22119.15196 | B60: 0 | C60: 0 | D60: 0 | E60: 32.6034 | F60: 0 | G60: 0 | H60: 0 | I60: 0 | J60: 0
A61: 22263.65896 | B61: 0 | C61: 0 | D61: 0 | E61: 32.6034 | F61: 0 | G61: 0 | H61: 0 | I61: 0 | J61: 0
A62: 22263.65896 | B62: 0 | C62: 0 | D62: 0 | E62: 0 | F62: 32.7367 | G62: 0 | H62: 0 | I62: 0 | J62: 0
A63: 22286.90896 | B63: 0 | C63: 0 | D63: 0 | E63: 0 | F63: 32.7367 | G63: 0 | H63: 0 | I63: 0 | J63: 0
A64: 22286.90896 | B64: 0 | C64: 0 | D64: 0 | E64: 32.7793 | F64: 0 | G64: 0 | H64: 0 | I64: 0 | J64: 0
A65: 22850.66896 | B65: 0 | C65: 0 | D65: 0 | E65: 32.7793 | F65: 0 | G65: 0 | H65: 0 | I65: 0 | J65: 0
A66: 22850.66896 | B66: 0 | C66: 0 | D66: 0 | E66: 32.9573 | F66: 0 | G66: 0 | H66: 0 | I66: 0 | J66: 0
A67: 23397.02896 | B67: 0 | C67: 0 | D67: 0 | E67: 32.9573 | F67: 0 | G67: 0 | H67: 0 | I67: 0 | J67: 0
A68: 23397.02896 | B68: 0 | C68: 0 | D68: 0 | E68: 0 | F68: 0 | G68: 33.1096 | H68: 0 | I68: 0 | J68: 0
A69: 23404.59796 | B69: 0 | C69: 0 | D69: 0 | E69: 0 | F69: 0 | G69: 33.1096 | H69: 0 | I69: 0 | J69: 0
A70: 23404.59796 | B70: 0 | C70: 0 | D70: 0 | E70: 0 | F70: 33.602 | G70: 0 | H70: 0 | I70: 0 | J70: 0
A71: 23478.84796 | B71: 0 | C71: 0 | D71: 0 | E71: 0 | F71: 33.602 | G71: 0 | H71: 0 | I71: 0 | J71: 0
A72: 23478.84796 | B72: 0 | C72: 0 | D72: 0 | E72: 34.0692 | F72: 0 | G72: 0 | H72: 0 | I72: 0 | J72: 0
A73: 24300.12795 | B73: 0 | C73: 0 | D73: 0 | E73: 34.0692 | F73: 0 | G73: 0 | H73: 0 | I73: 0 | J73: 0
A74: 24300.12795 | B74: 0 | C74: 0 | D74: 0 | E74: 34.4576 | F74: 0 | G74: 0 | H74: 0 | I74: 0 | J74: 0
A75: 25822.19295 | B75: 0 | C75: 0 | D75: 0 | E75: 34.4576 | F75: 0 | G75: 0 | H75: 0 | I75: 0 | J75: 0
A76: 25822.19295 | B76: 0 | C76: 0 | D76: 0 | E76: 34.6553 | F76: 0 | G76: 0 | H76: 0 | I76: 0 | J76: 0
A77: 26647.82295 | B77: 0 | C77: 0 | D77: 0 | E77: 34.6553 | F77: 0 | G77: 0 | H77: 0 | I77: 0 | J77: 0
A78: 26647.82295 | B78: 0 | C78: 0 | D78: 0 | E78: 0 | F78: 0 | G78: 34.791 | H78: 0 | I78: 0 | J78: 0
A79: 26689.58295 | B79: 0 | C79: 0 | D79: 0 | E79: 0 | F79: 0 | G79: 34.791 | H79: 0 | I79: 0 | J79: 0
A80: 26689.58295 | B80: 0 | C80: 0 | D80: 0 | E80: 0 | F80: 34.8325 | G80: 0 | H80: 0 | I80: 0 | J80: 0
A81: 26714.33295 | B81: 0 | C81: 0 | D81: 0 | E81: 0 | F81: 34.8325 | G81: 0 | H81: 0 | I81: 0 | J81: 0
A82: 26714.33295 | B82: 0 | C82: 0 | D82: 0 | E82: 34.8555 | F82: 0 | G82: 0 | H82: 0 | I82: 0 | J82: 0
A83: 27366.83295 | B83: 0 | C83: 0 | D83: 0 | E83: 34.8555 | F83: 0 | G83: 0 | H83: 0 | I83: 0 | J83: 0
A84: 27366.83295 | B84: 0 | C84: 0 | D84: 0 | E84: 35.058 | F84: 0 | G84: 0 | H84: 0 | I84: 0 | J84: 0
A85: 28019.33295 | B85: 0 | C85: 0 | D85: 0 | E85: 35.058 | F85: 0 | G85: 0 | H85: 0 | I85: 0 | J85: 0
A86: 28019.33295 | B86: 0 | C86: 0 | D86: 0 | E86: 0 | F86: 35.155 | G86: 0 | H86: 0 | I86: 0 | J86: 0
A87: 28051.80795 | B87: 0 | C87: 0 | D87: 0 | E87: 0 | F87: 35.155 | G87: 0 | H87: 0 | I87: 0 | J87: 0
A88: 28051.80795 | B88: 0 | C88: 0 | D88: 0 | E88: 35.2631 | F88: 0 | G88: 0 | H88: 0 | I88: 0 | J88: 0
A89: 30453.00795 | B89: 0 | C89: 0 | D89: 0 | E89: 35.2631 | F89: 0 | G89: 0 | H89: 0 | I89: 0 | J89: 0
A90: 30453.00795 | B90: 0 | C90: 0 | D90: 0 | E90: 35.4707 | F90: 0 | G90: 0 | H90: 0 | I90: 0 | J90: 0
A91: 30470.40795 | B91: 0 | C91: 0 | D91: 0 | E91: 35.4707 | F91: 0 | G91: 0 | H91: 0 | I91: 0 | J91: 0
A92: 30470.40795 | B92: 0 | C92: 0 | D92: 0 | E92: 0 | F92: 35.4836 | G92: 0 | H92: 0 | I92: 0 | J92: 0
A93: 30521.70795 | B93: 0 | C93: 0 | D93: 0 | E93: 0 | F93: 35.4836 | G93: 0 | H93: 0 | I93: 0 | J93: 0
A94: 30521.70795 | B94: 0 | C94: 0 | D94: 0 | E94: 0 | F94: 0 | G94: 35.4999 | H94: 0 | I94: 0 | J94: 0
A95: 30529.71195 | B95: 0 | C95: 0 | D95: 0 | E95: 0 | F95: 0 | G95: 35.4999 | H95: 0 | I95: 0 | J95: 0
A96: 30529.71195 | B96: 0 | C96: 0 | D96: 0 | E96: 0 | F96: 35.5576 | G96: 0 | H96: 0 | I96: 0 | J96: 0
A97: 32910.21195 | B97: 0 | C97: 0 | D97: 0 | E97: 0 | F97: 35.5576 | G97: 0 | H97: 0 | I97: 0 | J97: 0
A98: 32910.21195 | B98: 0 | C98: 0 | D98: 0 | E98: 0 | F98: 0 | G98: 35.6037 | H98: 0 | I98: 0 | J98: 0
A99: 32913.95295 | B99: 0 | C99: 0 | D99: 0 | E99: 0 | F99: 0 | G99: 35.6037 | H99: 0 | I99: 0 | J99: 0
A100: 32913.95295 | B100: 0 | C100: 0 | D100: 0 | E100: 35.6809 | F100: 0 | G100: 0 | H100: 0 | I100: 0 | J100: 0
A101: 33345.47295 | B101: 0 | C101: 0 | D101: 0 | E101: 35.6809 | F101: 0 | G101: 0 | H101: 0 | I101: 0 | J101: 0
A102: 33345.47295 | B102: 0 | C102: 0 | D102: 0 | E102: 0 | F102: 0 | G102: 35.708 | H102: 0 | I102: 0 | J102: 0
A103: 33362.56845 | B103: 0 | C103: 0 | D103: 0 | E103: 0 | F103: 0 | G103: 35.708 | H103: 0 | I103: 0 | J103: 0
A104: 33362.56845 | B104: 0 | C104: 0 | D104: 0 | E104: 0 | F104: 35.7437 | G104: 0 | H104: 0 | I104: 0 | J104: 0
A105: 34650.09345 | B105: 0 | C105: 0 | D105: 0 | E105: 0 | F105: 35.7437 | G105: 0 | H105: 0 | I105: 0 | J105: 0
A106: 34650.09345 | B106: 0 | C106: 0 | D106: 0 | E106: 0 | F106: 0 | G106: 35.8131 | H106: 0 | I106: 0 | J106: 0
A107: 35021.19195 | B107: 0 | C107: 0 | D107: 0 | E107: 0 | F107: 0 | G107: 35.8131 | H107: 0 | I107: 0 | J107: 0
A108: 35021.19195 | B108: 0 | C108: 0 | D108: 0 | E108: 35.8937 | F108: 0 | G108: 0 | H108: 0 | I108: 0 | J108: 0
A109: 35446.01295 | B109: 0 | C109: 0 | D109: 0 | E109: 35.8937 | F109: 0 | G109: 0 | H109: 0 | I109: 0 | J109: 0
A110: 35446.01295 | B110: 0 | C110: 0 | D110: 0 | E110: 0 | F110: 0 | G110: 35.9263 | H110: 0 | I110: 0 | J110: 0
A111: 35554.76295 | B111: 0 | C111: 0 | D111: 0 | E111: 0 | F111: 0 | G111: 35.9263 | H111: 0 | I111: 0 | J111: 0
A112: 35554.76295 | B112: 0 | C112: 0 | D112: 0 | E112: 0 | F112: 35.932 | G112: 0 | H112: 0 | I112: 0 | J112: 0
A113: 36986.51295 | B113: 0 | C113: 0 | D113: 0 | E113: 0 | F113: 35.932 | G113: 0 | H113: 0 | I113: 0 | J113: 0
A114: 36986.51295 | B114: 0 | C114: 0 | D114: 0 | E114: 0 | F114: 0 | G114: 36.2706 | H114: 0 | I114: 0 | J114: 0
A115: 37865.38695 | B115: 0 | C115: 0 | D115: 0 | E115: 0 | F115: 0 | G115: 36.2706 | H115: 0 | I115: 0 | J115: 0
A116: 37865.38695 | B116: 0 | C116: 0 | D116: 0 | E116: 0 | F116: 36.3146 | G116: 0 | H116: 0 | I116: 0 | J116: 0
A117: 38219.38695 | B117: 0 | C117: 0 | D117: 0 | E117: 0 | F117: 36.3146 | G117: 0 | H117: 0 | I117: 0 | J117: 0
A118: 38219.38695 | B118: 0 | C118: 0 | D118: 0 | E118: 36.3275 | F118: 0 | G118: 0 | H118: 0 | I118: 0 | J118: 0
A119: 38232.00195 | B119: 0 | C119: 0 | D119: 0 | E119: 36.3275 | F119: 0 | G119: 0 | H119: 0 | I119: 0 | J119: 0
A120: 38232.00195 | B120: 0 | C120: 0 | D120: 0 | E120: 36.5485 | F120: 0 | G120: 0 | H120: 0 | I120: 0 | J120: 0
A121: 38251.34553 | B121: 0 | C121: 0 | D121: 0 | E121: 36.5485 | F121: 0 | G121: 0 | H121: 0 | I121: 0 | J121: 0
A122: 38251.34553 | B122: 0 | C122: 0 | D122: 0 | E122: 0 | F122: 36.7059 | G122: 0 | H122: 0 | I122: 0 | J122: 0
A123: 39430.34553 | B123: 0 | C123: 0 | D123: 0 | E123: 0 | F123: 36.7059 | G123: 0 | H123: 0 | I123: 0 | J123: 0
A124: 39430.34553 | B124: 0 | C124: 0 | D124: 0 | E124: 36.7724 | F124: 0 | G124: 0 | H124: 0 | I124: 0 | J124: 0
A125: 39459.49053 | B125: 0 | C125: 0 | D125: 0 | E125: 36.7724 | F125: 0 | G125: 0 | H125: 0 | I125: 0 | J125: 0
A126: 39459.49053 | B126: 0 | C126: 0 | D126: 0 | E126: 0 | F126: 0 | G126: 36.8999 | H126: 0 | I126: 0 | J126: 0
A127: 39498.29253 | B127: 0 | C127: 0 | D127: 0 | E127: 0 | F127: 0 | G127: 36.8999 | H127: 0 | I127: 0 | J127: 0
A128: 39498.29253 | B128: 0 | C128: 0 | D128: 0 | E128: 36.9991 | F128: 0 | G128: 0 | H128: 0 | I128: 0 | J128: 0
A129: 39700.82853 | B129: 0 | C129: 0 | D129: 0 | E129: 36.9991 | F129: 0 | G129: 0 | H129: 0 | I129: 0 | J129: 0
A130: 39700.82853 | B130: 0 | C130: 0 | D130: 0 | E130: 0 | F130: 0 | G130: 37.0124 | H130: 0 | I130: 0 | J130: 0
A131: 39713.00853 | B131: 0 | C131: 0 | D131: 0 | E131: 0 | F131: 0 | G131: 37.0124 | H131: 0 | I131: 0 | J131: 0
A132: 39713.00853 | B132: 0 | C132: 0 | D132: 0 | E132: 0 | F132: 37.1059 | G132: 0 | H132: 0 | I132: 0 | J132: 0
A133: 39975.50853 | B133: 0 | C133: 0 | D133: 0 | E133: 0 | F133: 37.1059 | G133: 0 | H133: 0 | I133: 0 | J133: 0
A134: 39975.50853 | B134: 0 | C134: 0 | D134: 0 | E134: 0 | F134: 37.3094 | G134: 0 | H134: 0 | I134: 0 | J134: 0
A135: 40227.50853 | B135: 0 | C135: 0 | D135: 0 | E135: 0 | F135: 37.3094 | G135: 0 | H135: 0 | I135: 0 | J135: 0
A136: 40227.50853 | B136: 0 | C136: 0 | D136: 0 | E136: 0 | F136: 37.5151 | G136: 0 | H136: 0 | I136: 0 | J136: 0
A137: 40844.00853 | B137: 0 | C137: 0 | D137: 0 | E137: 0 | F137: 37.5151 | G137: 0 | H137: 0 | I137: 0 | J137: 0
A138: 40844.00853 | B138: 0 | C138: 0 | D138: 0 | E138: 0 | F138: 0 | G138: 37.7194 | H138: 0 | I138: 0 | J138: 0
A139: 41226.80853 | B139: 0 | C139: 0 | D139: 0 | E139: 0 | F139: 0 | G139: 37.7194 | H139: 0 | I139: 0 | J139: 0
A140: 41226.80853 | B140: 0 | C140: 0 | D140: 0 | E140: 0 | F140: 37.9338 | G140: 0 | H140: 0 | I140: 0 | J140: 0
A141: 41744.30853 | B141: 0 | C141: 0 | D141: 0 | E141: 0 | F141: 37.9338 | G141: 0 | H141: 0 | I141: 0 | J141: 0
A142: 41744.30853 | B142: 0 | C142: 0 | D142: 0 | E142: 0 | F142: 0 | G142: 38.0579 | H142: 0 | I142: 0 | J142: 0
A143: 41755.79253 | B143: 0 | C143: 0 | D143: 0 | E143: 0 | F143: 0 | G143: 38.0579 | H143: 0 | I143: 0 | J143: 0
A144: 41755.79253 | B144: 0 | C144: 0 | D144: 0 | E144: 38.1784 | F144: 0 | G144: 0 | H144: 0 | I144: 0 | J144: 0
A145: 41763.88353 | B145: 0 | C145: 0 | D145: 0 | E145: 38.1784 | F145: 0 | G145: 0 | H145: 0 | I145: 0 | J145: 0
A146: 41763.88353 | B146: 0 | C146: 0 | D146: 0 | E146: 0 | F146: 0 | G146: 38.49 | H146: 0 | I146: 0 | J146: 0
A147: 42177.13353 | B147: 0 | C147: 0 | D147: 0 | E147: 0 | F147: 0 | G147: 38.49 | H147: 0 | I147: 0 | J147: 0
A148: 42177.13353 | B148: 0 | C148: 0 | D148: 0 | E148: 0 | F148: 0 | G148: 0 | H148: 38.5763 | I148: 0 | J148: 0
A149: 42194.09853 | B149: 0 | C149: 0 | D149: 0 | E149: 0 | F149: 0 | G149: 0 | H149: 38.5763 | I149: 0 | J149: 0
A150: 42194.09853 | B150: 0 | C150: 0 | D150: 0 | E150: 0 | F150: 38.5803 | G150: 0 | H150: 0 | I150: 0 | J150: 0
A151: 42286.34853 | B151: 0 | C151: 0 | D151: 0 | E151: 0 | F151: 38.5803 | G151: 0 | H151: 0 | I151: 0 | J151: 0
A152: 42286.34853 | B152: 0 | C152: 0 | D152: 0 | E152: 0 | F152: 0 | G152: 38.8877 | H152: 0 | I152: 0 | J152: 0
A153: 43437.35853 | B153: 0 | C153: 0 | D153: 0 | E153: 0 | F153: 0 | G153: 38.8877 | H153: 0 | I153: 0 | J153: 0
A154: 43437.35853 | B154: 0 | C154: 0 | D154: 0 | E154: 0 | F154: 0 | G154: 0 | H154: 39.0515 | I154: 0 | J154: 0
A155: 43548.03993 | B155: 0 | C155: 0 | D155: 0 | E155: 0 | F155: 0 | G155: 0 | H155: 39.0515 | I155: 0 | J155: 0
A156: 43548.03993 | B156: 0 | C156: 0 | D156: 0 | E156: 39.1801 | F156: 0 | G156: 0 | H156: 0 | I156: 0 | J156: 0
A157: 43587.18993 | B157: 0 | C157: 0 | D157: 0 | E157: 39.1801 | F157: 0 | G157: 0 | H157: 0 | I157: 0 | J157: 0
A158: 43587.18993 | B158: 0 | C158: 0 | D158: 0 | E158: 0 | F158: 0 | G158: 39.2941 | H158: 0 | I158: 0 | J158: 0
A159: 43601.10993 | B159: 0 | C159: 0 | D159: 0 | E159: 0 | F159: 0 | G159: 39.2941 | H159: 0 | I159: 0 | J159: 0
A160: 43601.10993 | B160: 0 | C160: 0 | D160: 0 | E160: 0 | F160: 39.4786 | G160: 0 | H160: 0 | I160: 0 | J160: 0
A161: 43611.15993 | B161: 0 | C161: 0 | D161: 0 | E161: 0 | F161: 39.4786 | G161: 0 | H161: 0 | I161: 0 | J161: 0
A162: 43611.15993 | B162: 0 | C162: 0 | D162: 0 | E162: 0 | F162: 0 | G162: 39.6628 | H162: 0 | I162: 0 | J162: 0
A163: 43920.00993 | B163: 0 | C163: 0 | D163: 0 | E163: 0 | F163: 0 | G163: 39.6628 | H163: 0 | I163: 0 | J163: 0
A164: 43920.00993 | B164: 0 | C164: 0 | D164: 0 | E164: 0 | F164: 0 | G164: 39.7094 | H164: 0 | I164: 0 | J164: 0
A165: 43957.41993 | B165: 0 | C165: 0 | D165: 0 | E165: 0 | F165: 0 | G165: 39.7094 | H165: 0 | I165: 0 | J165: 0
A166: 43957.41993 | B166: 0 | C166: 0 | D166: 0 | E166: 0 | F166: 39.9442 | G166: 0 | H166: 0 | I166: 0 | J166: 0
A167: 44342.91993 | B167: 0 | C167: 0 | D167: 0 | E167: 0 | F167: 39.9442 | G167: 0 | H167: 0 | I167: 0 | J167: 0
A168: 44342.91993 | B168: 0 | C168: 0 | D168: 0 | E168: 39.9682 | F168: 0 | G168: 0 | H168: 0 | I168: 0 | J168: 0
A169: 44868.39993 | B169: 0 | C169: 0 | D169: 0 | E169: 39.9682 | F169: 0 | G169: 0 | H169: 0 | I169: 0 | J169: 0
A170: 44868.39993 | B170: 0 | C170: 0 | D170: 0 | E170: 0 | F170: 39.9914 | G170: 0 | H170: 0 | I170: 0 | J170: 0
A171: 44910.06993 | B171: 0 | C171: 0 | D171: 0 | E171: 0 | F171: 39.9914 | G171: 0 | H171: 0 | I171: 0 | J171: 0
A172: 44910.06993 | B172: 0 | C172: 0 | D172: 0 | E172: 0 | F172: 0 | G172: 40.1531 | H172: 0 | I172: 0 | J172: 0
A173: 44969.1003 | B173: 0 | C173: 0 | D173: 0 | E173: 0 | F173: 0 | G173: 40.1531 | H173: 0 | I173: 0 | J173: 0
A174: 44969.1003 | B174: 0 | C174: 0 | D174: 0 | E174: 0 | F174: 40.1813 | G174: 0 | H174: 0 | I174: 0 | J174: 0
A175: 45635.8503 | B175: 0 | C175: 0 | D175: 0 | E175: 0 | F175: 40.1813 | G175: 0 | H175: 0 | I175: 0 | J175: 0
A176: 45635.8503 | B176: 0 | C176: 0 | D176: 0 | E176: 40.2384 | F176: 0 | G176: 0 | H176: 0 | I176: 0 | J176: 0
A177: 46734.6603 | B177: 0 | C177: 0 | D177: 0 | E177: 40.2384 | F177: 0 | G177: 0 | H177: 0 | I177: 0 | J177: 0
A178: 46734.6603 | B178: 0 | C178: 0 | D178: 0 | E178: 0 | F178: 0 | G178: 40.2584 | H178: 0 | I178: 0 | J178: 0
A179: 46926.2343 | B179: 0 | C179: 0 | D179: 0 | E179: 0 | F179: 0 | G179: 40.2584 | H179: 0 | I179: 0 | J179: 0
A180: 46926.2343 | B180: 0 | C180: 0 | D180: 0 | E180: 0 | F180: 0 | G180: 40.3643 | H180: 0 | I180: 0 | J180: 0
A181: 47425.884 | B181: 0 | C181: 0 | D181: 0 | E181: 0 | F181: 0 | G181: 40.3643 | H181: 0 | I181: 0 | J181: 0
A182: 47425.884 | B182: 0 | C182: 0 | D182: 0 | E182: 0 | F182: 40.4213 | G182: 0 | H182: 0 | I182: 0 | J182: 0
A183: 47823.909 | B183: 0 | C183: 0 | D183: 0 | E183: 0 | F183: 40.4213 | G183: 0 | H183: 0 | I183: 0 | J183: 0
A184: 47823.909 | B184: 0 | C184: 0 | D184: 0 | E184: 40.5123 | F184: 0 | G184: 0 | H184: 0 | I184: 0 | J184: 0
A185: 48400.719 | B185: 0 | C185: 0 | D185: 0 | E185: 40.5123 | F185: 0 | G185: 0 | H185: 0 | I185: 0 | J185: 0
A186: 48400.719 | B186: 0 | C186: 0 | D186: 0 | E186: 0 | F186: 0 | G186: 0 | H186: 40.552 | I186: 0 | J186: 0
A187: 49027.989 | B187: 0 | C187: 0 | D187: 0 | E187: 0 | F187: 0 | G187: 0 | H187: 40.552 | I187: 0 | J187: 0
A188: 49027.989 | B188: 0 | C188: 0 | D188: 0 | E188: 0 | F188: 0 | G188: 40.5778 | H188: 0 | I188: 0 | J188: 0
A189: 49134.216 | B189: 0 | C189: 0 | D189: 0 | E189: 0 | F189: 0 | G189: 40.5778 | H189: 0 | I189: 0 | J189: 0
A190: 49134.216 | B190: 0 | C190: 0 | D190: 0 | E190: 0 | F190: 0 | G190: 40.6169 | H190: 0 | I190: 0 | J190: 0
A191: 49257.7125 | B191: 0 | C191: 0 | D191: 0 | E191: 0 | F191: 0 | G191: 40.6169 | H191: 0 | I191: 0 | J191: 0
A192: 49257.7125 | B192: 0 | C192: 0 | D192: 0 | E192: 0 | F192: 40.6643 | G192: 0 | H192: 0 | I192: 0 | J192: 0
A193: 49507.2375 | B193: 0 | C193: 0 | D193: 0 | E193: 0 | F193: 40.6643 | G193: 0 | H193: 0 | I193: 0 | J193: 0
A194: 49507.2375 | B194: 0 | C194: 0 | D194: 0 | E194: 0 | F194: 0 | G194: 40.6855 | H194: 0 | I194: 0 | J194: 0
A195: 49812.10551 | B195: 0 | C195: 0 | D195: 0 | E195: 0 | F195: 0 | G195: 40.6855 | H195: 0 | I195: 0 | J195: 0
A196: 49812.10551 | B196: 0 | C196: 0 | D196: 0 | E196: 0 | F196: 0 | G196: 40.7937 | H196: 0 | I196: 0 | J196: 0
A197: 49896.06921 | B197: 0 | C197: 0 | D197: 0 | E197: 0 | F197: 0 | G197: 40.7937 | H197: 0 | I197: 0 | J197: 0
A198: 49896.06921 | B198: 0 | C198: 0 | D198: 0 | E198: 0 | F198: 0 | G198: 40.9026 | H198: 0 | I198: 0 | J198: 0
A199: 49907.03121 | B199: 0 | C199: 0 | D199: 0 | E199: 0 | F199: 0 | G199: 40.9026 | H199: 0 | I199: 0 | J199: 0
A200: 49907.03121 | B200: 0 | C200: 0 | D200: 0 | E200: 0 | F200: 40.9103 | G200: 0 | H200: 0 | I200: 0 | J200: 0
... 231 more rows

Sheet Power Plant List Backend (hidden)
C3: EWI Merit-Order Tool 2021
C5: Power-Plant List | L5: =Imprint!F5 -> Version 2021.4_en
C7: Brief explanation of the list and basic data sources
C10: ='Power Plant List'!C10 -> Included in the Merit Order? | D10: ='Power Plant List'!D10 -> Power Plant Identification Number of the Federal Network Agency | E10: ='Power Plant List'!E10 -> Company | F10: ='Power Plant List'!F10 -> Name of the Power Plant | G10: ='Power Plant List'!K10 -> Unit Name | H10: ='Power Plant List'!L10 -> Begin of Commercial Electricity Generation | I10: Assigned Power Plant Type | J10: Efficiency | K10: ='Power Plant List'!U10 -> Mean Available Net Nominal Capacity [MW] | L10: ='Power Plant List'!W10 -> Marginal Costs [EUR/MWhel]
C11: No | D11: (optional) | E11: (optional) | F11: (optional) | G11: (optional) | H11: (optional) | I11: (required) | J11: (required) | K11: 0 | L11: 0
C12: No | D12: (optional) | E12: (optional) | F12: (optional) | G12: (optional) | H12: (optional) | I12: (required) | J12: (required) | K12: 0 | L12: 0
C13: No | D13: (optional) | E13: (optional) | F13: (optional) | G13: (optional) | H13: (optional) | I13: (required) | J13: (required) | K13: 0 | L13: 0
C14: No | D14: (optional) | E14: (optional) | F14: (optional) | G14: (optional) | H14: (optional) | I14: (required) | J14: (required) | K14: 0 | L14: 0
C15: No | D15: (optional) | E15: (optional) | F15: (optional) | G15: (optional) | H15: (optional) | I15: (required) | J15: (required) | K15: 0 | L15: 0
C16: No | D16: (optional) | E16: (optional) | F16: (optional) | G16: (optional) | H16: (optional) | I16: (required) | J16: (required) | K16: 0 | L16: 0
C17: No | D17: (optional) | E17: (optional) | F17: (optional) | G17: (optional) | H17: (optional) | I17: (required) | J17: (required) | K17: 0 | L17: 0
C18: No | D18: (optional) | E18: (optional) | F18: (optional) | G18: (optional) | H18: (optional) | I18: (required) | J18: (required) | K18: 0 | L18: 0
C19: No | D19: (optional) | E19: (optional) | F19: (optional) | G19: (optional) | H19: (optional) | I19: (required) | J19: (required) | K19: 0 | L19: 0
C20: Yes | D20: BNA0084 | E20: Vattenfall Wärme Berlin AG | F20: Reuter | G20: Reuter M | H20: 30.10.1998 | I20: Waste | J20: 0.33 | K20: 30.6 | L20: 1
C21: Yes | D21: BNA0088b | E21: Solvay Chemicals GmbH | F21: Dampfturbinenanlage der EBS-Kessel | H21: 16.10.2009 | I21: Waste | J21: 0.33 | K21: 29.75 | L21: 1
C22: Yes | D22: BNA0097 | E22: MVA Bielefeld-Herford GmbH | F22: MVA Bielefeld | G22: Linien 1 - 3 | H22: 01.07.1981 | I22: Waste | J22: 0.33 | K22: 28.9 | L22: 1
C23: Yes | D23: BNA0117a | E23: Energie- und Wasserversorgung Bonn/Rhein-Sieg GmbH | F23: Heizkraftwerk Karlstraße | G23: Heizkraftwerk Karlstraße | H23: 01.07.1990 | I23: Waste | J23: 0.33 | K23: 10.2 | L23: 1
C24: Yes | D24: BNA0139 | E24: swb Entsorgung GmbH & Co. KG | F24: KW Hafen | G24: MKK | H24: 7/1/1905 | I24: Waste | J24: 0.33 | K24: 28.05 | L24: 1
C25: Yes | D25: BNA0223b | E25: Stadtwerke Düsseldorf AG | F25: DT | G25: Flingern T1 | H25: 17.04.2000 | I25: Waste | J25: 0.33 | K25: 45.645 | L25: 1
C26: Yes | D26: BNA0237 | E26: Progroup Power 1 GmbH | F26: EBS-Heizkraftwerk | H26: 10.02.2011 | I26: Waste | J26: 0.33 | K26: 19.975 | L26: 1
C27: Yes | D27: BNA0287a | E27: Mainova AG | F27: MHKW Frankfurt | G27: T 3 (nur alleiniger Betrieb, kein gemeinsamer Betrieb mit T 7 möglich) | H27: 01.01.1969 | I27: Waste | J27: 0.33 | K27: 22.1 | L27: 1
C28: Yes | D28: BNA0287b | E28: Mainova AG | F28: MHKW Frankfurt | G28: T 7 (nur alleiniger Betrieb, kein gemeinsamer Betrieb mit T 3 möglich) | H28: 01.01.2006 | I28: Waste | J28: 0.33 | K28: 39.525 | L28: 1
C29: Yes | D29: BNA0380 | E29: EEW Energy from Waste Großräschen GmbH | F29: EEW Großräschen | H29: 01.12.2007 | I29: Waste | J29: 0.33 | K29: 19.805 | L29: 1
C30: Yes | D30: BNA0398 | E30: MVR Müllverwertung Rugenberger Damm GmbH & Co. KG | F30: MVR Müllverwertung Rugenberger Damm GmbH & Co. KG | H30: 12.08.1999 | I30: Waste | J30: 0.33 | K30: 20.4 | L30: 1
C31: Yes | D31: BNA0407 | E31: Enertec Hameln GmbH | F31: Enertec Hameln | G31: Linien 1,3,4 | H31: 07.10.1913 | I31: Waste | J31: 0.33 | K31: 11.22 | L31: 1
C32: Yes | D32: BNA0417 | E32: EEW Energy from Waste Hannover GmbH | F32: EEW Energy from Waste Hannover GmbH | G32: Hannover | H32: 01.06.2005 | I32: Waste | J32: 0.33 | K32: 19.125 | L32: 1
C33: Yes | D33: BNA0438 | E33: EEW Energy from Waste Helmstedt GmbH | F33: TRV Buschhaus | G33: Linie 1-3 | H33: 31.03.1999 | I33: Waste | J33: 0.33 | K33: 31.875 | L33: 1
C34: Yes | D34: BNA0519 | E34: RWE Generation SE | F34: Karnap | G34: B | H34: 16.03.1987 | I34: Waste | J34: 0.33 | K34: 32.3 | L34: 1
C35: Yes | D35: BNA0590 | E35: MVV Energie AG | F35: TREA Leuna | G35: Linie 1 | H35: 26.08.2005 | I35: Waste | J35: 0.33 | K35: 13.8125 | L35: 1
C36: Yes | D36: BNA0591 | E36: MVV Energie AG | F36: TREA Leuna | G36: Linie 2 | H36: 19.06.2007 | I36: Waste | J36: 0.33 | K36: 13.8125 | L36: 1
C37: Yes | D37: BNA0599 | E37: AVEA Entsorgungsbetriebe GmbH & Co. KG | G37: entfällt | H37: 03.05.2011 | I37: Waste | J37: 0.33 | K37: 9.86 | L37: 1
C38: Yes | D38: BNA0622 | E38: Müllheizkraftwerk Rothensee GmbH | F38: MHKW Rothensee | G38: Block 1 | H38: 17.07.2005 | I38: Waste | J38: 0.33 | K38: 24.82 | L38: 1
C39: Yes | D39: BNA0623 | E39: Müllheizkraftwerk Rothensee GmbH | F39: MHKW Rothensee | G39: Block 2 | H39: 08.09.2006 | I39: Waste | J39: 0.33 | K39: 24.82 | L39: 1
C40: Yes | D40: BNA0640 | E40: MVV Energie AG | F40: HKW Mannheim | G40: Turbine 3 | H40: 13.10.2006 | I40: Waste | J40: 0.33 | K40: 7.3525 | L40: 1
C41: Yes | D41: BNA0641a | E41: MVV Energie AG | F41: HKW Mannheim | G41: Turbine 60 | H41: 07.01.2010 | I41: Waste | J41: 0.33 | K41: 18.785 | L41: 1
C42: Yes | D42: BNA0641b | E42: MVV Energie AG | F42: HKW Mannheim | G42: Turbine D.0 | H42: 13.08.2012 | I42: Waste | J42: 0.33 | K42: 4.5645 | L42: 1
C43: Yes | D43: BNA0641c | E43: MVV Energie AG | F43: HKW Mannheim | G43: Turbine E.0 | H43: 14.06.2012 | I43: Waste | J43: 0.33 | K43: 3.298 | L43: 1
C44: Yes | D44: BNA0693 | E44: SWN Stadtwerke Neumünster GmbH | F44: Heizkraftwerk NMS | H44: 03.05.1974 | I44: Waste | J44: 0.33 | K44: 45.56 | L44: 1
C45: Yes | D45: BNA0746 | E45: N-ERGIE AG | F45: HKW Sandreuth | H45: 01.09.1996 | I45: Waste | J45: 0.33 | K45: 15.3 | L45: 1
C46: Yes | D46: BNA0750 | E46: GMVA Gemeinschafts-Müll-Verbrennungsanlage Niederrhein GmbH | F46: GMVA Niederrhein | G46: Ausspeisung 10/110kV (Turbine 2) | H46: 17.10.1991 | I46: Waste | J46: 0.33 | K46: 34.34 | L46: 1
C47: Yes | D47: BNA0751 | E47: GMVA Gemeinschafts-Müll-Verbrennungsanlage Niederrhein GmbH | F47: GMVA Niederrhein | G47: Ausspeisung 10/25kV (Turbine 1) | H47: 06.04.2006 | I47: Waste | J47: 0.33 | K47: 17.935 | L47: 1
C48: Yes | D48: BNA0845 | E48: Stadtwerke Rosenheim GmbH & Co. KG | F48: MHKW, WKW | G48: T1a/b, T2 | H48: 01.01.1988 | I48: Waste | J48: 0.33 | K48: 7.65 | L48: 1
C49: Yes | D49: BNA0855 | E49: Steag GmbH | F49: IKW Rüdersdorf | H49: 15.12.2009 | I49: Waste | J49: 0.33 | K49: 25.5 | L49: 1
C50: Yes | D50: BNA0895 | E50: GKS Gemeinschaftskraftwerk Schweinfurt GmbH | F50: GKS | G50: entfällt | H50: 01.06.1990 | I50: Waste | J50: 0.33 | K50: 20.74 | L50: 1
C51: Yes | D51: BNA0939a | E51: EnBW Energie Baden-Württemberg AG | F51: Restmüll-Heizkraftwerk Stuttgart-Münster | G51: MÜN DT19 neu | H51: 01.01.2009 | I51: Waste | J51: 0.33 | K51: 16.575 | L51: 1
C52: Yes | D52: BNA0969a | E52: SWM Services GmbH | F52: Nord 1 | G52: 1 | H52: 15.09.1991 | I52: Waste | J52: 0.33 | K52: 15.3 | L52: 1
C53: Yes | D53: BNA0969c | E53: SWM Services GmbH | F53: Nord 3 | G53: 3 | H53: 17.05.1984 | I53: Waste | J53: 0.33 | K53: 18.7 | L53: 1
C54: Yes | D54: BNA1020 | E54: RWE Power AG | F54: MVA Weisweiler | G54: MVA | H54: 22.10.1996 | I54: Waste | J54: 0.33 | K54: 22.95 | L54: 1
C55: Yes | D55: BNA1108 | E55: PD energy GmbH | F55: PD energy GmbH | H55: 01.01.2010 | I55: Waste | J55: 0.33 | K55: 8.415 | L55: 1
C56: Yes | D56: BNA1110 | E56: Zweckverband Restmüllheizkraftwerk Böblingen | F56: Restmüllheizkraftwerk Böblingen | G56: Müllverbrennung | H56: 03.05.1999 | I56: Waste | J56: 0.33 | K56: 8.075 | L56: 1
C57: Yes | D57: BNA1114 | E57: swb Entsorgung GmbH & Co. KG | F57: MHKW | G57: MHKW | H57: 1969 / 2012 | I57: Waste | J57: 0.33 | K57: 37.4 | L57: 1
C58: Yes | D58: BNA1116 | E58: Bremerhavener Entsorgungsgesellschaft mbH | F58: BEG | H58: 18.03.1977 | I58: Waste | J58: 0.33 | K58: 11.9 | L58: 1
C59: Yes | D59: BNA1119 | E59: Zweckverband Abfallverwertung Südostbayern | F59: MHKW Burgkirchen | H59: 15.01.1994 | I59: Waste | J59: 0.33 | K59: 10.625 | L59: 1
C60: Yes | D60: BNA1139 | E60: EEW Energy from Waste Saarbrücken GmbH | F60: TREA Breisgau | H60: 15.07.2005 | I60: Waste | J60: 0.33 | K60: 11.56 | L60: 1
C61: Yes | D61: BNA1144 | E61: EEW Energy from Waste Göppingen GmbH | F61: EEW Göppingen | G61: Turb. Neu | H61: 01.07.1975 | I61: Waste | J61: 0.33 | K61: 9.35 | L61: 1
C62: Yes | D62: BNA1148 | E62: MHB Hamm Betriebsführungsgesellschaft mbH | F62: MVA Hamm | H62: 13.02.1986 | I62: Waste | J62: 0.33 | K62: 12.393 | L62: 1
C63: Yes | D63: BNA1154 | E63: AGR Abfallentsorgungsgesellschaft Ruhrgebiet mbH | F63: RZR Herten I | G63: RZR I | H63: 06.01.1982 | I63: Waste | J63: 0.33 | K63: 13.175 | L63: 1
C64: Yes | D64: BNA1155 | E64: AGR Abfallentsorgungsgesellschaft Ruhrgebiet mbH | F64: RZR Herten II | G64: RZR II | H64: 07.01.2009 | I64: Waste | J64: 0.33 | K64: 9.945 | L64: 1
C65: Yes | D65: BNA1161 | E65: Zweckverband Müllverwertungsanlage Ingolstadt (MVA Ingolstadt) | F65: MVA Ingolstadt | G65: Müllheizkraftwerk (MHKW) | H65: 26.10.1984 | I65: Waste | J65: 0.33 | K65: 21.675 | L65: 1
C66: Yes | D66: BNA1167 | E66: Kreis Weseler Abfallgesellschaft mbH & Co. KG (KWA) | F66: Abfallentsorgungszentrum Asdonkshof | G66: MVA | H66: 01.04.1997 | I66: Waste | J66: 0.33 | K66: 13.6 | L66: 1
C67: Yes | D67: BNA1168 | E67: Müllheizkraftwerk Kassel GmbH | F67: Müllheizkraftwerk | H67: 17.12.1985 | I67: Waste | J67: 0.33 | K67: 12.495 | L67: 1
C68: Yes | D68: BNA1184 | E68: AVG Köln mbH | F68: RMVA Köln | G68: RMVA Köln | H68: 01.02.1998 | I68: Waste | J68: 0.33 | K68: 38.335 | L68: 1
C69: Yes | D69: BNA1186b | E69: EGK Entsorgungsgesellschaft Krefeld GmbH & Co.KG | F69: MKVA Krefeld | G69: Turbine 4 | H69: 01.01.2002 | I69: Waste | J69: 0.33 | K69: 11.73 | L69: 1
C70: Yes | D70: BNA1186c | E70: EGK Entsorgungsgesellschaft Krefeld GmbH & Co.KG | F70: MKVA Krefeld | G70: Turbine 2 | H70: 01.01.1976 | I70: Waste | J70: 0.33 | K70: 1.275 | L70: 1
C71: Yes | D71: BNA1186d | E71: EGK Entsorgungsgesellschaft Krefeld GmbH & Co.KG | F71: MKVA Krefeld | G71: Turbine 5 | H71: 01.01.1997 | I71: Waste | J71: 0.33 | K71: 2.38 | L71: 1
C72: Yes | D72: BNA1186e | E72: EGK Entsorgungsgesellschaft Krefeld GmbH & Co.KG | F72: MKVA Krefeld | G72: Turbine 1 | H72: 01.01.1976 | I72: Waste | J72: 0.33 | K72: 1.275 | L72: 1
C73: Yes | D73: BNA1190 | E73: Steag GmbH | F73: Thermische Abfallbehandlung Lauta GmbH & Co. oHG | H73: 21.07.2004 | I73: Waste | J73: 0.33 | K73: 13.345 | L73: 1
C74: Yes | D74: BNA1197 | E74: Technische Werke Ludwigshafen AG | F74: FHKW Ludwigshafen | G74: FHKW | H74: 01.08.1967 | I74: Waste | J74: 0.33 | K74: 23.8 | L74: 1
C75: Yes | D75: BNA1198 | E75: SUEZ Energie und Verwertung GmbH | F75: SITA Abfallverwertung GmbH | H75: 22.06.2005 | I75: Waste | J75: 0.33 | K75: 19.55 | L75: 1
C76: Yes | D76: BNA1199 | E76: Entsorgungsgesellschaft Mainz mbH | F76: MHKW Mainz | H76: 01.12.2009 | I76: Waste | J76: 0.33 | K76: 13.26 | L76: 1
C77: Yes | D77: BNA1222 | E77: Energieversorgung Offenbach AG | F77: Müllheizkraftwerk Offenbach | H77: 01.01.1972 | I77: Waste | J77: 0.33 | K77: 12.325 | L77: 1
C78: Yes | D78: BNA1229 | E78: EEW Energy from Waste Saarbrücken GmbH | F78: MHKW Pirmasens | H78: 01.01.1999 | I78: Waste | J78: 0.33 | K78: 12.75 | L78: 1
C79: Yes | D79: BNA1232 | E79: EEW Energy from Waste Premnitz GmbH | F79: ZWSF | G79: ZWSF | H79: 08.01.2004 | I79: Waste | J79: 0.33 | K79: 2.125 | L79: 1
C80: Yes | D80: BNA1233 | E80: EEW Energy from Waste Premnitz GmbH | F80: EVE | G80: EVE | H80: 09.06.2009 | I80: Waste | J80: 0.33 | K80: 12.325 | L80: 1
C81: Yes | D81: BNA1243 | E81: Vattenfall Europe New Energy Ecopower GmbH | F81: EBS-HKW Rostock | H81: 7/1/1905 | I81: Waste | J81: 0.33 | K81: 14.45 | L81: 1
C82: Yes | D82: BNA1244 | E82: AVA Velsen GmbH | F82: AVA Velsen | H82: 07.08.1997 | I82: Waste | J82: 0.33 | K82: 13.6 | L82: 1
C83: Yes | D83: BNA1254 | E83: Zweckverband Müllverwertung Schwandorf | F83: Müllkraftwerk Schwandorf | H83: 31.08.1982 | I83: Waste | J83: 0.33 | K83: 45.9 | L83: 1
C84: Yes | D84: BNA1255 | E84: Kraftwerk Schwedt GmbH & Co. KG | F84: Kraftwerk Schwedt GmbH & Co.KG | H84: 01.04.2011 | I84: Waste | J84: 0.33 | K84: 24.565 | L84: 1
C85: Yes | D85: BNA1261 | E85: EEW Energy from Waste Stapelfeld GmbH | H85: 01.10.1979 | I85: Waste | J85: 0.33 | K85: 13.94 | L85: 1
C86: Yes | D86: BNA1262 | E86: REMONDIS Thermische Abfallverwertung GmbH | F86: REMONDIS Thermische Abfallverwertung GmbH | H86: 21.04.2008 | I86: Waste | J86: 0.33 | K86: 20.4 | L86: 1
C87: Yes | D87: BNA1286 | E87: Zweckverband für Abfallwirtschaft Südwestthüringen (ZASt) | F87: Restabfallbehandlungsanlage | G87: 1 | H87: 13.11.2007 | I87: Waste | J87: 0.33 | K87: 10.285 | L87: 1
C88: Yes | D88: BNA1289 | E88: AMK - Abfallentsorgungsgesellschaft des Märkischen Kreises mbH | F88: AMK - Abfallentsorgungsgesellschaft des Märkischen Kreises mbH | H88: 01.04.1981 | I88: Waste | J88: 0.33 | K88: 10.7185 | L88: 1
C89: Yes | D89: BNA1291 | E89: IHKW Industrieheizkraftwerk Andernach GmbH | F89: IHKW Andernach | H89: 14.01.2008 | I89: Waste | J89: 0.33 | K89: 10.625 | L89: 1
C90: Yes | D90: BNA1295 | E90: AVA Abfallverwertung Augsburg GmbH | F90: AVA GmbH | G90: AHKW | H90: 16.09.1994 | I90: Waste | J90: 0.33 | K90: 8.5 | L90: 1
C91: Yes | D91: BNA1316 | E91: EKOCity GmbH | F91: Müllheizkraftwerk | H91: 01.01.1976 | I91: Waste | J91: 0.33 | K91: 25.5 | L91: 1
C92: Yes | D92: BNA1330 | E92: Steinbeis Energie GmbH | F92: Steinbeis Energie | H92: 27.09.2010 | I92: Waste | J92: 0.33 | K92: 14.45 | L92: 1
C93: Yes | D93: BNA1447a | E93: Evonik Röhm GmbH | G93: G2 | H93: 20.11.1990 | I93: Waste | J93: 0.33 | K93: 10.115 | L93: 1
C94: Yes | D94: BNA1447b | E94: Evonik Röhm GmbH | G94: G3/Kontu | H94: 12.03.2012 | I94: Waste | J94: 0.33 | K94: 5.865 | L94: 1
C95: Yes | D95: BNA1448 | E95: EEW Energy from Waste Saarbrücken GmbH | F95: AHKW Neunkirchen | G95: Linie 3 + 4 | H95: 02.06.1977 | I95: Waste | J95: 0.33 | K95: 9.86 | L95: 1
C96: Yes | D96: BNA1449a | E96: Zweckverband Abfallwirtschaft Raum Würzburg | F96: Turbosatz 1 | H96: 04.06.1984 | I96: Waste | J96: 0.33 | K96: 7.395 | L96: 1
C97: Yes | D97: BNA1449b | E97: Zweckverband Abfallwirtschaft Raum Würzburg | F97: Turbosatz 2 | H97: 09.11.1998 | I97: Waste | J97: 0.33 | K97: 10.2 | L97: 1
C98: Yes | D98: BNA1465a | E98: B+T Energie GmbH | F98: EBS-Kraftwerk Witzenhausen | H98: 24.06.2009 | I98: Waste | J98: 0.33 | K98: 23.8 | L98: 1
C99: Yes | D99: BNA1490 | E99: EBS - Kraftwerk GmbH | F99: EBKW Knapsack | H99: 01.01.2009 | I99: Waste | J99: 0.33 | K99: 28.39 | L99: 1
C100: Yes | D100: BNA1510 | E100: Spreestromerzeugungs GmbH | F100: Hamburger Rieger | H100: 01.01.2013 | I100: Waste | J100: 0.33 | K100: 15.895 | L100: 1
C101: Yes | D101: BNA1520 | E101: ESWE BioEnergie GmbH | F101: Biomasseheizkraftwerk Wiesbaden | H101: 01.01.2014 | I101: Waste | J101: 0.33 | K101: 8.925 | L101: 1
C102: Yes | D102: BNA1864 | E102: KÄMMERER Energie GmbH | F102: Turbine 4 | H102: 5/15/1905 | I102: Waste | J102: 0.33 | K102: 8.075 | L102: 1
C103: Yes | D103: BNA1865 | E103: KÄMMERER Energie GmbH | F103: Turbine 5 | H103: 5/25/1905 | I103: Waste | J103: 0.33 | K103: 8.33 | L103: 1
C104: Yes | D104: BNA1867 | E104: AVG Köln mbH | F104: AVG Köln | G104: Turbosatz 2 | H104: 01.05.2017 | I104: Waste | J104: 0.33 | K104: 15.3 | L104: 1
C105: Yes | E105: Nicht-EEG-Anlagen < 10 MW | I105: Waste | J105: 0.33 | K105: 120.224425 | L105: 1
C106: Yes | D106: BNA0157 | E106: Preussen Elektra GmbH | F106: Brokdorf | G106: KBR | H106: 22.12.1986 | I106: Nuclear | J106: 0.33 | K106: 1311.3 | L106: 17.86666667
C107: Yes | D107: BNA0251 | E107: Preussen Elektra GmbH | F107: Grohnde | G107: KWG | H107: 01.02.1985 | I107: Nuclear | J107: 0.33 | K107: 1264.8 | L107: 17.86666667
C108: Yes | D108: BNA0263 | E108: Preussen Elektra GmbH | F108: Isar 2 | G108: KKI 2 | H108: 09.04.1988 | I108: Nuclear | J108: 0.33 | K108: 1311.3 | L108: 17.86666667
C109: Yes | D109: BNA0382 | E109: RWE Power AG | F109: Kernkraft Gundremmingen | G109: C | H109: 02.11.1984 | I109: Nuclear | J109: 0.33 | K109: 1197.84 | L109: 17.86666667
C110: Yes | D110: BNA0607 | E110: RWE Power AG | F110: Kernkraftwerk Emsland | G110: KKE | H110: 19.04.1988 | I110: Nuclear | J110: 0.33 | K110: 1242.48 | L110: 17.86666667
C111: Yes | D111: BNA0686 | E111: EnBW Energie Baden-Württemberg AG | F111: Gemeinschaftskernkraftwerk Neckarwestheim II | G111: GKN II | H111: 15.04.1989 | I111: Nuclear | J111: 0.33 | K111: 1218.3 | L111: 17.86666667
C112: Yes | D112: BNA1817 | E112: Stadtwerke Düsseldorf AG | F112: GuD | G112: GuD F | H112: 22.01.2016 | I112: CCGT | J112: 0.612 | K112: 517.65 | L112: 27.06660131
C113: Yes | D113: BNA1819 | E113: Stadtwerke Flensburg GmbH | F113: Heizkraftwerk FL | G113: Block 12 | H113: 01.10.2016 | I113: CCGT | J113: 0.612 | K113: 67.86 | L113: 27.06660131
C114: Yes | D114: BNA1820 | E114: Gemeinschaftskraftwerk Bremen GmbH und Co. KG | F114: KW Mittelsbüren | G114: GuD MiBÜ | H114: 01.10.2016 | I114: CCGT | J114: 0.612 | K114: 386.715 | L114: 27.06660131
C115: Yes | D115: BNA0918b | E115: Dow Deutschland Anlagengesellschaft mbH | F115: Dow Stade | G115: Cogen Dow Stade | H115: 01.01.2015 | I115: CCGT | J115: 0.6075 | K115: 136.59 | L115: 27.25598354
C116: Yes | D116: BNA0922 | E116: CIECH Energy Deutschland GmbH | F116: GuD-Ikw Staßfurt | H116: 01.10.2015 | I116: CCGT | J116: 0.6075 | K116: 87 | L116: 27.25598354
C117: Yes | D117: BNA0256b | E117: SWE Energie GmbH | F117: HKW Erfurt-Ost | G117: GT2 | H117: 2014 | I117: CCGT | J117: 0.603 | K117: 28.362 | L117: 27.44819237
C118: Yes | D118: BNA0261c | E118: Erlanger Stadtwerke AG | F118: HKW Erlangen | G118: GuD 2 | H118: 10.02.2014 | I118: CCGT | J118: 0.603 | K118: 5.829 | L118: 27.44819237
C119: Yes | D119: BNA0392b | E119: Heizkraftwerk Halle-Trotha GmbH | F119: HKW Halle Trotha | G119: GuD | H119: 30.01.2013 | I119: CCGT | J119: 0.5985 | K119: 48.8418 | L119: 27.64329156
C120: Yes | D120: BNA0418 | E120: enercity AG | F120: GKL | G120: GKL | H120: 05.11.1998 | I120: CCGT | J120: 0.5985 | K120: 200.1 | L120: 27.64329156
C121: Yes | D121: BNA0548b | E121: Statkraft Markets GmbH | F121: Knapsack Gas II | H121: 01.07.2013 | I121: CCGT | J121: 0.5985 | K121: 374.1 | L121: 27.64329156
C122: Yes | D122: BNA1337e | E122: DS Smith Paper Deutschland GmbH | F122: GuD-Anlage | G122: GuD-Anlage | H122: 28.01.2013 | I122: CCGT | J122: 0.5985 | K122: 40.89 | L122: 27.64329156
C123: Yes | D123: BNA1523b | E123: Moritz J. Weig GmbH & Co KG | F123: Gemeinschaftskraftwerk Weig | G123: Block 2 (Kessel 6, GT 2, DT 3) | H123: 01.01.2013 | I123: CCGT | J123: 0.5985 | K123: 23.838 | L123: 27.64329156
C124: Yes | D124: BNA0059b | E124: Volkswagen AG | F124: GuD Baunatal, VW Werksgelände | H124: 29.12.2011 | I124: CCGT | J124: 0.5895 | K124: 67.86 | L124: 28.04242578
C125: Yes | D125: BNA0136 | E125: Braunschweiger Versorgungs-AG & Co. KG | F125: HKW-Mitte | G125: GuD | H125: 30.12.2010 | I125: CCGT | J125: 0.585 | K125: 64.38 | L125: 28.24659829
C126: Yes | D126: BNA0588 | E126: Stadtwerke Leipzig GmbH | F126: Heizkraftwerk Leipzig-Nord | H126: 15.02.1996 | I126: CCGT | J126: 0.585 | K126: 145.29 | L126: 28.24659829
C127: Yes | D127: BNA0598b | E127: InfraLeuna GmbH | F127: ILK-GuD | G127: KT1 | H127: 30.04.2010 | I127: CCGT | J127: 0.585 | K127: 17.4 | L127: 28.24659829
C128: Yes | D128: BNA0606 | E128: RWE Generation SE | F128: Emsland | G128: D | H128: 07.09.2010 | I128: CCGT | J128: 0.585 | K128: 771.69 | L128: 28.24659829
C129: Yes | D129: BNA0805 | E129: Kraftwerk Platting GmbH | F129: Kraftwerk Plattling | H129: 20.04.2010 | I129: CCGT | J129: 0.585 | K129: 103.095 | L129: 28.24659829
C130: Yes | D130: BNA0400 | E130: Wärme Hamburg GmbH | F130: GuD Tiefstack | G130: GuD Tiefstack | H130: 02.11.2009 | I130: CCGT | J130: 0.5805 | K130: 110.49 | L130: 28.45393626
C131: Yes | D131: BNA0444 | E131: K+S AG | F131: Wintershall | G131: Wintershall | H131: 20.05.2009 | I131: CCGT | J131: 0.5805 | K131: 60.03 | L131: 28.45393626
C132: Yes | D132: BNA1087 | E132: Heizkraftwerk Würzburg GmbH | F132: Heizkraftwerke an der Friedensbrücke | G132: GTII | H132: 01.01.2009 | I132: CCGT | J132: 0.5805 | K132: 25.665 | L132: 28.45393626
C133: Yes | D133: BNA0410 | E133: Trianel Gaskraftwerk Hamm GmbH & Co. KG | F133: Trianel Gaskraftwerk | G133: Block 10 | H133: 01.03.2008 | I133: CCGT | J133: 0.576 | K133: 354.09 | L133: 28.66451389
C134: Yes | D134: BNA0411 | E134: Trianel Gaskraftwerk Hamm GmbH & Co. KG | F134: Trianel Gaskraftwerk | G134: Block 20 | H134: 01.03.2008 | I134: CCGT | J134: 0.576 | K134: 356.7 | L134: 28.66451389
C135: Yes | D135: BNA0545 | E135: RheinEnergie AG | F135: HKW Niehl 2 | G135: GuD | H135: 26.03.2005 | I135: CCGT | J135: 0.576 | K135: 359.31 | L135: 28.66451389
C136: Yes | D136: BNA0442 | E136: Mark-E AG / Statkraft Markets | F136: Cuno Heizkraftwerk Herdecke | G136: H6 | H136: 01.01.2007 | I136: CCGT | J136: 0.5715 | K136: 362.79 | L136: 28.8784077
C137: Yes | D137: BNA0548a | E137: Knapsack Power GmbH & Co. KG | F137: Knapsack Gas I | H137: 01.01.2006 | I137: CCGT | J137: 0.567 | K137: 696 | L137: 29.09569665
C138: Yes | D138: BNA0100 | E138: Stadtwerke Bielefeld GmbH | F138: GuD Kraftwerk Hillegossen | G138: GuD | H138: 02.01.2005 | I138: CCGT | J138: 0.5625 | K138: 32.5815 | L138: 29.31646222
C139: Yes | D139: BNA0214 | E139: Stadtwerke Duisburg AG | F139: HKW III/B | G139: HKW III/B | H139: 24.10.2005 | I139: CCGT | J139: 0.5625 | K139: 203.58 | L139: 29.31646222
C140: Yes | D140: BNA0261a | E140: Erlanger Stadtwerke AG | F140: HKW Erlangen | G140: GuD I | H140: 14.09.2005 | I140: CCGT | J140: 0.5625 | K140: 18.792 | L140: 29.31646222
C141: Yes | D141: BNA0614b | E141: BASF SE | F141: Kraftwerk Mitte | G141: GUD A 800 GT 11, GT 12, DT 10 | H141: 12.05.2005 | I141: CCGT | J141: 0.5625 | K141: 432.825 | L141: 29.31646222
C142: Yes | D142: BNA0685 | E142: Stadtwerke Münster GmbH | F142: Heizkraftwerk Hafen | G142: GuD | H142: 14.12.2005 | I142: CCGT | J142: 0.5625 | K142: 90.6018 | L142: 29.31646222
C143: Yes | D143: BNA0742 | E143: N-ERGIE AG | F143: HKW Sandreuth | G143: GuD 1 | H143: 05.01.2005 | I143: CCGT | J143: 0.5625 | K143: 65.25 | L143: 29.31646222
C144: Yes | D144: BNA0743 | E144: N-ERGIE AG | F144: HKW Sandreuth | G144: GuD 2 | H144: 05.01.2005 | I144: CCGT | J144: 0.5625 | K144: 65.25 | L144: 29.31646222
C145: Yes | D145: BNA0861a | E145: Energie SaarLorLux AG | F145: HKW Römerbrücke | G145: GuD-Anlage | H145: 01.06.2005 | I145: CCGT | J145: 0.5625 | K145: 65.25 | L145: 29.31646222
C146: Yes | D146: BNA1082 | E146: WSW Energie & Wasser AG | F146: HKW Barmen | G146: Block 1 | H146: 12/30/2005 | I146: CCGT | J146: 0.5625 | K146: 76.57653 | L146: 29.31646222
C147: Yes | D147: BNA1088 | E147: Heizkraftwerk Würzburg GmbH | F147: Heizkraftwerke an der Friedensbrücke | G147: GTI | H147: 01.01.2005 | I147: CCGT | J147: 0.5625 | K147: 38.715 | L147: 29.31646222
C148: Yes | D148: BNA0546 | E148: RheinEnergie AG | F148: HKW Merkenich | G148: GuD | H148: 27.01.2004 | I148: CCGT | J148: 0.558 | K148: 93.96 | L148: 29.54078853
C149: Yes | D149: BNA0684a | E149: SWM Services GmbH | F149: Süd GT 61 | G149: 2 | H149: 30.09.2004 | I149: CCGT | J149: 0.558 | K149: 108.663 | L149: 29.54078853
C150: Yes | D150: BNA0684b | E150: SWM Services GmbH | F150: Süd GT 62 | G150: 2 | H150: 30.09.2004 | I150: CCGT | J150: 0.558 | K150: 107.793 | L150: 29.54078853
C151: Yes | D151: BNA0684c | E151: SWM Services GmbH | F151: Süd DT60 | G151: 2 | H151: 30.09.2004 | I151: CCGT | J151: 0.558 | K151: 111.012 | L151: 29.54078853
C152: Yes | D152: BNA0499 | E152: Infraserv GmbH & Co. Höchst KG | F152: Heizkraftwerk | G152: Block A | H152: 26.11.2003 | I152: CCGT | J152: 0.5535 | K152: 74.82 | L152: 29.76876242
C153: Yes | D153: BNA0658 | E153: Evonik Degussa GmbH | F153: Kraftwerk III | G153: Block 311 | H153: 22.11.1973 | I153: CCGT | J153: 0.5535 | K153: 53.1831 | L153: 29.76876242
C154: Yes | D154: BNA1196b | E154: MVV Energie AG | F154: Industriekraftwerk Ludwigshafen | G154: GuD | H154: 01.03.2003 | I154: CCGT | J154: 0.5535 | K154: 10.4052 | L154: 29.76876242
C155: Yes | D155: BNA1334 | E155: CR3-Kaffeeveredelung M. Hermsen GmbH | F155: KWK-Anlage | G155: GT 1-3, DT | H155: 1993 und 2002 | I155: CCGT | J155: 0.549 | K155: 12.876 | L155: 30.00047359
C156: Yes | D156: BNA0172a | E156: Wacker Chemie AG | F156: Burghausen 01 - GT | H156: 27.07.2001 | I156: CCGT | J156: 0.5445 | K156: 104.4 | L156: 30.23601469
C157: Yes | D157: BNA1183 | E157: RheinEnergie AG | F157: HKW Merheim | G157: GuD | H157: 08.03.2001 | I157: CCGT | J157: 0.5445 | K157: 13.746 | L157: 30.23601469
C158: Yes | D158: BNA0105 | E158: envia THERM GmbH | F158: GuD Bitterfeld | H158: 04.08.2000 | I158: CCGT | J158: 0.54 | K158: 92.22 | L158: 30.47548148
C159: Yes | D159: BNA0199 | E159: RWE Generation SE | F159: Dormagen | G159: GuD | H159: 01.07.2000 | I159: CCGT | J159: 0.54 | K159: 509.82 | L159: 30.47548148
C160: Yes | D160: BNA0220 | E160: Stadtwerke Düsseldorf AG | F160: GuD | G160: AGuD | H160: 28.07.2000 | I160: CCGT | J160: 0.54 | K160: 87 | L160: 30.47548148
C161: Yes | D161: BNA0397 | E161: ThyssenKrupp Steel Europe AG | F161: Duisburg Hamborn 5 | G161: Block 5 | H161: 01.01.2003 | I161: CCGT | J161: 0.54 | K161: 195.75 | L161: 30.47548148
C162: Yes | D162: BNA0626 | E162: Kraftwerke Mainz-Wiesbaden AG | F162: Kraftwerk Mainz | G162: KW3 | H162: 23.05.2000 | I162: CCGT | J162: 0.54 | K162: 377.754 | L162: 30.47548148
C163: Yes | D163: BNA1450 | E163: DREWSEN SPEZIALPAPIERE GmbH & Co. KG | F163: GUD-Anlage DREWSEN | H163: 01.09.2000 | I163: CCGT | J163: 0.54 | K163: 11.31 | L163: 30.47548148
C164: Yes | D164: BNA0256a | E164: SWE Energie GmbH | F164: HKW Erfurt-Ost | G164: GT1 | H164: 17.12.1999 | I164: CCGT | J164: 0.5355 | K164: 66.555 | L164: 30.71897292
C165: Yes | D165: BNA0857 | E165: Opel Automobile GmbH | F165: GuD-Anlage Rüsselsheim | G165: M120 | H165: 10.09.1999 | I165: CCGT | J165: 0.5355 | K165: 97.527 | L165: 30.71897292
C166: Yes | D166: BNA0592 | E166: InfraLeuna GmbH | F166: GuD Leuna | H166: 01.10.1998 | I166: CCGT | J166: 0.531 | K166: 33.93 | L166: 30.96659134
C167: Yes | D167: BNA0615 | E167: BASF SE | F167: Kraftwerk Süd | G167: GUD C 200 GT 1, GT 2, DT 1 | H167: 14.07.1997 | I167: CCGT | J167: 0.5265 | K167: 356.7 | L167: 31.21844255
C168: Yes | D168: BNA0688 | E168: Neubrandenburger Stadtwerke GmbH | F168: GuD-HKW Neubrandenburg | H168: 16.05.1997 | I168: CCGT | J168: 0.5265 | K168: 65.25 | L168: 31.21844255
C169: Yes | D169: BNA0073 | E169: Vattenfall Wärme Berlin AG | F169: Mitte | G169: GuD Mitte | H169: 30.12.1996 | I169: CCGT | J169: 0.522 | K169: 386.28 | L169: 31.47463602
C170: Yes | D170: BNA0504 | E170: TEAG Thüringer Energie AG | F170: HKW Jena | G170: HKW Jena | H170: 26.09.1996 | I170: CCGT | J170: 0.522 | K170: 158.34 | L170: 31.47463602
C171: Yes | D171: BNA0848 | E171: Stadtwerke Rostock AG | F171: GuD Marienehe | H171: 13.06.1996 | I171: CCGT | J171: 0.522 | K171: 93.96 | L171: 31.47463602
C172: Yes | D172: BNA1279 | E172: Basell Polyolefine GmbH | F172: Gasturbine | G172: D290 | H172: 03.07.1996 | I172: CCGT | J172: 0.522 | K172: 45.153 | L172: 31.47463602
C173: Yes | D173: BNA0207 | E173: DREWAG Stadtwerke Dresden GmbH | F173: HKW Dresden-Nossener Brücke | G173: HKW Dresden-Nossener Brücke (3 GT + 1 DT, Sammelschiene) | H173: 28.09.1995 | I173: CCGT | J173: 0.5175 | K173: 226.2 | L173: 31.73528502
C174: Yes | D174: BNA0755b | E174: Kraftwerk Obernburg GmbH | F174: Obernburg | G174: 1 | H174: 01.01.1995 | I174: CCGT | J174: 0.5175 | K174: 52.2 | L174: 31.73528502
C175: Yes | D175: BNA1185 | E175: Pfeifer & Langen GmbH & Co. KG | F175: P&L Werk Könnern | G175: Kessel 1 und 2 | H175: 31.03.2014 | I175: Lignite | J175: 0.4336 | K175: 17.661 | L175: 31.91918819
C176: Yes | D176: BNA0088a | E176: Solvay Chemicals GmbH | F176: Industriekraftwerk Bernburg (IKB) | H176: 30.12.1994 | I176: CCGT | J176: 0.513 | K176: 122.235 | L176: 32.00050682
C177: Yes | D177: BNA0130 | E177: Uniper Kraftwerke GmbH | F177: Kirchmöser | H177: 01.01.1994 | I177: CCGT | J177: 0.513 | K177: 139.2 | L177: 32.00050682
C178: Yes | D178: BNA0593 | E178: InfraLeuna GmbH | F178: ILK-GuD | G178: GT1 | H178: 01.07.1994 | I178: CCGT | J178: 0.513 | K178: 30.45 | L178: 32.00050682
C179: Yes | D179: BNA0594 | E179: TOTAL Raffinerie Mitteldeutschland GmbH | F179: ILK-GuD | G179: GT2 | H179: 01.07.1994 | I179: CCGT | J179: 0.513 | K179: 30.45 | L179: 32.00050682
C180: Yes | D180: BNA0595 | E180: InfraLeuna GmbH | F180: ILK-GuD | G180: GT3 | H180: 01.07.1994 | I180: CCGT | J180: 0.513 | K180: 32.19 | L180: 32.00050682
C181: Yes | D181: BNA0893 | E181: BASF Schwarzheide GmbH | F181: GuD Schwarzheide | H181: 01.10.1994 | I181: CCGT | J181: 0.513 | K181: 106.14 | L181: 32.00050682
C182: Yes | D182: BNA1164 | E182: Pfeifer & Langen GmbH & Co. KG | F182: P&L Werk Jülich | G182: Kessel 5 | H182: 15.09.2013 | I182: Lignite | J182: 0.4312 | K182: 20.2014 | L182: 32.08738404
C183: Yes | D183: BNA1401a | E183: RWE Power AG | F183: BoA 2 | G183: Neurath F | H183: 08.07.2012 | I183: Lignite | J183: 0.4288 | K183: 922.2 | L183: 32.25746269
C184: Yes | D184: BNA1401b | E184: RWE Power AG | F184: BoA 3 | G184: Neurath G | H184: 03.08.2012 | I184: Lignite | J184: 0.4288 | K184: 922.2 | L184: 32.25746269
C185: Yes | D185: BNA1404 | E185: Lausitz Energie Kraftwerke AG | F185: Boxberg | G185: R | H185: 06.11.2012 | I185: Lignite | J185: 0.4288 | K185: 556.8 | L185: 32.25746269
C186: Yes | D186: BNA1086 | E186: Heizkraftwerk Würzburg GmbH | F186: Heizkraftwerke an der Friedensbrücke | G186: TSII | H186: 01.01.1993 | I186: CCGT | J186: 0.5085 | K186: 21.75 | L186: 32.27042281
C187: Yes | D187: BNA1329 | E187: Kübler & Niethammer Papierfabrik Kriebstein AG | F187: K&N PFK AG EV | G187: GT / GDT | H187: 02.04.1993 | I187: CCGT | J187: 0.5085 | K187: 11.4057 | L187: 32.27042281
C188: Yes | D188: BNA1523a | E188: Moritz J. Weig GmbH & Co KG | F188: Gemeinschaftskraftwerk Weig | G188: Block 1 (Kessel2, GT 1, DT 2) | H188: 01.01.1992 | I188: CCGT | J188: 0.504 | K188: 9.918 | L188: 32.54515873
C189: Yes | D189: BNA0179 | E189: eins - energie in sachsen GmbH & Co. KG | F189: HKW Chemnitz Nord II | G189: Block C | H189: 15.06.1990 | I189: Lignite | J189: 0.424 | K189: 78.996 | L189: 32.60339623
C190: Yes | D190: BNA0543 | E190: RheinEnergie AG | F190: HKW Merkenich | G190: Block 6 | H190: 16.12.2010 | I190: Lignite | J190: 0.424 | K190: 65.511 | L190: 32.60339623
C191: Yes | D191: BNA0270 | E191: Stadtwerke Flensburg GmbH | F191: Heizkraftwerk FL | G191: Block 11 | H191: 02.06.1992 | I191: Coal | J191: 0.504 | K191: 23.25 | L191: 32.73674603
C192: Yes | D192: BNA0707 | E192: RWE Power AG | F192: Niederaußem | G192: H | H192: 16.09.1974 | I192: Lignite | J192: 0.4216 | K192: 563.76 | L192: 32.77931689
C193: Yes | D193: BNA0708 | E193: RWE Power AG | F193: Niederaußem | G193: G | H193: 23.10.1974 | I193: Lignite | J193: 0.4192 | K193: 546.36 | L193: 32.95725191
C194: Yes | D194: BNA0597 | E194: InfraLeuna GmbH | F194: ILK-GuD | G194: DT1 | H194: 01.07.1994 | I194: CCGT | J194: 0.495 | K194: 7.569 | L194: 33.10961616
C195: Yes | D195: BNA0271 | E195: Stadtwerke Flensburg GmbH | F195: Heizkraftwerk FL | G195: Block 10 | H195: 23.01.1989 | I195: Coal | J195: 0.4905 | K195: 24.75 | L195: 33.60197757
C196: Yes | D196: BNA0498 | E196: Infraserv GmbH & Co. Höchst KG | F196: Heizkraftwerk | G196: Block B | H196: 21.08.1989 | I196: Coal | J196: 0.4905 | K196: 49.5 | L196: 33.60197757
C197: Yes | D197: BNA0709 | E197: RWE Power AG | F197: Niederaußem | G197: K | H197: 30.08.2002 | I197: Lignite | J197: 0.4048 | K197: 821.28 | L197: 34.06916996
C198: Yes | D198: BNA0115 | E198: Lausitz Energie Kraftwerke AG | F198: Lippendorf | G198: R | H198: 20.06.2000 | I198: Lignite | J198: 0.4 | K198: 761.25 | L198: 34.4576
C199: Yes | D199: BNA0124 | E199: Lausitz Energie Kraftwerke AG | F199: Boxberg | G199: Q | H199: 01.10.2000 | I199: Lignite | J199: 0.4 | K199: 745.59 | L199: 34.4576
C200: Yes | D200: BNA1461 | E200: CropEnergies Bioethanol GmbH Zeitz | H200: 15.01.2005 | I200: Lignite | J200: 0.4 | K200: 15.225 | L200: 34.4576
C201: Yes | D201: BNA0116 | E201: EnBW Energie Baden-Württemberg AG | F201: Braunkohlekraftwerk Lippendorf | G201: LIP S | H201: 01.12.1999 | I201: Lignite | J201: 0.3976 | K201: 761.25 | L201: 34.65533199
C202: Yes | D202: BNA0183 | E202: Stadtwerke Cottbus mbH | F202: HKW Cottbus | G202: 1 | H202: 16.12.1999 | I202: Lignite | J202: 0.3976 | K202: 64.38 | L202: 34.65533199
C203: Yes | D203: BNA0284 | E203: Stadtwerke Frankfurt (Oder) GmbH | F203: Heizkraftwerk FFO | G203: Block1-GuD-EK | H203: 30.09.1997 | I203: CCGT | J203: 0.47 | K203: 41.76 | L203: 34.79097872
C204: Yes | D204: BNA0272 | E204: Stadtwerke Flensburg GmbH | F204: Heizkraftwerk FL | G204: Block 9 | H204: 01.10.1985 | I204: Coal | J204: 0.4725 | K204: 24.75 | L204: 34.8325291
C205: Yes | D205: BNA0915 | E205: Lausitz Energie Kraftwerke AG | F205: Schwarze Pumpe | G205: B | H205: 25.05.1998 | I205: Lignite | J205: 0.3952 | K205: 652.5 | L205: 34.85546559
C206: Yes | D206: BNA0914 | E206: Lausitz Energie Kraftwerke AG | F206: Schwarze Pumpe | G206: A | H206: 15.12.1997 | I206: Lignite | J206: 0.3928 | K206: 652.5 | L206: 35.05804481
... 349 more rows

Sheet Hilfssheet Abbildung (hidden)
C2: Waste | D2: Nuclear | E2: Lignite | F2: Coal | G2: CCGT | H2: OCGT | I2: Oil
B3: Minimalwert | C3: =MIN(IF('Power Plant List'!$O$11:$O$555='Hilfssheet Abbildung'!C2,'Power Plant List'!$W$11:$W$555,"fail")) -> 1 | D3: =MIN(IF('Power Plant List'!$O$11:$O$555='Hilfssheet Abbildung'!D2,'Power Plant List'!$W$11:$W$555,"fail")) -> 17.86666667 | E3: =MIN(IF('Power Plant List'!$O$11:$O$555='Hilfssheet Abbildung'!E2,'Power Plant List'!$W$11:$W$555,"fail")) -> 31.91918819 | F3: =MIN(IF('Power Plant List'!$O$11:$O$555='Hilfssheet Abbildung'!F2,'Power Plant List'!$W$11:$W$555,"fail")) -> 32.73674603 | G3: =MIN(IF('Power Plant List'!$O$11:$O$555='Hilfssheet Abbildung'!G2,'Power Plant List'!$W$11:$W$555,"fail")) -> 27.06660131 | H3: =MIN(IF('Power Plant List'!$O$11:$O$555='Hilfssheet Abbildung'!H2,'Power Plant List'!$W$11:$W$555,"fail")) -> 38.57627281 | I3: =MIN(IF('Power Plant List'!$O$11:$O$555='Hilfssheet Abbildung'!I2,'Power Plant List'!$W$11:$W$555,"fail")) -> 76.88214556
B4: erstes Quartil | C4: =_xlfn.QUARTILE.INC(IF('Power Plant List'!$O$11:$O$555='Hilfssheet Abbildung'!C2,'Power Plant List'!$W$11:$W$555,"fail"),1) -> 1 | D4: =_xlfn.QUARTILE.INC(IF('Power Plant List'!$O$11:$O$555='Hilfssheet Abbildung'!D2,'Power Plant List'!$W$11:$W$555,"fail"),1) -> 17.86666667 | E4: =_xlfn.QUARTILE.INC(IF('Power Plant List'!$O$11:$O$555='Hilfssheet Abbildung'!E2,'Power Plant List'!$W$11:$W$555,"fail"),1) -> 34.556466 | F4: =_xlfn.QUARTILE.INC(IF('Power Plant List'!$O$11:$O$555='Hilfssheet Abbildung'!F2,'Power Plant List'!$W$11:$W$555,"fail"),1) -> 36.60750515 | G4: =_xlfn.QUARTILE.INC(IF('Power Plant List'!$O$11:$O$555='Hilfssheet Abbildung'!G2,'Power Plant List'!$W$11:$W$555,"fail"),1) -> 31.73528502 | H4: =_xlfn.QUARTILE.INC(IF('Power Plant List'!$O$11:$O$555='Hilfssheet Abbildung'!H2,'Power Plant List'!$W$11:$W$555,"fail"),1) -> 42.45935347 | I4: =_xlfn.QUARTILE.INC(IF('Power Plant List'!$O$11:$O$555='Hilfssheet Abbildung'!I2,'Power Plant List'!$W$11:$W$555,"fail"),1) -> 80.40131752
B5: Median | C5: =_xlfn.QUARTILE.INC(IF('Power Plant List'!$O$11:$O$555='Hilfssheet Abbildung'!C2,'Power Plant List'!$W$11:$W$555,"fail"),2) -> 1 | D5: =_xlfn.QUARTILE.INC(IF('Power Plant List'!$O$11:$O$555='Hilfssheet Abbildung'!D2,'Power Plant List'!$W$11:$W$555,"fail"),2) -> 17.86666667 | E5: =_xlfn.QUARTILE.INC(IF('Power Plant List'!$O$11:$O$555='Hilfssheet Abbildung'!E2,'Power Plant List'!$W$11:$W$555,"fail"),2) -> 35.68091286 | F5: =_xlfn.QUARTILE.INC(IF('Power Plant List'!$O$11:$O$555='Hilfssheet Abbildung'!F2,'Power Plant List'!$W$11:$W$555,"fail"),2) -> 40.42128395 | G5: =_xlfn.QUARTILE.INC(IF('Power Plant List'!$O$11:$O$555='Hilfssheet Abbildung'!G2,'Power Plant List'!$W$11:$W$555,"fail"),2) -> 40.25838494 | H5: =_xlfn.QUARTILE.INC(IF('Power Plant List'!$O$11:$O$555='Hilfssheet Abbildung'!H2,'Power Plant List'!$W$11:$W$555,"fail"),2) -> 44.56002227 | I5: =_xlfn.QUARTILE.INC(IF('Power Plant List'!$O$11:$O$555='Hilfssheet Abbildung'!I2,'Power Plant List'!$W$11:$W$555,"fail"),2) -> 84.77203225
B6: Drittes Quartil | C6: =_xlfn.QUARTILE.INC(IF('Power Plant List'!$O$11:$O$555='Hilfssheet Abbildung'!C2,'Power Plant List'!$W$11:$W$555,"fail"),3) -> 1 | D6: =_xlfn.QUARTILE.INC(IF('Power Plant List'!$O$11:$O$555='Hilfssheet Abbildung'!D2,'Power Plant List'!$W$11:$W$555,"fail"),3) -> 17.86666667 | E6: =_xlfn.QUARTILE.INC(IF('Power Plant List'!$O$11:$O$555='Hilfssheet Abbildung'!E2,'Power Plant List'!$W$11:$W$555,"fail"),3) -> 40.23835294 | F6: =_xlfn.QUARTILE.INC(IF('Power Plant List'!$O$11:$O$555='Hilfssheet Abbildung'!F2,'Power Plant List'!$W$11:$W$555,"fail"),3) -> 42.32080503 | G6: =_xlfn.QUARTILE.INC(IF('Power Plant List'!$O$11:$O$555='Hilfssheet Abbildung'!G2,'Power Plant List'!$W$11:$W$555,"fail"),3) -> 42.49229762 | H6: =_xlfn.QUARTILE.INC(IF('Power Plant List'!$O$11:$O$555='Hilfssheet Abbildung'!H2,'Power Plant List'!$W$11:$W$555,"fail"),3) -> 51.50600387 | I6: =_xlfn.QUARTILE.INC(IF('Power Plant List'!$O$11:$O$555='Hilfssheet Abbildung'!I2,'Power Plant List'!$W$11:$W$555,"fail"),3) -> 92.14579552
B7: Maximalwert | C7: =MAX(IF('Power Plant List'!$O$11:$O$555='Hilfssheet Abbildung'!C2,'Power Plant List'!$W$11:$W$555,"fail")) -> 1 | D7: =MAX(IF('Power Plant List'!$O$11:$O$555='Hilfssheet Abbildung'!D2,'Power Plant List'!$W$11:$W$555,"fail")) -> 17.86666667 | E7: =MAX(IF('Power Plant List'!$O$11:$O$555='Hilfssheet Abbildung'!E2,'Power Plant List'!$W$11:$W$555,"fail")) -> 66.95418327 | F7: =MAX(IF('Power Plant List'!$O$11:$O$555='Hilfssheet Abbildung'!F2,'Power Plant List'!$W$11:$W$555,"fail")) -> 69.44675269 | G7: =MAX(IF('Power Plant List'!$O$11:$O$555='Hilfssheet Abbildung'!G2,'Power Plant List'!$W$11:$W$555,"fail")) -> 88.42644444 | H7: =MAX(IF('Power Plant List'!$O$11:$O$555='Hilfssheet Abbildung'!H2,'Power Plant List'!$W$11:$W$555,"fail")) -> 57.69115942 | I7: =MAX(IF('Power Plant List'!$O$11:$O$555='Hilfssheet Abbildung'!I2,'Power Plant List'!$W$11:$W$555,"fail")) -> 99.92580433
C10: Waste | D10: Nuclear | E10: Lignite | F10: Coal | G10: CCGT | H10: OCGT | I10: Oil
B11: Q1-Minimum | E11: =E4-E3 -> 2.637277804 | F11: =F4-F3 -> 3.87075912 | G11: =G4-G3 -> 4.668683717 | H11: =H4-H3 -> 3.883080657 | I11: =I4-I3 -> 3.519171968
B12: Q1 | C12: =C4 -> 1 | D12: 17.86666667 | E12: 34.556466 | F12: 36.60750515 | G12: 31.73528502 | H12: 42.45935347 | I12: 80.40131752
B13: Median-Q1 | C13: =C5-C4+0.1 -> 0.1 | D13: =D5-D4+0.1 -> 0.1 | E13: =E5-E4 -> 1.124446867 | F13: 3.813778799 | G13: 8.523099915 | H13: 2.100668801 | I13: 4.370714726
B14: Q3-Median | C14: =C6-C5+0.1 -> 0.1 | D14: =D6-D5+0.1 -> 0.1 | E14: 4.557440078 | F14: 1.899521077 | G14: 2.233912677 | H14: 6.945981602 | I14: 7.373763274
B15: Maximum-Q3 | E15: 26.71583033 | F15: 27.12594766 | G15: 45.93414683 | H15: 6.185155547 | I15: 7.78000881
B18: ='Power Plant List'!C10 -> Included in the Merit Order? | C18: ='Power Plant List'!N10 -> Assumed Primary Source of Energy | D18: ='Power Plant List'!O10 -> Power Plant Type Assignment
B19: Yes | C19: Waste | D19: Waste
B20: No | C20: Nuclear | D20: Nuclear
C21: Lignite | D21: Lignite
C22: Coal | D22: Coal
C23: Gas | D23: CCGT
C24: Oil | D24: OCGT
C25: Other | D25: Oil
D26: Other
